﻿Body Name,Supplier Code,Supplier Name,Transaction Ref/No,Their Ref,Date Paid,Gross Value (Detail),VAT Amount,7CCC - Level 7 Cost Centre Code,7CCN - Level 7 Cost Centre Name,9AC - Level 9 Account Code,9AN - Level 9 Account Name,4CCN - Level 4 Cost Centre Name
Blackpool Council,1086979,Deloitte Llp,556897,8001366120,01/12/2021,101781.6,16963.6,BCA,Corp And Member Services,6101,Audit Fees,Governance & Partnerships
Blackpool Council,1009050,Harry B Litherland & Co Ltd,572796,663388,21/12/2021,1152,192,FMAK,Acquisitions 9/10,1131,Electrical Equipment - Repairs,Places
Blackpool Council,1099839,Park That Bike Ltd,580078,210907-254,06/12/2021,3240,540,PTP,Transport Policy,0981,Professional Fees,Places
Blackpool Council,1008135,Marshalls,583810,Z001096796,06/12/2021,2273.92,0,ZM0018,Highways & Engineering,9773,Orders Received Not Invoiced,Blackpool Services
Blackpool Council,1008135,Marshalls,583810,Z001096796,06/12/2021,3296.44,549.4,ZM0018,Highways & Engineering,9511A,Stocks Efin,Blackpool Services
Blackpool Council,1119493,Centerprise International Ltd,583875,90266309,17/12/2021,2250,375,CS0739,Ict Refresh,6525,I.T. Hardware Purchase,Capital - Resources
Blackpool Council,1119493,Centerprise International Ltd,583876,90266310,09/12/2021,348,58,CS0739,Ict Refresh,6525,I.T. Hardware Purchase,Capital - Resources
Blackpool Council,1091465,Dm Orthotics Limited,584052,8858,01/12/2021,681.04,0,MTE,Undefined Age Group,5401,Aids To Daily Living,Adult & Families
Blackpool Council,1010311,Boc Limited,584114,3065432637,02/12/2021,553.24,92.21,LEISUR,Leisure Management,3060,Chemicals,Community & Env Services
Blackpool Council,1121728,Arrow County Supplies,584158,4920906,01/12/2021,339.36,0,ZM0018,Highways & Engineering,9773,Orders Received Not Invoiced,Blackpool Services
Blackpool Council,1121728,Arrow County Supplies,584158,4920906,01/12/2021,407.23,67.87,ZM0018,Highways & Engineering,9511A,Stocks Efin,Blackpool Services
Blackpool Council,1017862,The Tas Partnership Ltd,584210,"56,641",02/12/2021,316.8,52.8,PTP,Transport Policy,3413,Consultants,Places
Blackpool Council,1101740,Ken Taylor Supplies Limited,584234,0344439,03/12/2021,354,59,PARADM,Parking Administration,3801,Other Expenses,Budgets Outside Cash Limits
Blackpool Council,1036991,Wec Group Ltd,584341,SIN165373,03/12/2021,353.51,58.92,PJNA,New Features / Schemes - C & E,3041,Other Materials,Places
Blackpool Council,1006449,Tmp (Uk) Ltd,584349,215425,03/12/2021,319.46,53.24,TRA,Traffic Management,4501,Private Contractors,Community & Env Services
Blackpool Council,1119963,Global Grooves,584354,1002,02/12/2021,12000,2000,PJW,Management - Places - Illumina,3401,General Services,Places
Blackpool Council,1131156,Manhealth Cic,584368,001,03/12/2021,300,0,FK0071,Corporate Training,3426,Course Fees,Chief Executive
Blackpool Council,1010104,Canon (Uk ) Ltd,584390,9302705,01/12/2021,572.21,95.37,TRB,Maintenance & Works,3531,Computer-H'Ware Purchase,Community & Env Services
Blackpool Council,1132171,Michael Gill Tech,584472,1052,10/12/2021,750,0,PJHA,"Depot, Management & Admin",3308,Servicing,Places
Blackpool Council,1044690,Lesar Uk Ltd,584486,99408,02/12/2021,386.88,64.48,PYLA,Licencing,0917,Other Exps,Community & Env Services
Blackpool Council,1085729,W V Howe Limited,584487,288056,03/12/2021,309.05,51.51,CATERG,Catering Services,3052,Kitchen (Light) Equip-Purchase,Community & Env Services
Blackpool Council,1110132,Health Assured Ltd,584496,SF-094325,01/12/2021,3172.2,528.7,FK0013,Corporate Health,0992,Medical Fees (Employee),Chief Executive
Blackpool Council,1028641,New Mind Internet Consultancy Ltd,584499,NM34362,02/12/2021,504,84,PRJAAA,Website Team,3535,Website Costs,Places
Blackpool Council,1121728,Arrow County Supplies,584595,4921662,03/12/2021,258,0,ZM0018,Highways & Engineering,9773,Orders Received Not Invoiced,Blackpool Services
Blackpool Council,1121728,Arrow County Supplies,584595,4921662,03/12/2021,309.6,51.6,ZM0018,Highways & Engineering,9511A,Stocks Efin,Blackpool Services
Blackpool Council,1114832,Able 2 Occupational Therapy Services Ltd,584596,INV-30677,03/12/2021,810,0,FC1404,Blue Badge Reform,3401,General Services,Resources
Blackpool Council,1106616,Boingboing Resilience Cic,584605,687,01/12/2021,5280,880,HS0003,Headstart Commissioning,3401,General Services,Children'S Services
Blackpool Council,1106616,Boingboing Resilience Cic,584606,688,01/12/2021,11152.28,1858.71,HS0007,Young People & Comm'Y Engagemt,4501,Private Contractors,Children'S Services
Blackpool Council,1106616,Boingboing Resilience Cic,584607,689,01/12/2021,50702.4,8450.4,HS0003,Headstart Commissioning,3401,General Services,Children'S Services
Blackpool Council,1106616,Boingboing Resilience Cic,584608,690,01/12/2021,12756.91,2126.15,HS0003,Headstart Commissioning,3401,General Services,Children'S Services
Blackpool Council,1092351,Local Registration Services Association,584616,INV-0200,03/12/2021,624,104,LIFEVE,Life Events Reg & Care,3605,Confs & Short Courses,Governance & Partnerships
Blackpool Council,1010619,Askews And Holts Library Services Ltd,584642,6581644,01/12/2021,460.52,0,LBB,Central Library,3304,Books And Periodicals,Places
Blackpool Council,1116831,Ocean Boulevard Iii Ltd T/A Boulevard Hotel,584655,1248,08/12/2021,1500,71.5,PRB,Events,1704,Bed & Breakfast Accomm.,Places
Blackpool Council,1121194,REDACTED PERSONAL DATA,584663,HS22,01/12/2021,2386.09,0,HS0003,Headstart Commissioning,3401,General Services,Children'S Services
Blackpool Council,1012841,J & J Ashcroft Ltd,584701,234309,14/12/2021,1186.44,197.74,ENGINE,Engineering,3041,Other Materials,Community & Env Services
Blackpool Council,1010619,Askews And Holts Library Services Ltd,584704,6581646,01/12/2021,334.2,0,LBB,Central Library,3304,Books And Periodicals,Places
Blackpool Council,1130464,Securiscape Ltd,584706,65,07/12/2021,14700,2450,DIRCTR,Directorate,4501,Private Contractors,Community & Env Services
Blackpool Council,1060135,Happy Creative Ltd,584768,H5483,03/12/2021,402,67,PTA,Economic Development,3315,Marketing,Places
Blackpool Council,1094424,The Networking People,584773,SI110242,03/12/2021,14099.74,2349.96,FGAA,Ict Corporate Services,3527,Communication Lines,Resources
Blackpool Council,1123075,Survey & Engineering Projects Ltd,584869,SEPSURVEY-6676,09/12/2021,1668,278,CXC11,Site Development,6514,B.Holes/Site Investgtn/Surveys,Capital - Chief Executive
Blackpool Council,1057663,Wilde Recruitment Ltd,584881,39073,03/12/2021,552.38,92.06,CTAHHA,Tramway Emergency Works,6501,Contract Payments,Capital - Commnctn & Regen
Blackpool Council,1059023,Arcadis Consulting (Uk) Limited,584920,14137671,07/12/2021,6288,1048,DDC,Partnerships & Business Dev,3413,Consultants,Places
Blackpool Council,1094424,The Networking People,584959,SI110255,10/12/2021,480,80,FGAA,Ict Corporate Services,3525,Radio,Resources
Blackpool Council,1098569,This Named Company Ltd T/A The Card Network,584968,INV-007163,10/12/2021,309.54,51.59,AER,Dual Use Properties,3012,Other Equipment,Resources
Blackpool Council,1105698,Hampton'S Resourcing,584970,HAMP07.11.21.2,07/12/2021,3388.22,564.7,MNGMT,Central Management,3413,Consultants,Children'S Services
Blackpool Council,1114036,Odlings Ltd T/A The Columbaria Co,585033,INV0080921,03/12/2021,553.2,92.2,CEMCRE,Cems Crems Etc,3454,Remove And Refix Memorials,Governance & Partnerships
Blackpool Council,1114036,Odlings Ltd T/A The Columbaria Co,585035,INV0080959,08/12/2021,553.2,92.2,CEMCRE,Cems Crems Etc,3454,Remove And Refix Memorials,Governance & Partnerships
Blackpool Council,1006636,Tts Group Ltd,585054,DE6521356,09/12/2021,347.9,57.98,LBF,Library Management,3020,Furniture - Purchase,Places
Blackpool Council,1069531,Masta Ltd,585056,0000569124,08/12/2021,2580,430,FK0013,Corporate Health,3065,Drugs & Medical Requisites,Chief Executive
Blackpool Council,1114541,Integrity Print Ltd,585060,1319010,10/12/2021,1903.2,317.2,PARADM,Parking Administration,3801,Other Expenses,Budgets Outside Cash Limits
Blackpool Council,1115629,Lion Safety,585067,281081,10/12/2021,1092.48,182.08,FVFAA,Street Crossing Patrols,3201,Clothing & Uniforms,Community & Env Services
Blackpool Council,1094424,The Networking People,585075,SI110256,10/12/2021,3754.09,625.68,FGAA,Ict Corporate Services,3521,Landline - Line Rental,Resources
Blackpool Council,1102823,Wilde Consultants Limited,585080,21974,10/12/2021,2664,444,TRA,Traffic Management,4501,Private Contractors,Community & Env Services
Blackpool Council,1120227,Achievement Through Collaboration Trust,585091,ATCSI17,09/12/2021,1000,0,MNGMT,Central Management,6273,Miscellaneous,Children'S Services
Blackpool Council,1056610,Tec Services Association C.I.C,585105,3068,03/12/2021,420,70,APFBAB,Vitaline,4501,Private Contractors,Adult & Families
Blackpool Council,1131576,Oprema Limited,585106,255092,10/12/2021,537.6,89.6,CCTV,Cctv,3012,Other Equipment,Community & Env Services
Blackpool Council,1123254,Anglezarke Building Consultancy Limited,585109,850,03/12/2021,1092,182,PLCAAA,Building Control,3413,Consultants,Places
Blackpool Council,1006449,Tmp (Uk) Ltd,585112,216654,10/12/2021,319.46,53.24,TRA,Traffic Management,4501,Private Contractors,Community & Env Services
Blackpool Council,1056610,Tec Services Association C.I.C,585117,3067,03/12/2021,420,70,APFBAB,Vitaline,4501,Private Contractors,Adult & Families
Blackpool Council,1036991,Wec Group Ltd,585191,SIN165896,10/12/2021,2347.92,391.32,PJNA,New Features / Schemes - C & E,3041,Other Materials,Places
Blackpool Council,1131027,Jo Lawrence,585193,04,02/12/2021,689.98,0,PJNA,New Features / Schemes - C & E,3308,Servicing,Places
Blackpool Council,1131027,Jo Lawrence,585194,05,02/12/2021,2000,0,PJNA,New Features / Schemes - C & E,3308,Servicing,Places
Blackpool Council,1060525,Keltic,585195,166282,10/12/2021,934.5,155.75,FVFAA,Street Crossing Patrols,3201,Clothing & Uniforms,Community & Env Services
Blackpool Council,1132412,Britcab Ltd,585197,29836,10/12/2021,11376,1896,PJNA,New Features / Schemes - C & E,3041,Other Materials,Places
Blackpool Council,1058510,Lifeline Language Services Ltd,585228,0821003,03/12/2021,276,46,JEA,Senior Management,5507,Personal,Children'S Services
Blackpool Council,1062176,Gmbg Ltd T/A Civils & Lintels,585232,FNW/340633,10/12/2021,788.14,131.36,ENGINE,Engineering,3041,Other Materials,Community & Env Services
Blackpool Council,1094355,Les Mills Fitness Uk Ltd,585331,LMUK-SIV-097524,03/12/2021,450,75,LEISUR,Leisure Management,3801,Other Expenses,Community & Env Services
Blackpool Council,1131825,Watt Plastics Ltd,585338,9921089,10/12/2021,5760,960,PRF,Keeping Blackpool Alive,3401,General Services,Places
Blackpool Council,1025664,Alison Handling Services Ltd,585342,204638,10/12/2021,741.6,123.6,PJLA,Maintenance,3041,Other Materials,Places
Blackpool Council,1119533,Schuchmann Llp,585350,5093,09/12/2021,4321.2,720.2,CWAN,Children With Additional Needs,5401,Aids To Daily Living,Children'S Services
Blackpool Council,1119533,Schuchmann Llp,585351,5094,09/12/2021,3370.8,561.8,CWAN,Children With Additional Needs,5401,Aids To Daily Living,Children'S Services
Blackpool Council,1091465,Dm Orthotics Limited,585354,9254,10/12/2021,551.04,0,MTE,Undefined Age Group,5401,Aids To Daily Living,Adult & Families
Blackpool Council,1006576,The Helping Hand Company Ltd,585355,427764,01/12/2021,2619.6,436.6,MTE,Undefined Age Group,5401,Aids To Daily Living,Adult & Families
Blackpool Council,1006576,The Helping Hand Company Ltd,585356,427766,01/12/2021,2619.6,436.6,MTE,Undefined Age Group,5401,Aids To Daily Living,Adult & Families
Blackpool Council,1006576,The Helping Hand Company Ltd,585357,428152,03/12/2021,3686.4,614.4,MTE,Undefined Age Group,5401,Aids To Daily Living,Adult & Families
Blackpool Council,1006576,The Helping Hand Company Ltd,585358,428168,03/12/2021,4090.8,681.8,MTE,Undefined Age Group,5401,Aids To Daily Living,Adult & Families
Blackpool Council,1006576,The Helping Hand Company Ltd,585359,428268,03/12/2021,389.28,64.88,MTE,Undefined Age Group,5401,Aids To Daily Living,Adult & Families
Blackpool Council,1013011,Tennant Uk Cleaning Solutions Ltd,585384,963964853,01/12/2021,368.16,61.36,SCLEAN,Street Cleaning,4501,Private Contractors,Community & Env Services
Blackpool Council,1132185,All Pump Solutions Llp,585391,00151536,09/12/2021,2670,445,CXC11,Site Development,6501,Contract Payments,Capital - Chief Executive
Blackpool Council,1006419,Tunstall Healthcare (Uk) Ltd,585397,3IN/10381888,10/12/2021,899.28,149.88,APFBAB,Vitaline,3004,Operating Lease,Adult & Families
Blackpool Council,1007206,Road Safety Services Ltd,585398,89627,01/12/2021,278.16,46.36,CTABYA,Ltp Scheme 19/20,6501,Contract Payments,Capital - Commnctn & Regen
Blackpool Council,1013705,Stadia Sports/ Broxap Limited,585400,INV282652,08/12/2021,936,156,CGICAD,Enterprise Zone,6517,Equipment,Capital - Commnctn & Regen
Blackpool Council,1008026,Metal Express (Fac083),585440,9128,03/12/2021,1122,187,PJNA,New Features / Schemes - C & E,3041,Other Materials,Places
Blackpool Council,1060135,Happy Creative Ltd,585446,H5490,03/12/2021,690,115,PTA,Economic Development,3315,Marketing,Places
Blackpool Council,1114541,Integrity Print Ltd,585450,1319238,14/12/2021,954,159,PARADM,Parking Administration,3301,Printing,Budgets Outside Cash Limits
Blackpool Council,1026811,Stannah Lift Services Ltd,585451,1085366841,03/12/2021,5874,0,CX4002,Disabled Facilities Grants,6501,Contract Payments,Capital - Adult Social Care
Blackpool Council,1007525,Physical Company,585456,PH310934,03/12/2021,341.91,56.99,LEISUR,Leisure Management,3815,Saleable Goods,Community & Env Services
Blackpool Council,1102970,Emap Publishing Ltd,585463,IN31360,01/12/2021,3360,560,PBF,Communications,0917,Other Exps,Places
Blackpool Council,1123601,Sporting Nrg Ltd,585465,SI-5039,06/12/2021,3990,0,EDDIV,Education Diversity,4101,Other Local Authorities,Children'S Services
Blackpool Council,1013064,Tarmac Lafarge Trading Limited,585468,9044400213,03/12/2021,408.56,68.09,ENGINE,Engineering,3041,Other Materials,Community & Env Services
Blackpool Council,1094424,The Networking People,585474,SI110273,10/12/2021,948.01,158,FGAA,Ict Corporate Services,3532,Comp-Running & License Costs,Resources
Blackpool Council,1010619,Askews And Holts Library Services Ltd,585481,6581647,01/12/2021,257.98,0,LBB,Central Library,3304,Books And Periodicals,Places
Blackpool Council,1132490,Studio Mcguire Ltd,585486,INV-0107,14/12/2021,14400,2400,PJW,Management - Places - Illumina,3401,General Services,Places
Blackpool Council,1094355,Les Mills Fitness Uk Ltd,585491,LMUK-SIV-097357,03/12/2021,450,75,LEISUR,Leisure Management,3801,Other Expenses,Community & Env Services
Blackpool Council,1010619,Askews And Holts Library Services Ltd,585496,6586386,08/12/2021,490.66,0,LBB,Central Library,3304,Books And Periodicals,Places
Blackpool Council,1048978,Environmental Leadership Limited,585502,INV-9933,09/12/2021,355.1,59.18,CWASTE,Commercial Waste,4501,Private Contractors,Community & Env Services
Blackpool Council,1099469,Blackpool Gateway Academy,585504,5000000077,13/12/2021,1428.01,0,CWAN,Children With Additional Needs,4403,Special Needs - Children,Children'S Services
Blackpool Council,1094424,The Networking People,585506,SI110288,14/12/2021,723.89,120.65,TSICT,Transforming Schools Ict,3532,Comp-Running & License Costs,Resources
Blackpool Council,1006449,Tmp (Uk) Ltd,585510,217300,14/12/2021,425.95,70.99,TRA,Traffic Management,4501,Private Contractors,Community & Env Services
Blackpool Council,1094424,The Networking People,585512,SI110290,14/12/2021,32796.14,5466.02,FGAA,Ict Corporate Services,3532,Comp-Running & License Costs,Resources
Blackpool Council,1009260,G S Brown,585514,10207,09/12/2021,1080,0,TRADUL,Intergrated Transport Adults,2201,Contract Hire,Community & Env Services
Blackpool Council,1009260,G S Brown,585515,10206,09/12/2021,1260,0,TRADUL,Intergrated Transport Adults,2201,Contract Hire,Community & Env Services
Blackpool Council,1132171,Michael Gill Tech,585518,1054,09/12/2021,300,0,PJHA,"Depot, Management & Admin",3308,Servicing,Places
Blackpool Council,1105875,Ballzone Limited C.I.C.,585522,BZED 2122011,03/12/2021,275,0,PESPRT,Pe And Sport Team,3426,Course Fees,Community & Env Services
Blackpool Council,1008775,J P Lennard Ltd,585560,123631,13/12/2021,524.88,87.48,LEISUR,Leisure Management,3815,Saleable Goods,Community & Env Services
Blackpool Council,1129683,Bam Fm Limited,585572,IN75588,01/12/2021,537.6,89.6,HJA,Growth,2002,Repairs And Maintenance,Places
Blackpool Council,1025240,Key Engineering Supplies Ltd,585582,44553,14/12/2021,778.85,129.81,CATERG,Catering Services,3201,Clothing & Uniforms,Community & Env Services
Blackpool Council,1118715,Alison Black Ltd T/A Sportmax,585584,117088,10/12/2021,1117.74,186.29,LEISUR,Leisure Management,3048,Cost Of Goods Sold,Community & Env Services
Blackpool Council,1025240,Key Engineering Supplies Ltd,585586,44554,14/12/2021,376.27,62.71,CATERG,Catering Services,3201,Clothing & Uniforms,Community & Env Services
Blackpool Council,1037831,Turner & Townsend Contract Services Ltd,585587,PRIV00001473,06/12/2021,7200,1200,CGICAD,Enterprise Zone,6506,Consultants Fees,Capital - Commnctn & Regen
Blackpool Council,1053453,Brenntag Uk Ltd,585589,32SI 3333628,21/12/2021,518.07,86.34,LEISUR,Leisure Management,3060,Chemicals,Community & Env Services
Blackpool Council,1094424,The Networking People,585604,SI110292,14/12/2021,1980,330,FGAA,Ict Corporate Services,3531,Computer-H'Ware Purchase,Resources
Blackpool Council,1094424,The Networking People,585605,SI110293,14/12/2021,1980,330,FGAA,Ict Corporate Services,3531,Computer-H'Ware Purchase,Resources
Blackpool Council,1132563,Fenceline Barriers & Trackway Ltd,585654,INV-0206,01/12/2021,3354,559,PJNA,New Features / Schemes - C & E,1012,Premises Maint-Priv.Contractor,Places
Blackpool Council,1071928,Civica Uk Limited,585657,C/BM229861,14/12/2021,61814.84,10302.47,FGAA,Ict Corporate Services,3532,Comp-Running & License Costs,Resources
Blackpool Council,1008026,Metal Express (Fac083),585665,9127,09/12/2021,841.5,140.25,PJNA,New Features / Schemes - C & E,3041,Other Materials,Places
Blackpool Council,1085729,W V Howe Limited,585678,288698,14/12/2021,1293.9,215.65,CATERG,Catering Services,3052,Kitchen (Light) Equip-Purchase,Community & Env Services
Blackpool Council,1131825,Watt Plastics Ltd,585681,9921120,16/12/2021,2232,372,PRF,Keeping Blackpool Alive,3401,General Services,Places
Blackpool Council,1028641,New Mind Internet Consultancy Ltd,585682,NM34378,14/12/2021,3420,570,PRJAAA,Website Team,3535,Website Costs,Places
Blackpool Council,1052342,Unipart Rail Limited,585683,514990818,14/12/2021,897.98,149.66,ENGINE,Engineering,3041,Other Materials,Community & Env Services
Blackpool Council,1006944,Siemens Financial Services Ltd,585693,244/22/0025587,07/12/2021,1310.4,218.4,APFBAB,Vitaline,4501,Private Contractors,Adult & Families
Blackpool Council,1117832,Essential Healthcare Solutions Uk Ltd,585745,0000151538,16/12/2021,7874.28,1312.38,CS01DH,A P S Capital Works,6516,Furniture,Capital - Adult Social Care
Blackpool Council,1017722,Terrys Cut Price Carpets Ltd,585750,1637,20/12/2021,472.8,78.8,FC1802,Social Fund - Client,5210,Community Care Support,Resources
Blackpool Council,1006449,Tmp (Uk) Ltd,585753,218200,16/12/2021,425.95,70.99,TRA,Traffic Management,4501,Private Contractors,Community & Env Services
Blackpool Council,1132564,Air Giants Limited,585757,INV-0017,14/12/2021,6720,1120,PJW,Management - Places - Illumina,3401,General Services,Places
Blackpool Council,1025240,Key Engineering Supplies Ltd,585758,44623,16/12/2021,347.52,0,ZM0018,Highways & Engineering,9773,Orders Received Not Invoiced,Blackpool Services
Blackpool Council,1025240,Key Engineering Supplies Ltd,585758,44623,16/12/2021,417.02,69.5,ZM0018,Highways & Engineering,9511A,Stocks Efin,Blackpool Services
Blackpool Council,1025240,Key Engineering Supplies Ltd,585759,44622,16/12/2021,551.81,91.97,APCBBE,Extra Support,3302,Stationery,Adult & Families
Blackpool Council,1006636,Tts Group Ltd,585767,DE6534295,16/12/2021,515.4,85.9,LBF,Library Management,3819,Events Support,Places
Blackpool Council,1114717,Entitledto Ltd,585778,INV-2828,01/12/2021,1200,200,PVA,Other External Funding,3313,General Expenses,Places
Blackpool Council,1063644,Aecom Limited,585779,28476726,02/12/2021,6242.58,1040.43,CPAABA,Shoreline,6501,Contract Payments,Capital - Comm & Environ
Blackpool Council,1121485,Philredom Ltd,585796,PL011121-51,01/12/2021,2925,0,EM1001,Departmental Management,3401,General Services,Children'S Services
Blackpool Council,1112714,Seatable Uk Ltd,585871,13201,16/12/2021,867.74,144.62,CS01DH,A P S Capital Works,6516,Furniture,Capital - Adult Social Care
Blackpool Council,1112714,Seatable Uk Ltd,585872,13202,16/12/2021,1397.45,232.91,CS01DH,A P S Capital Works,6516,Furniture,Capital - Adult Social Care
Blackpool Council,1025240,Key Engineering Supplies Ltd,585882,44665,16/12/2021,2089.8,0,ZM0018,Highways & Engineering,9773,Orders Received Not Invoiced,Blackpool Services
Blackpool Council,1025240,Key Engineering Supplies Ltd,585882,44665,16/12/2021,2507.76,417.96,ZM0018,Highways & Engineering,9511A,Stocks Efin,Blackpool Services
Blackpool Council,1090465,Gemini Reinstatement Products Ltd,585896,11278,14/12/2021,360,0,ZM0018,Highways & Engineering,9773,Orders Received Not Invoiced,Blackpool Services
Blackpool Council,1090465,Gemini Reinstatement Products Ltd,585896,11278,14/12/2021,432,72,ZM0018,Highways & Engineering,9511A,Stocks Efin,Blackpool Services
Blackpool Council,1071925,Groundwork Cheshire Lancs And Merseyside,585897,0000003294,09/12/2021,701.89,77.99,AEB,Buildings,3101,Provisions,Resources
Blackpool Council,1071925,Groundwork Cheshire Lancs And Merseyside,585898,0000003293,09/12/2021,495.92,23.62,AEB,Buildings,3101,Provisions,Resources
Blackpool Council,1088636,Tarmac Building Products Ltd,585904,SI02085805,16/12/2021,1180,0,ZM0018,Highways & Engineering,9773,Orders Received Not Invoiced,Blackpool Services
Blackpool Council,1088636,Tarmac Building Products Ltd,585904,SI02085805,16/12/2021,1416,236,ZM0018,Highways & Engineering,9511A,Stocks Efin,Blackpool Services
Blackpool Council,1005071,Blackpool Transport Services Limited,585911,I0003350,09/12/2021,945,0,OTHL,Other Learning,2301,Bus & Tram Fares,Children'S Services
Blackpool Council,1005071,Blackpool Transport Services Limited,585912,I0003351,09/12/2021,1698.63,0,FRAEA,Public Transport Contracts,3401,General Services,Community & Env Services
Blackpool Council,1026811,Stannah Lift Services Ltd,585938,1085367992,07/12/2021,3004.8,500.8,CXAAA,Local Authority Dwellings,6501,Contract Payments,Capital - Chief Executive
Blackpool Council,1026811,Stannah Lift Services Ltd,585939,1085368904,09/12/2021,2573,0,CX4002,Disabled Facilities Grants,6501,Contract Payments,Capital - Adult Social Care
Blackpool Council,1112303,Access-Able (Uk) Limited (Fac001),585942,4659,16/12/2021,864,0,MVB,65-74,5401,Aids To Daily Living,Adult & Families
Blackpool Council,1009751,Bt Business Direct Limited,585944,IN05627268,22/12/2021,506.47,84.41,CCTV,Cctv,3012,Other Equipment,Community & Env Services
Blackpool Council,1086156,Water Saving Techniques Limited,585951,SI-5815,01/12/2021,6654.1,1109.02,PARADE,Parades & Seawall,1012,Premises Maint-Priv.Contractor,Community & Env Services
Blackpool Council,1086156,Water Saving Techniques Limited,585952,INVOICE,15/12/2021,3276,546,PARADE,Parades & Seawall,1012,Premises Maint-Priv.Contractor,Community & Env Services
Blackpool Council,1066073,Blackpool Coastal Housing,585955,30002025,13/12/2021,716.39,0,PVA,Other External Funding,3401,General Services,Places
Blackpool Council,1094424,The Networking People,585957,SI110306,16/12/2021,49202.03,8200.34,FGAA,Ict Corporate Services,3532,Comp-Running & License Costs,Resources
Blackpool Council,1123071,Whistlejacket London Limited,585964,INV-0692,10/12/2021,2248.8,374.8,HJA,Growth,3315,Marketing,Places
Blackpool Council,1094424,The Networking People,585965,SI110311,16/12/2021,30638.21,5106.37,FGAA,Ict Corporate Services,3531,Computer-H'Ware Purchase,Resources
Blackpool Council,1080157,Achievable Training Limited,585968,INV-0022,10/12/2021,1080,180,JA0505,Children'S Training,3426,Course Fees,Children'S Services
Blackpool Council,1114699,Safe & Equal Learning Partnership,585969,SEBCOPEN1,10/12/2021,270,0,ALEARN,Adult Learning,3711,Subscriptions,Places
Blackpool Council,1088636,Tarmac Building Products Ltd,585975,SI02086507,16/12/2021,1074,0,ZM0018,Highways & Engineering,9773,Orders Received Not Invoiced,Blackpool Services
Blackpool Council,1088636,Tarmac Building Products Ltd,585975,SI02086507,16/12/2021,1288.8,214.8,ZM0018,Highways & Engineering,9511A,Stocks Efin,Blackpool Services
Blackpool Council,1131096,Abl Planning And Development Ltd,586010,2000807/137,01/12/2021,2125,0,PLBAAA,Development Control,4501,Private Contractors,Places
Blackpool Council,1103450,Blackpool Entertainment Company Limited,586011,INV005662,06/12/2021,478.13,53.13,AEH,Built Heritage,6215,Catering Services,Places
Blackpool Council,1010104,Canon (Uk ) Ltd,586012,9302287,01/12/2021,297.66,49.61,POA,Office Services,3308,Servicing,Places
Blackpool Council,1006419,Tunstall Healthcare (Uk) Ltd,586017,3IN/10382430,14/12/2021,324,54,APFBAB,Vitaline,3004,Operating Lease,Adult & Families
Blackpool Council,1107185,Xl Displays,586018,INV159678,16/12/2021,522,87,BSTPRJ,Better Start Projects,3401,General Services,Better Start Projects
Blackpool Council,1021686,North West Tree Services,586019,B821,09/12/2021,2976.2,496,CEMCRE,Cems Crems Etc,3801,Other Expenses,Governance & Partnerships
Blackpool Council,1075909,Viatec Uk Ltd,586022,1981906,16/12/2021,920,0,ZM0018,Highways & Engineering,9773,Orders Received Not Invoiced,Blackpool Services
Blackpool Council,1075909,Viatec Uk Ltd,586022,1981906,16/12/2021,1104,184,ZM0018,Highways & Engineering,9511A,Stocks Efin,Blackpool Services
Blackpool Council,1025240,Key Engineering Supplies Ltd,586028,44753,16/12/2021,392.4,65.4,PJHA,"Depot, Management & Admin",3201,Clothing & Uniforms,Places
Blackpool Council,1006940,Smiths Equipment Hire Ltd - Smiths Training,586038,V12-989616,03/12/2021,1663.79,79.23,PJNA,New Features / Schemes - C & E,3006,Hire Of Equipment,Places
Blackpool Council,1049304,Insight Direct (Uk) Ltd,586041,5482868,16/12/2021,5916.17,986.04,FGAA,Ict Corporate Services,3532,Comp-Running & License Costs,Resources
Blackpool Council,1030699,The Dukes Playhouse Ltd,586043,SI-35,14/12/2021,2500,0,PJW,Management - Places - Illumina,3401,General Services,Places
Blackpool Council,1105698,Hampton'S Resourcing,586044,HAMP14.11.2,14/12/2021,3388.22,564.7,MNGMT,Central Management,3413,Consultants,Children'S Services
Blackpool Council,1008722,J.A. Jones And Sons (Fac036 Payment),586045,9664799,03/12/2021,2640,440,PRKDEV,Parks Development,3072,Bedding,Community & Env Services
Blackpool Council,1102823,Wilde Consultants Limited,586046,22040,16/12/2021,2866.66,477.78,CTZZZZ,Non Specific Contingency Code,6501,Contract Payments,Capital - Comm & Environ
Blackpool Council,1102823,Wilde Consultants Limited,586055,22039,16/12/2021,4432.26,738.71,TRA,Traffic Management,4501,Private Contractors,Community & Env Services
Blackpool Council,1102823,Wilde Consultants Limited,586056,22041,16/12/2021,2692.8,448.8,TRA,Traffic Management,4501,Private Contractors,Community & Env Services
Blackpool Council,1128565,Calder Training + Consultancy Ltd,586063,848,16/12/2021,2040,340,JA0505,Children'S Training,3426,Course Fees,Children'S Services
Blackpool Council,1114541,Integrity Print Ltd,586065,1319749,16/12/2021,2464.8,410.8,PARADM,Parking Administration,3302,Stationery,Budgets Outside Cash Limits
Blackpool Council,1010138,C Cabs,586069,07367,06/12/2021,774,0,TRCHIL,Integrated Transport Children,2201,Contract Hire,Community & Env Services
Blackpool Council,1010138,C Cabs,586070,07126,09/12/2021,700,0,TRCHIL,Integrated Transport Children,2201,Contract Hire,Community & Env Services
Blackpool Council,1009166,Glasdon Uk Ltd,586078,SI828214,03/12/2021,906.6,151.1,BEACHP,Beach Patrol,2001,Purchases,Places
Blackpool Council,1117351,Open Text,586089,9002813900,16/12/2021,489.74,81.62,CTAHHA,Tramway Emergency Works,6506,Consultants Fees,Capital - Commnctn & Regen
Blackpool Council,1057663,Wilde Recruitment Ltd,586092,39198,16/12/2021,552.38,92.06,CTAHHA,Tramway Emergency Works,6501,Contract Payments,Capital - Commnctn & Regen
Blackpool Council,1131198,Permanent Futures Ltd,586096,245698,13/12/2021,3060,510,MNGMT,Central Management,3413,Consultants,Children'S Services
Blackpool Council,1051327,Initial Medical Services Limited,586097,34074615,03/12/2021,903.1,150.52,PU0111,Contain Outbreak Mgmnt Covid,4501,Private Contractors,Public Health
Blackpool Council,1051204,Greater Manchester Mental Health Nhs Trust,586099,002070,16/12/2021,9768,0,PUBH04,Substance Misuse,4501,Private Contractors,Public Health
Blackpool Council,1013064,Tarmac Lafarge Trading Limited,586153,9044406639,03/12/2021,528.61,88.1,ENGINE,Engineering,3041,Other Materials,Community & Env Services
Blackpool Council,1013064,Tarmac Lafarge Trading Limited,586154,9044419877,08/12/2021,322.3,53.71,ENGINE,Engineering,3041,Other Materials,Community & Env Services
Blackpool Council,1013064,Tarmac Lafarge Trading Limited,586155,9044413025,07/12/2021,526.68,87.78,ENGINE,Engineering,3041,Other Materials,Community & Env Services
Blackpool Council,1013064,Tarmac Lafarge Trading Limited,586156,9044428033,08/12/2021,471.5,78.58,ENGINE,Engineering,3041,Other Materials,Community & Env Services
Blackpool Council,1013064,Tarmac Lafarge Trading Limited,586157,9044444143,10/12/2021,575.08,95.84,ENGINE,Engineering,3041,Other Materials,Community & Env Services
Blackpool Council,1013064,Tarmac Lafarge Trading Limited,586160,9044444142,10/12/2021,629.9,104.98,ENGINE,Engineering,3041,Other Materials,Community & Env Services
Blackpool Council,1011837,Cemex Uk Materials Ltd,586163,3013207572,16/12/2021,920.3,153.38,ENGINE,Engineering,3041,Other Materials,Community & Env Services
Blackpool Council,1011837,Cemex Uk Materials Ltd,586164,3013202494,14/12/2021,362.88,60.48,ENGINE,Engineering,3041,Other Materials,Community & Env Services
Blackpool Council,1011837,Cemex Uk Materials Ltd,586166,3013197518,14/12/2021,691.22,115.2,ENGINE,Engineering,3041,Other Materials,Community & Env Services
Blackpool Council,1011837,Cemex Uk Materials Ltd,586169,3013200754,14/12/2021,582.11,97.02,ENGINE,Engineering,3041,Other Materials,Community & Env Services
Blackpool Council,1022781,Moore Readymix Ltd,586172,121894,14/12/2021,253.68,42.28,ENGINE,Engineering,3041,Other Materials,Community & Env Services
Blackpool Council,1116759,Route Nine Studios,586174,INV-0076,14/12/2021,1500,0,PBF,Communications,3315,Marketing,Places
Blackpool Council,1050522,Pasta King (Uk) Limited,586180,502215,09/12/2021,258.82,0,CATERG,Catering Services,3101,Provisions,Community & Env Services
Blackpool Council,1050522,Pasta King (Uk) Limited,586182,502928,14/12/2021,344.89,0,CATERG,Catering Services,3101,Provisions,Community & Env Services
Blackpool Council,1050522,Pasta King (Uk) Limited,586183,501916,03/12/2021,780.96,0,CATERG,Catering Services,3101,Provisions,Community & Env Services
Blackpool Council,1050522,Pasta King (Uk) Limited,586184,502927,14/12/2021,325.28,0,CATERG,Catering Services,3101,Provisions,Community & Env Services
Blackpool Council,1057581,Nisbets,586185,23818676,03/12/2021,1471.39,245.23,SCHBRK,Free School Breakfasts,3052,Kitchen (Light) Equip-Purchase,Community & Env Services
Blackpool Council,1114704,Morson Human Resources Ltd,586193,HS383971,01/12/2021,2310,385,CTAHHI,Tramway Extention,6506,Consultants Fees,Capital - Commnctn & Regen
Blackpool Council,1131198,Permanent Futures Ltd,586199,245896,16/12/2021,1530,255,MNGMT,Central Management,3413,Consultants,Children'S Services
Blackpool Council,1129762,Tp Transcription Ltd,586203,TP-4510,14/12/2021,301.5,50.25,BSTPRJ,Better Start Projects,3401,General Services,Better Start Projects
Blackpool Council,1006944,Siemens Financial Services Ltd,586212,244/22/0034223,16/12/2021,3077.52,512.91,APFBAB,Vitaline,4501,Private Contractors,Adult & Families
Blackpool Council,1090874,Advanced Health And Care Limited,586215,ARCMIN/00099100,03/12/2021,1401.92,233.65,HOMECA,Homecare,2201,Contract Hire,Adult & Families
Blackpool Council,1084280,Alpha Biolabs,586216,535730,03/12/2021,591.6,98.6,JBR,Lac - Placements,3801,Other Expenses,Children'S Services
Blackpool Council,1014426,Jacobs Uk Limited,586269,B550X007-004,03/12/2021,39367.09,6561.18,CPAABA,Shoreline,6501,Contract Payments,Capital - Comm & Environ
Blackpool Council,1103450,Blackpool Entertainment Company Limited,586272,INV005535,06/12/2021,1260,210,JA0505,Children'S Training,1702,Hire Of Meeting Rooms,Children'S Services
Blackpool Council,1012272,Jpi Media Publishing Ltd,586275,523240,02/12/2021,883,147.16,PBF,Communications,3315,Marketing,Places
Blackpool Council,1026811,Stannah Lift Services Ltd,586281,1085369721,03/12/2021,2713,0,CX4002,Disabled Facilities Grants,6501,Contract Payments,Capital - Adult Social Care
Blackpool Council,1026811,Stannah Lift Services Ltd,586282,1085370822,14/12/2021,8584,0,CX4002,Disabled Facilities Grants,6501,Contract Payments,Capital - Adult Social Care
Blackpool Council,1026811,Stannah Lift Services Ltd,586283,1085369705,13/12/2021,1992,332,CXAAA,Local Authority Dwellings,6501,Contract Payments,Capital - Chief Executive
Blackpool Council,1111999,Simon Critchley Photography,586287,185,10/12/2021,800,0,AHHBA,Blackpool Museum,3801,Other Expenses,Places
Blackpool Council,1104671,Acp Concrete Limited,586295,122420,17/12/2021,2700,450,PJNA,New Features / Schemes - C & E,3041,Other Materials,Places
Blackpool Council,1132635,In Frame Studio,586372,056,17/12/2021,353,0,AHG,Art Gallery Summary,3456,Payment To Artists,Places
Blackpool Council,1088694,Cmp Quantity Surveying Ltd,586381,10/5378,03/12/2021,971.62,161.94,FMAK,Acquisitions 9/10,3801,Other Expenses,Places
Blackpool Council,1088694,Cmp Quantity Surveying Ltd,586383,10/5371,03/12/2021,720,120,FMAK,Acquisitions 9/10,3801,Other Expenses,Places
Blackpool Council,1107600,Click 4 Assistance Ltd,586388,INV061723,17/12/2021,394.92,65.82,PBF,Communications,3535,Website Costs,Places
Blackpool Council,1117002,Redraw Travel Ltd T/A Blackpool Minibuses,586389,INV16015,06/12/2021,1980,0,TRCHIL,Integrated Transport Children,2201,Contract Hire,Community & Env Services
Blackpool Council,1117002,Redraw Travel Ltd T/A Blackpool Minibuses,586390,INV16051,06/12/2021,1275,0,TRCHIL,Integrated Transport Children,2201,Contract Hire,Community & Env Services
Blackpool Council,1117002,Redraw Travel Ltd T/A Blackpool Minibuses,586391,INV16092B,06/12/2021,1530,0,TRCHIL,Integrated Transport Children,2201,Contract Hire,Community & Env Services
Blackpool Council,1117002,Redraw Travel Ltd T/A Blackpool Minibuses,586392,INV16130,06/12/2021,1650,0,TRCHIL,Integrated Transport Children,2201,Contract Hire,Community & Env Services
Blackpool Council,1117002,Redraw Travel Ltd T/A Blackpool Minibuses,586393,INV16168,06/12/2021,1980,0,TRCHIL,Integrated Transport Children,2201,Contract Hire,Community & Env Services
Blackpool Council,1117002,Redraw Travel Ltd T/A Blackpool Minibuses,586394,INV16207,06/12/2021,1980,0,TRCHIL,Integrated Transport Children,2201,Contract Hire,Community & Env Services
Blackpool Council,1117002,Redraw Travel Ltd T/A Blackpool Minibuses,586395,INV16244,06/12/2021,2090,0,TRCHIL,Integrated Transport Children,2201,Contract Hire,Community & Env Services
Blackpool Council,1122416,Moorings Mediquip Uk Ltd,586406,44507,01/12/2021,397.2,66.2,MTE,Undefined Age Group,5401,Aids To Daily Living,Adult & Families
Blackpool Council,1008743,James Leckey Design Ltd T/A Vida Global,586409,OP/I181758,16/12/2021,438,73,MTE,Undefined Age Group,5401,Aids To Daily Living,Adult & Families
Blackpool Council,1016138,Neater Solutions Ltd,586410,706658,01/12/2021,2174.4,362.4,MTE,Undefined Age Group,5401,Aids To Daily Living,Adult & Families
Blackpool Council,1049200,Etac Limited,586411,309962,16/12/2021,3690,615,MTE,Undefined Age Group,5401,Aids To Daily Living,Adult & Families
Blackpool Council,1049200,Etac Limited,586412,309954,16/12/2021,677.04,112.84,MTE,Undefined Age Group,5401,Aids To Daily Living,Adult & Families
Blackpool Council,1031475,Jenx Ltd T/A Jiraffe,586413,237282,16/12/2021,2667.6,444.6,CWAN,Children With Additional Needs,5401,Aids To Daily Living,Children'S Services
Blackpool Council,1019678,Smirthwaite Ltd,586414,192757,17/12/2021,568.8,94.8,CWAN,Children With Additional Needs,5401,Aids To Daily Living,Children'S Services
Blackpool Council,1101932,South Tyneside Council,586450,12242263,16/12/2021,330,0,FL1141,Coastal & Envrnmntl Pship Invs,4501,Private Contractors,Community & Env Services
Blackpool Council,1114864,Ipsea,586451,2619,06/12/2021,1600,0,CWAN,Children With Additional Needs,0911,Training Expenses,Children'S Services
Blackpool Council,1119587,Highway Workforce Ltd,586454,HWF 2021-254,03/12/2021,8078.26,1346.38,TRB,Maintenance & Works,4501,Private Contractors,Community & Env Services
Blackpool Council,1006940,Smiths Equipment Hire Ltd - Smiths Training,586465,V07-988346,02/12/2021,972,162,PJNA,New Features / Schemes - C & E,3006,Hire Of Equipment,Places
Blackpool Council,1117478,Ps Research Ltd,586467,PI1908,16/12/2021,900,150,PJNA,New Features / Schemes - C & E,3308,Servicing,Places
Blackpool Council,1109377,Skills Recruitment Ltd,586478,SI-15632,08/12/2021,4100,0,EDDIV,Education Diversity,4101,Other Local Authorities,Children'S Services
Blackpool Council,1109377,Skills Recruitment Ltd,586479,SI-15638,08/12/2021,6827,0,EDDIV,Education Diversity,4101,Other Local Authorities,Children'S Services
Blackpool Council,1116473,Smart Distribution Solutions,586480,56282,14/12/2021,7104,1184,PBF,Communications,0917,Other Exps,Places
Blackpool Council,1105698,Hampton'S Resourcing,586481,HAMP21.112,16/12/2021,2541.17,423.53,MNGMT,Central Management,3413,Consultants,Children'S Services
Blackpool Council,1118229,Sunshine Events Uk Ltd,586484,INV-10161,10/12/2021,2454,409,JA1531,Independent Reviewing Officers,3006,Hire Of Equipment,Children'S Services
Blackpool Council,1099703,Anchorsholme Academy,586486,APASI8,01/12/2021,3210,0,EP8011,Covid Winter Grant,3701,Grants,Children'S Services
Blackpool Council,1099746,Unity Academy,586491,9000000425,07/12/2021,1000,0,MNGMT,Central Management,5555,Educational Support,Children'S Services
Blackpool Council,1099746,Unity Academy,586492,9000000423,07/12/2021,1000,0,MNGMT,Central Management,5555,Educational Support,Children'S Services
Blackpool Council,1099746,Unity Academy,586533,9000000424,07/12/2021,1000,0,MNGMT,Central Management,5555,Educational Support,Children'S Services
Blackpool Council,1116850,Armfield Academy,586534,9500000071,01/12/2021,8700,0,EP8011,Covid Winter Grant,3701,Grants,Children'S Services
Blackpool Council,1102328,Revoe Learning Academy,586535,RLA0107,01/12/2021,7050,0,EP8011,Covid Winter Grant,3701,Grants,Children'S Services
Blackpool Council,1042797,Lux Occ Medical Ltd,586537,BBC/293,09/12/2021,1800,0,FK0013,Corporate Health,0992,Medical Fees (Employee),Chief Executive
Blackpool Council,1090774,Richardson Traction Limited,586538,22279,03/12/2021,840,140,PJAA,"Erection, Operation & Dismantl",3006,Hire Of Equipment,Places
Blackpool Council,1006196,Prism Medical Uk Ltd,586539,5495784,20/12/2021,364.02,60.67,MVA,18-64,5401,Aids To Daily Living,Adult & Families
Blackpool Council,1006099,Blackpool Teaching Hospitals Nhs Ft,586540,1110059549,09/12/2021,13680,2280,CWAN,Children With Additional Needs,3008,Educational Equipment,Children'S Services
Blackpool Council,1071702,Links Signs & Graphics Ltd,586541,LSGI32367,01/12/2021,2904,484,PRF,Keeping Blackpool Alive,3401,General Services,Places
Blackpool Council,1120827,Engage Esm Ltd,586543,5337005682,10/12/2021,291.6,48.6,FGAC,Ict Technical Support,3532,Comp-Running & License Costs,Resources
Blackpool Council,1107790,Taylek Ltd,586544,INV-19648,01/12/2021,319.2,53.2,PJLA,Maintenance,3041,Other Materials,Places
Blackpool Council,1118699,Enveco Blackpool Waste Services Ltd,586545,30163982,01/12/2021,459.6,76.6,FGAC,Ict Technical Support,2002,Repairs And Maintenance,Resources
Blackpool Council,1107790,Taylek Ltd,586546,INV-19820,01/12/2021,293.76,48.96,PJLA,Maintenance,3041,Other Materials,Places
Blackpool Council,1107790,Taylek Ltd,586548,INV-19796,01/12/2021,742.89,123.81,PJRA,Electrical Infra - Places,3041,Other Materials,Places
Blackpool Council,1107790,Taylek Ltd,586551,INV-19703,01/12/2021,431.71,71.95,PJRA,Electrical Infra - Places,3041,Other Materials,Places
Blackpool Council,1107790,Taylek Ltd,586553,INV-19755,01/12/2021,1727.86,287.98,PJRA,Electrical Infra - Places,3041,Other Materials,Places
Blackpool Council,1107790,Taylek Ltd,586554,INV-19667,01/12/2021,283.2,47.2,PJLA,Maintenance,3041,Other Materials,Places
Blackpool Council,1051299,Leisure Travel,586555,INV00686,06/12/2021,2200,0,TRCHIL,Integrated Transport Children,2201,Contract Hire,Community & Env Services
Blackpool Council,1051299,Leisure Travel,586557,INV00687,06/12/2021,1496,0,TRCHIL,Integrated Transport Children,2201,Contract Hire,Community & Env Services
Blackpool Council,1051299,Leisure Travel,586559,INV00684,06/12/2021,1360,0,TRCHIL,Integrated Transport Children,2201,Contract Hire,Community & Env Services
Blackpool Council,1051299,Leisure Travel,586560,INV00685,06/12/2021,2200,0,TRCHIL,Integrated Transport Children,2201,Contract Hire,Community & Env Services
Blackpool Council,1131037,Technology One,586563,U004369,17/12/2021,54067.5,9011.25,CGRESO,Resources Schemes,6526,I.T. Software Purchase,Capital - Resources
Blackpool Council,1057663,Wilde Recruitment Ltd,586564,39230,17/12/2021,552.38,92.06,CTAHHA,Tramway Emergency Works,6501,Contract Payments,Capital - Commnctn & Regen
Blackpool Council,1071702,Links Signs & Graphics Ltd,586565,LSGI32520,09/12/2021,930,155,PRG,Tourism General,3301,Printing,Places
Blackpool Council,1071702,Links Signs & Graphics Ltd,586566,LSGI32313,10/12/2021,1338,223,AHG,Art Gallery Summary,3301,Printing,Places
Blackpool Council,1051299,Leisure Travel,586567,INV00688,06/12/2021,2200,0,TRCHIL,Integrated Transport Children,2201,Contract Hire,Community & Env Services
Blackpool Council,1038738,Layton Primary School,586568,21-005,01/12/2021,460,0,VIRTUL,Virtual Hub,6273,Miscellaneous,Children'S Services
Blackpool Council,1000009,Blackpool & The Fylde College,586569,S0022720,06/12/2021,10000,0,LH2073,Energy Efficiency,4501,Private Contractors,Public Health
Blackpool Council,1006944,Siemens Financial Services Ltd,586570,244/22/0037056,16/12/2021,2376.71,396.11,APFBAB,Vitaline,4501,Private Contractors,Adult & Families
Blackpool Council,1123022,Chadwick High School,586571,1001149/0239,01/12/2021,1890,0,VIRTUL,Virtual Hub,5555,Educational Support,Children'S Services
Blackpool Council,1123022,Chadwick High School,586572,1001149/0238,01/12/2021,1890,0,VIRTUL,Virtual Hub,5555,Educational Support,Children'S Services
Blackpool Council,1119493,Centerprise International Ltd,586573,90268183,17/12/2021,2106,351,CS0739,Ict Refresh,6525,I.T. Hardware Purchase,Capital - Resources
Blackpool Council,1129634,Av-Id,586575,191,01/12/2021,915.6,152.6,HOMECA,Homecare,3531,Computer-H'Ware Purchase,Adult & Families
Blackpool Council,1009906,Combined Precision Components Plc Cpc,586576,2000593,01/12/2021,859.2,143.2,PJHA,"Depot, Management & Admin",3041,Other Materials,Places
Blackpool Council,1006449,Tmp (Uk) Ltd,586577,219780,17/12/2021,643.68,107.28,TRA,Traffic Management,4501,Private Contractors,Community & Env Services
Blackpool Council,1007385,R S Components Ltd,586578,2205153363,17/12/2021,390.72,65.12,PJNA,New Features / Schemes - C & E,3041,Other Materials,Places
Blackpool Council,1076342,Ramboll Uk Limited,586580,1620059939,01/12/2021,3352.8,558.8,CXC11,Site Development,6503,Capital Salaries (Pro Advance),Capital - Chief Executive
Blackpool Council,1100367,Curve Learning And Development Ltd,586582,14580,17/12/2021,878.4,146.4,LM0420,Adults Training,3426,Course Fees,Adult & Families
Blackpool Council,1006099,Blackpool Teaching Hospitals Nhs Ft,586583,1110059548,03/12/2021,6997.5,1166.25,PUBH18,Stop Smoking Services & Interv,4501,Private Contractors,Public Health
Blackpool Council,1011714,Michael Hope Haulage Limited,586584,001554,01/12/2021,1728,288,SCHEME,Highways Schemes,1012,Premises Maint-Priv.Contractor,Community & Env Services
Blackpool Council,1005071,Blackpool Transport Services Limited,586585,I0003356,02/12/2021,436.87,0,ENGINE,Engineering,3041,Other Materials,Community & Env Services
Blackpool Council,1118699,Enveco Blackpool Waste Services Ltd,586589,30163981,02/12/2021,2648.63,441.44,SECURE,Security Services,2002,Repairs And Maintenance,Community & Env Services
Blackpool Council,1118699,Enveco Blackpool Waste Services Ltd,586590,30163986,02/12/2021,396.6,66.1,CCTV,Cctv,2002,Repairs And Maintenance,Community & Env Services
Blackpool Council,1105380,Sulzer Pumps Wastewater Uk Ltd,586591,91283063,14/12/2021,19587.16,3264.53,SCHEME,Highways Schemes,3041,Other Materials,Community & Env Services
Blackpool Council,1118699,Enveco Blackpool Waste Services Ltd,586593,30163714,01/12/2021,4624.91,770.82,ENGINE,Engineering,3041,Other Materials,Community & Env Services
Blackpool Council,1118699,Enveco Blackpool Waste Services Ltd,586594,30163715,01/12/2021,8317.67,1386.28,ENGINE,Engineering,3041,Other Materials,Community & Env Services
Blackpool Council,1011868,W H Tarmacadam Limited,586595,3139,01/12/2021,10075.2,1679.2,PARADE,Parades & Seawall,1012,Premises Maint-Priv.Contractor,Community & Env Services
Blackpool Council,1118699,Enveco Blackpool Waste Services Ltd,586596,30163720,01/12/2021,4203.59,700.6,ENGINE,Engineering,3041,Other Materials,Community & Env Services
Blackpool Council,1012841,J & J Ashcroft Ltd,586601,234571,14/12/2021,1958.53,326.42,SCHEME,Highways Schemes,3041,Other Materials,Community & Env Services
Blackpool Council,1129634,Av-Id,586606,192,01/12/2021,434.86,72.48,FGAA,Ict Corporate Services,3531,Computer-H'Ware Purchase,Resources
Blackpool Council,1121728,Arrow County Supplies,586607,4924839,20/12/2021,292.07,48.67,ZM0018,Highways & Engineering,9511A,Stocks Efin,Blackpool Services
Blackpool Council,1099746,Unity Academy,586608,9000000426,07/12/2021,500,0,MNGMT,Central Management,5555,Educational Support,Children'S Services
Blackpool Council,1099749,Devonshire Primary Academy,586609,DPASI1,01/12/2021,7860,0,EP8011,Covid Winter Grant,3701,Grants,Children'S Services
Blackpool Council,1112198,Kkc Engineering Consultants Limited,586610,872/21,17/12/2021,3948,658,CTAHHI,Tramway Extention,6506,Consultants Fees,Capital - Commnctn & Regen
Blackpool Council,1119945,REDACTED PERSONAL DATA,586611,RGGR01,03/12/2021,4250,0,AHG,Art Gallery Summary,3456,Payment To Artists,Places
Blackpool Council,1090902,Anderson & Sons Contracting & Turf Care,586612,252,01/12/2021,3478,0,TRB,Maintenance & Works,4501,Private Contractors,Community & Env Services
Blackpool Council,1009234,Gary Roy Kirkham,586613,GK61,06/12/2021,1304,0,TRCHIL,Integrated Transport Children,2201,Contract Hire,Community & Env Services
Blackpool Council,1129132,Mhr International Uk Ltd,586614,SIN141999,16/12/2021,16892.78,2815.46,CGRESO,Resources Schemes,6526,I.T. Software Purchase,Capital - Resources
Blackpool Council,1019622,Stephen  Floweth,586616,HT0092,06/12/2021,1275,0,TRCHIL,Integrated Transport Children,2201,Contract Hire,Community & Env Services
Blackpool Council,1019622,Stephen  Floweth,586617,HT0092,06/12/2021,850,0,TRCHIL,Integrated Transport Children,2201,Contract Hire,Community & Env Services
Blackpool Council,1026811,Stannah Lift Services Ltd,586619,1085371589,16/12/2021,4918,0,CX4002,Disabled Facilities Grants,6501,Contract Payments,Capital - Adult Social Care
Blackpool Council,1026811,Stannah Lift Services Ltd,586621,1085371950,07/12/2021,3186,531,CXAAA,Local Authority Dwellings,6501,Contract Payments,Capital - Chief Executive
Blackpool Council,1071925,Groundwork Cheshire Lancs And Merseyside,586623,0000003327,17/12/2021,54023.86,0,PU1015,Practical Support Funding,4501,Private Contractors,Public Health
Blackpool Council,1006292,Vodafone Corporate Ltd,586624,99723688,14/12/2021,60042.58,10007.09,FGAA,Ict Corporate Services,3523,Mobile Phones - Line Rental,Resources
Blackpool Council,1020550,Hays Specialist Recruitment Ltd,586625,1011803299,13/12/2021,1883.4,313.9,HJA,Growth,0791,Temp/Relief (Bureau Staff),Places
Blackpool Council,1117945,Valtech Limited,586626,UKSI14830,17/12/2021,628.14,104.69,FC1404,Blue Badge Reform,3401,General Services,Resources
Blackpool Council,1074052,Brent Stevenson Memorials Ltd,586627,23386,09/12/2021,416.64,69.44,CEMCRE,Cems Crems Etc,3454,Remove And Refix Memorials,Governance & Partnerships
Blackpool Council,1123475,Me Learning Limited,586628,INV-1000,16/12/2021,13770,2295,SYSDEV,Systems Development,3533,Computer S/W Purchases,Resources
Blackpool Council,1096562,Northern Victorian Pier Limited,586629,INV00134,08/12/2021,2000,0,AHHBA,Blackpool Museum,3801,Other Expenses,Places
Blackpool Council,1082067,Squire Patton Boggs (Uk) Llp,586630,2702946,17/12/2021,9398.4,1566.4,CP0511,Anchorsholme Seawall Scheme,6506,Consultants Fees,Capital - Comm & Environ
Blackpool Council,1121728,Arrow County Supplies,586631,4926156,20/12/2021,631.8,0,ZM0018,Highways & Engineering,9773,Orders Received Not Invoiced,Blackpool Services
Blackpool Council,1121728,Arrow County Supplies,586631,4926156,20/12/2021,758.16,126.36,ZM0018,Highways & Engineering,9511A,Stocks Efin,Blackpool Services
Blackpool Council,1082067,Squire Patton Boggs (Uk) Llp,586632,2702974,17/12/2021,2664,444,CGTBBB,Conference Centre,6506,Consultants Fees,Capital - Commnctn & Regen
Blackpool Council,1132102,Lucid Creates,586633,1051,14/12/2021,12000,2000,PJNA,New Features / Schemes - C & E,3006,Hire Of Equipment,Places
Blackpool Council,1091050,Howard Palmer T/A Trojan Travel,586635,035,10/12/2021,1700,0,TRCHIL,Integrated Transport Children,2201,Contract Hire,Community & Env Services
Blackpool Council,1112567,Servelec Youth Services Limited,586637,0000061247,14/12/2021,29802.47,4967.08,SYSDEV,Systems Development,3532,Comp-Running & License Costs,Resources
Blackpool Council,1131097,Simple Planning Solutions Ltd,586638,1,01/12/2021,990,0,PLBAAA,Development Control,4501,Private Contractors,Places
Blackpool Council,1008644,Jonathan Lynch T/A The Studio,586640,2028,03/12/2021,305,0,AHG,Art Gallery Summary,3456,Payment To Artists,Places
Blackpool Council,1103450,Blackpool Entertainment Company Limited,586641,INV005663,02/12/2021,432,72,JA0505,Children'S Training,3426,Course Fees,Children'S Services
Blackpool Council,1117705,Rhea Projects Ltd,586645,RP-1468,02/12/2021,9120,1520,LH2078,Energy Efficiency C1 Scheme,4501,Private Contractors,Public Health
Blackpool Council,1117705,Rhea Projects Ltd,586646,RP-1467,02/12/2021,33800,5633.33,LH2078,Energy Efficiency C1 Scheme,4501,Private Contractors,Public Health
Blackpool Council,1117705,Rhea Projects Ltd,586647,LAD2-0017,02/12/2021,11592,1932,LH2092,Lad 2 Funding,4501,Private Contractors,Public Health
Blackpool Council,1117705,Rhea Projects Ltd,586648,LAD2-0018,02/12/2021,43211.94,7201.99,LH2092,Lad 2 Funding,4501,Private Contractors,Public Health
Blackpool Council,1117705,Rhea Projects Ltd,586651,LAD2-0019,02/12/2021,38940.76,6490.13,LH2092,Lad 2 Funding,4501,Private Contractors,Public Health
Blackpool Council,1117705,Rhea Projects Ltd,586653,LAD2-0020,02/12/2021,31331.78,5221.96,LH2092,Lad 2 Funding,4501,Private Contractors,Public Health
Blackpool Council,1117705,Rhea Projects Ltd,586654,LAD2-0021,02/12/2021,30360,5060,LH2092,Lad 2 Funding,4501,Private Contractors,Public Health
Blackpool Council,1117705,Rhea Projects Ltd,586655,LAD2-0013,02/12/2021,38960.91,1855.28,LH2092,Lad 2 Funding,4501,Private Contractors,Public Health
Blackpool Council,1117705,Rhea Projects Ltd,586656,LAD2-0014,02/12/2021,45321.94,2158.19,LH2092,Lad 2 Funding,4501,Private Contractors,Public Health
Blackpool Council,1117705,Rhea Projects Ltd,586657,LAD2-0016,02/12/2021,50127.66,2387.03,LH2092,Lad 2 Funding,4501,Private Contractors,Public Health
Blackpool Council,1117705,Rhea Projects Ltd,586658,RP-1461,02/12/2021,26000,4333.33,LH2078,Energy Efficiency C1 Scheme,4501,Private Contractors,Public Health
Blackpool Council,1070036,Gaist Solutions Ltd,586667,11217,02/12/2021,126000,21000,CTACBA,Ltp Scheme 21/22,6501,Contract Payments,Capital - Commnctn & Regen
Blackpool Council,1012071,Bethell Construction Limited,586675,17577,02/12/2021,3044.83,507.47,ENGINE,Engineering,1012,Premises Maint-Priv.Contractor,Community & Env Services
Blackpool Council,1118699,Enveco Blackpool Waste Services Ltd,586677,30163983,09/12/2021,341.93,56.99,BCA,Corp And Member Services,2002,Repairs And Maintenance,Governance & Partnerships
Blackpool Council,1131576,Oprema Limited,586678,252678,02/12/2021,256.27,42.71,CCTV,Cctv,3012,Other Equipment,Community & Env Services
Blackpool Council,1007008,Screwfix Direct Ltd,586681,1186707356,02/12/2021,299.98,49.99,ZM0018,Highways & Engineering,9511A,Stocks Efin,Blackpool Services
Blackpool Council,1128287,Fseg Ltd,586743,56620,10/12/2021,360,60,PBF,Communications,3806,Advertising-General,Places
Blackpool Council,1067110,Thames Card Technology Ltd,586747,034048,17/12/2021,1698.24,283.04,LEISUR,Leisure Management,3801,Other Expenses,Community & Env Services
Blackpool Council,1118699,Enveco Blackpool Waste Services Ltd,586749,30163718,02/12/2021,1493.89,248.98,PRKDEV,Parks Development,2002,Repairs And Maintenance,Community & Env Services
Blackpool Council,1094424,The Networking People,586750,SI110353,17/12/2021,4700.69,783.45,FGAA,Ict Corporate Services,3531,Computer-H'Ware Purchase,Resources
Blackpool Council,1103692,Calico Enterprise Limited,586751,SINV20/00003783,17/12/2021,4753.2,792.2,FC1802,Social Fund - Client,5210,Community Care Support,Resources
Blackpool Council,1114857,University Of Brighton,586752,U0147495,17/12/2021,3187.23,0,HS0002,Headstart Evaluation,3401,General Services,Children'S Services
Blackpool Council,1114857,University Of Brighton,586752,U0147495,17/12/2021,17545.3,0,HS0002,Headstart Evaluation,3601,Subsistence,Children'S Services
Blackpool Council,1023161,Suez Recycling And Recovery Uk Ltd,586753,80235472,07/12/2021,1728,288,CWASTE,Commercial Waste,4501,Private Contractors,Community & Env Services
Blackpool Council,1023161,Suez Recycling And Recovery Uk Ltd,586754,80239543,07/12/2021,1008,168,CWASTE,Commercial Waste,4501,Private Contractors,Community & Env Services
Blackpool Council,1066817,Ocean Media Group Ltd,586755,1349,14/12/2021,828,138,PBC,Strategy Team,4004,Management Fees,Chief Executive
Blackpool Council,1030119,Generation (Uk) Ltd,586756,H2548814,17/12/2021,3527.12,587.85,PJAA,"Erection, Operation & Dismantl",3006,Hire Of Equipment,Places
Blackpool Council,1123170,Studio Treble Ltd,586768,466,10/12/2021,597,99.5,AHH,Heritage,3801,Other Expenses,Places
Blackpool Council,1123170,Studio Treble Ltd,586768,466,10/12/2021,597,99.5,AHHBA,Blackpool Museum,3801,Other Expenses,Places
Blackpool Council,1114704,Morson Human Resources Ltd,586770,HS385347,08/12/2021,2310,385,CTAHHI,Tramway Extention,6506,Consultants Fees,Capital - Commnctn & Regen
Blackpool Council,1010311,Boc Limited,586772,3065885276,16/12/2021,677.98,113,LEISUR,Leisure Management,3060,Chemicals,Community & Env Services
Blackpool Council,1008039,Woodswaste Ltd,586773,33538,22/12/2021,686.35,114.39,CEMCRE,Cems Crems Etc,3801,Other Expenses,Governance & Partnerships
Blackpool Council,1109682,Entertainment Concepts Ltd,586775,319,10/12/2021,799.99,133.33,FMAK,Acquisitions 9/10,1131,Electrical Equipment - Repairs,Places
Blackpool Council,1100806,REDACTED PERSONAL DATA,586776,HO2322,10/12/2021,300,0,HOPB,Housing Options,0911,Training Expenses,Chief Executive
Blackpool Council,1010687,Sirsi Ltd,586777,INV09047,17/12/2021,3156,526,LBF,Library Management,3532,Comp-Running & License Costs,Places
Blackpool Council,1006944,Siemens Financial Services Ltd,586778,244/22/0039844,17/12/2021,3702.48,617.08,APFBAB,Vitaline,4501,Private Contractors,Adult & Families
Blackpool Council,1006944,Siemens Financial Services Ltd,586779,244/22/0039843,17/12/2021,3275.1,545.84,APFBAB,Vitaline,4501,Private Contractors,Adult & Families
Blackpool Council,1006944,Siemens Financial Services Ltd,586780,244/22/0038387,17/12/2021,2412.53,402.08,APFBAB,Vitaline,4501,Private Contractors,Adult & Families
Blackpool Council,1007058,Scanlite Visual Communications Ltd,586794,218161,10/12/2021,1396.8,232.8,PPA,Head Of Tourism Services,3401,General Services,Places
Blackpool Council,1119826,Road Maintenance Services (Preservations) Ltd,586834,21,17/12/2021,743.93,123.99,TRB,Maintenance & Works,4501,Private Contractors,Community & Env Services
Blackpool Council,1031342,One51 Es Plastics (Uk) Ltd T/A Mgb Plastics,586835,38760,03/12/2021,17640,2940,DOMPFI,Domestic Waste & Waste Pfi,3041,Other Materials,Community & Env Services
Blackpool Council,1099512,Dga (Uk) Ltd,586836,SIN220289,14/12/2021,56610,9435,CGTBBB,Conference Centre,6506,Consultants Fees,Capital - Commnctn & Regen
Blackpool Council,1099512,Dga (Uk) Ltd,586837,SIN220290,14/12/2021,2340,390,CP0511,Anchorsholme Seawall Scheme,6506,Consultants Fees,Capital - Comm & Environ
Blackpool Council,1017722,Terrys Cut Price Carpets Ltd,586840,1655,09/12/2021,758.4,126.4,JEA,Senior Management,5577,Setting Up Home Allowance,Children'S Services
Blackpool Council,1036991,Wec Group Ltd,586842,SIN167036,17/12/2021,288.82,48.14,PJNA,New Features / Schemes - C & E,3041,Other Materials,Places
Blackpool Council,1041733,Dhl International (Uk) Ltd,586846,AVI8997862,06/12/2021,432.08,0,PJHA,"Depot, Management & Admin",3511,Postages,Places
Blackpool Council,1053021,Wesley Media/The Yaboo Company Ltd,586851,59082,14/12/2021,360,60,CEMCRE,Cems Crems Etc,3401,General Services,Governance & Partnerships
Blackpool Council,1087549,Merlin Entertainments (Blackpool) Ltd,586852,INV13026-00006163,13/12/2021,607.15,67.48,ZX0501,"Tourism,Promotions & Conferen.",9687,Tourism Sale Of Tickets,Place Directorate
Blackpool Council,1123071,Whistlejacket London Limited,586855,INV-0665,03/12/2021,2248.8,374.8,HJA,Growth,3315,Marketing,Places
Blackpool Council,1000009,Blackpool & The Fylde College,586856,S0022704,06/12/2021,65737,0,EDDIV,Education Diversity,4101,Other Local Authorities,Children'S Services
Blackpool Council,1058510,Lifeline Language Services Ltd,586861,0821083,16/12/2021,340.2,56.7,SBOARD,Springboard,4501,Private Contractors,Children'S Services
Blackpool Council,1011730,Metric Group Limited,586862,175339,20/12/2021,2260.44,376.74,PARADM,Parking Administration,3801,Other Expenses,Budgets Outside Cash Limits
Blackpool Council,1011369,Lancashire County Council,586863,5200240772,06/12/2021,1750678,0,DOMPFI,Domestic Waste & Waste Pfi,4513,Contract 'A',Community & Env Services
Blackpool Council,1045794,Amion Consulting Limited,586867,AVL2555,08/12/2021,1800,300,AHHBA,Blackpool Museum,3801,Other Expenses,Places
Blackpool Council,1105580,Buttress Architects Limited,586868,15782,09/12/2021,1200,200,CGTACA,Museum,6506,Consultants Fees,Capital - Commnctn & Regen
Blackpool Council,1005144,Blackpool Airport Operations Limited,586869,0000024315,10/12/2021,1200,200,CGICAD,Enterprise Zone,6518,Miscellaneous - Capital,Capital - Commnctn & Regen
Blackpool Council,1110996,Philip Holmes T/A Dragon Creative,586872,102290,10/12/2021,1150,0,PJNA,New Features / Schemes - C & E,3308,Servicing,Places
Blackpool Council,1110996,Philip Holmes T/A Dragon Creative,586873,102297,10/12/2021,1683.89,0,PJHA,"Depot, Management & Admin",3308,Servicing,Places
Blackpool Council,1110996,Philip Holmes T/A Dragon Creative,586874,102311,10/12/2021,3251.5,0,PJNA,New Features / Schemes - C & E,3308,Servicing,Places
Blackpool Council,1041733,Dhl International (Uk) Ltd,586875,AVI8986714,06/12/2021,331.6,0,PJHA,"Depot, Management & Admin",3511,Postages,Places
Blackpool Council,1006460,Closomat Limited,586877,SI-090043,20/12/2021,368.4,61.4,MVB,65-74,5401,Aids To Daily Living,Adult & Families
Blackpool Council,1006460,Closomat Limited,586878,SI-090044,20/12/2021,368.4,61.4,CXAAA,Local Authority Dwellings,6501,Contract Payments,Capital - Chief Executive
Blackpool Council,1117174,Ppl Prs Ltd,586880,SIN1633321,06/12/2021,3361.39,560.23,LEISUR,Leisure Management,3801,Other Expenses,Community & Env Services
Blackpool Council,1119933,Mitchell Bailey T/A Pda Technical,586883,328,10/12/2021,320,0,PJHA,"Depot, Management & Admin",3308,Servicing,Places
Blackpool Council,1082924,Dotdigital Emea Ltd,586886,DM1401621,14/12/2021,432,72,PBF,Communications,3315,Marketing,Places
Blackpool Council,1117713,Allied Publicity Services (Manchester) Ltd,586888,C59981,17/12/2021,1058.49,176.41,FC1404,Blue Badge Reform,3401,General Services,Resources
Blackpool Council,1010311,Boc Limited,586891,3065885277,16/12/2021,726.46,121.08,LEISUR,Leisure Management,3060,Chemicals,Community & Env Services
Blackpool Council,1005071,Blackpool Transport Services Limited,586892,I0003394,13/12/2021,475,0,VA0010,Vah Management & Admin,2301,Bus & Tram Fares,Children'S Services
Blackpool Council,1119493,Centerprise International Ltd,586966,90268546,20/12/2021,8765.28,1460.88,CS0739,Ict Refresh,6525,I.T. Hardware Purchase,Capital - Resources
Blackpool Council,1087234,Aitch Tools & Fasteners Ltd,586968,057688,06/12/2021,267.23,44.54,ZM0018,Highways & Engineering,9511A,Stocks Efin,Blackpool Services
Blackpool Council,1006099,Blackpool Teaching Hospitals Nhs Ft,586969,1110059654,13/12/2021,3926.82,654.47,PU2061,Domestic Violence,4501,Private Contractors,Public Health
Blackpool Council,1006099,Blackpool Teaching Hospitals Nhs Ft,586970,1110059657,13/12/2021,4321.2,720.2,PU2061,Domestic Violence,4501,Private Contractors,Public Health
Blackpool Council,1006944,Siemens Financial Services Ltd,586972,244/22/0040550,17/12/2021,1500,250,FCADA,Customer Services,3001,Office Equipment Purchase,Resources
Blackpool Council,1008620,Ppg Architectural Coatings Uk Limited,586978,4499749690,06/12/2021,607.11,0,ZM0018,Highways & Engineering,9773,Orders Received Not Invoiced,Blackpool Services
Blackpool Council,1008620,Ppg Architectural Coatings Uk Limited,586978,4499749690,06/12/2021,728.53,121.42,ZM0018,Highways & Engineering,9511A,Stocks Efin,Blackpool Services
Blackpool Council,1008620,Ppg Architectural Coatings Uk Limited,586979,4499845906,07/12/2021,722.42,0,ZM0018,Highways & Engineering,9773,Orders Received Not Invoiced,Blackpool Services
Blackpool Council,1008620,Ppg Architectural Coatings Uk Limited,586979,4499845906,07/12/2021,866.9,144.48,ZM0018,Highways & Engineering,9511A,Stocks Efin,Blackpool Services
Blackpool Council,1005144,Blackpool Airport Operations Limited,586980,0000024316,10/12/2021,600,100,FK0071,Corporate Training,3426,Course Fees,Chief Executive
Blackpool Council,1122684,REDACTED PERSONAL DATA,586981,05,09/12/2021,472.5,0,ALEARN,Adult Learning,0917,Other Exps,Places
Blackpool Council,1119387,REDACTED PERSONAL DATA,586982,012,10/12/2021,472.5,0,ALEARN,Adult Learning,0917,Other Exps,Places
Blackpool Council,1105889,3d Environmental Limited,586986,BBC-0333,13/12/2021,492,82,PYEP,Environmental Protection,3313,General Expenses,Community & Env Services
Blackpool Council,1105889,3d Environmental Limited,586987,BBC-0334,13/12/2021,2517.96,419.66,PYEP,Environmental Protection,3313,General Expenses,Community & Env Services
Blackpool Council,1102823,Wilde Consultants Limited,587012,22088,20/12/2021,78000,13000,CTACBA,Ltp Scheme 21/22,6501,Contract Payments,Capital - Commnctn & Regen
Blackpool Council,1092733,Cimspa,587022,126623,14/12/2021,2044.25,0,LEISUR,Leisure Management,3801,Other Expenses,Community & Env Services
Blackpool Council,1116727,Salutem Ld Bidco Iv Limited T/A Ambito,587023,0000131297,13/12/2021,8798.33,0,CWAN,Children With Additional Needs,4501,Private Contractors,Children'S Services
Blackpool Council,1116727,Salutem Ld Bidco Iv Limited T/A Ambito,587024,0000131298,13/12/2021,8798.33,0,CWAN,Children With Additional Needs,4501,Private Contractors,Children'S Services
Blackpool Council,1116727,Salutem Ld Bidco Iv Limited T/A Ambito,587025,0000131299,13/12/2021,3785.67,0,CWAN,Children With Additional Needs,4501,Private Contractors,Children'S Services
Blackpool Council,1115311,Darrren Clare Ltd T/A Portfolio,587026,P8677,20/12/2021,7628.4,1271.4,PBF,Communications,0917,Other Exps,Places
Blackpool Council,1009166,Glasdon Uk Ltd,587027,SI828904,13/12/2021,1389.16,231.53,PRKOP1,Parks Operational Manager  1,3041,Other Materials,Community & Env Services
Blackpool Council,1013064,Tarmac Lafarge Trading Limited,587028,9044511026,17/12/2021,915.12,152.52,ENGINE,Engineering,3041,Other Materials,Community & Env Services
Blackpool Council,1013064,Tarmac Lafarge Trading Limited,587029,9044502603,16/12/2021,870.88,145.14,ENGINE,Engineering,3041,Other Materials,Community & Env Services
Blackpool Council,1013064,Tarmac Lafarge Trading Limited,587032,9044456835,14/12/2021,251.72,41.95,ENGINE,Engineering,3041,Other Materials,Community & Env Services
Blackpool Council,1006940,Smiths Equipment Hire Ltd - Smiths Training,587038,V05-992107,10/12/2021,407.62,67.94,ENGINE,Engineering,3041,Other Materials,Community & Env Services
Blackpool Council,1102371,A T Graphics Limited,587039,12008,20/12/2021,420,70,PRA,Conferences,3315,Marketing,Places
Blackpool Council,1008775,J P Lennard Ltd,587047,125414,17/12/2021,1052.76,175.46,PESPRT,Pe And Sport Team,3007,Recreational Equipment,Community & Env Services
Blackpool Council,1117478,Ps Research Ltd,587049,PI1912,17/12/2021,2220,370,PJW,Management - Places - Illumina,3401,General Services,Places
Blackpool Council,1122684,REDACTED PERSONAL DATA,587050,05,10/12/2021,492.85,0,ALEARN,Adult Learning,0917,Other Exps,Places
Blackpool Council,1104384,Blackpool Aspire Academy,587053,7000000157,07/12/2021,7020,0,EP8011,Covid Winter Grant,3701,Grants,Children'S Services
Blackpool Council,1022781,Moore Readymix Ltd,587055,122381,17/12/2021,253.68,42.28,ENGINE,Engineering,3041,Other Materials,Community & Env Services
Blackpool Council,1011714,Michael Hope Haulage Limited,587056,001555,08/12/2021,2160,360,SCHEME,Highways Schemes,1012,Premises Maint-Priv.Contractor,Community & Env Services
Blackpool Council,1103450,Blackpool Entertainment Company Limited,587057,INV005702,07/12/2021,265.78,29.53,JA2104,Contact Centre,1702,Hire Of Meeting Rooms,Children'S Services
Blackpool Council,1120827,Engage Esm Ltd,587059,5337005811,17/12/2021,26798.4,4466.4,FGAC,Ict Technical Support,3532,Comp-Running & License Costs,Resources
Blackpool Council,1105698,Hampton'S Resourcing,587060,HAMP28.11.2,17/12/2021,3388.22,564.7,MNGMT,Central Management,3413,Consultants,Children'S Services
Blackpool Council,1105476,Blackpool & Fylde  Alternative School Ltd,587063,INV-0210,07/12/2021,5766.2,961.04,OTHL,Other Learning,5555,Educational Support,Children'S Services
Blackpool Council,1093009,Qualsafe Ltd,587068,451427,17/12/2021,251.64,41.94,LEISUR,Leisure Management,1606,First Aid Equipment & Supplies,Community & Env Services
Blackpool Council,1093009,Qualsafe Ltd,587069,451425,17/12/2021,1640.16,273.36,LEISUR,Leisure Management,1606,First Aid Equipment & Supplies,Community & Env Services
Blackpool Council,1010372,Christ The King Catholic Academy,587070,0000000093,07/12/2021,2610,0,EP8011,Covid Winter Grant,3701,Grants,Children'S Services
Blackpool Council,1012096,St Mary'S Catholic Academy,587071,0000000459,07/12/2021,9810,0,EP8011,Covid Winter Grant,3701,Grants,Children'S Services
Blackpool Council,1071918,St Cuthberts Catholic Academy,587072,0000000092,07/12/2021,2850,0,EP8011,Covid Winter Grant,3701,Grants,Children'S Services
Blackpool Council,1073088,Muse Developments Limited,587073,51007952,07/12/2021,1643119.42,273853.24,CGWBAA,Cbd Phase 2,6501,Contract Payments,Capital - Commnctn & Regen
Blackpool Council,1006449,Tmp (Uk) Ltd,587075,209136,09/12/2021,638.92,106.48,PLBAAA,Development Control,3401,General Services,Places
Blackpool Council,1096486,Roseacre Primary Academy,587076,RPASI22,07/12/2021,5880,0,EP8011,Covid Winter Grant,3701,Grants,Children'S Services
Blackpool Council,1094002,Waterloo Primary Academy,587077,WPSI 72,07/12/2021,10692,0,EP8011,Covid Winter Grant,3701,Grants,Children'S Services
Blackpool Council,1079435,REDACTED PERSONAL DATA,587078,DT161121BPL,17/12/2021,725,0,JPA,Children Centres,3605,Confs & Short Courses,Children'S Services
Blackpool Council,1110996,Philip Holmes T/A Dragon Creative,587079,102304,10/12/2021,2110.61,0,PJW,Management - Places - Illumina,3401,General Services,Places
Blackpool Council,1027764,Colins Travel,587081,102,10/12/2021,1377,0,TRCHIL,Integrated Transport Children,2201,Contract Hire,Community & Env Services
Blackpool Council,1027764,Colins Travel,587083,103,10/12/2021,1978,0,TRCHIL,Integrated Transport Children,2201,Contract Hire,Community & Env Services
Blackpool Council,1017261,De Vere Village Trading No1 Limited,587087,VBL01/86936,09/12/2021,960,106.67,PPA,Head Of Tourism Services,3401,General Services,Places
Blackpool Council,1123419,Champion Education Trust,587090,LOTSO213,08/12/2021,936,0,EP8011,Covid Winter Grant,3701,Grants,Children'S Services
Blackpool Council,1006449,Tmp (Uk) Ltd,587092,214687,14/12/2021,319.46,53.24,AEV,Vacant & Under Used,3806,Advertising-General,Resources
Blackpool Council,1110132,Health Assured Ltd,587093,SF-097301,17/12/2021,3172.2,528.7,FK0013,Corporate Health,0992,Medical Fees (Employee),Chief Executive
Blackpool Council,1035614,Marton Primary Academy And Nursery,587094,MASI 27,08/12/2021,3540,0,EP8011,Covid Winter Grant,3701,Grants,Children'S Services
Blackpool Council,1008878,Cipfa Business Limited,587096,3159976,08/12/2021,1974,329,AEE,Estates,3711,Subscriptions,Resources
Blackpool Council,1101124,South Shore Academy,587097,SSSI 49,08/12/2021,700,0,EDDIV,Education Diversity,4101,Other Local Authorities,Children'S Services
Blackpool Council,1010300,Blacktax Radio Taxis T/A Blackpool Courier,587101,14556,10/12/2021,1679.8,0,TRCHIL,Integrated Transport Children,2201,Contract Hire,Community & Env Services
Blackpool Council,1087805,Blackpool Fc Community Trust,587111,BFCCT1285,09/12/2021,1000,0,EDDIV,Education Diversity,4101,Other Local Authorities,Children'S Services
Blackpool Council,1108859,Education Business Partnership (Nw) Limited,587112,INV-0851,14/12/2021,708,118,EDDIV,Education Diversity,4101,Other Local Authorities,Children'S Services
Blackpool Council,1120720,5 Ways Boxing Academy Cic,587113,5040,08/12/2021,1680,0,EDDIV,Education Diversity,4101,Other Local Authorities,Children'S Services
Blackpool Council,1122971,Mint Commercial And Healthcare Ltd (Fac087),587115,10587,08/12/2021,4481.7,746.95,EDDIV,Education Diversity,1607,Rechg Cleaning Dso,Children'S Services
Blackpool Council,1010300,Blacktax Radio Taxis T/A Blackpool Courier,587116,14557,10/12/2021,1584,0,TRCHIL,Integrated Transport Children,2201,Contract Hire,Community & Env Services
Blackpool Council,1010300,Blacktax Radio Taxis T/A Blackpool Courier,587117,14533,10/12/2021,850,0,TRCHIL,Integrated Transport Children,2201,Contract Hire,Community & Env Services
Blackpool Council,1011730,Metric Group Limited,587121,175392,20/12/2021,557.04,92.84,PARADM,Parking Administration,3801,Other Expenses,Budgets Outside Cash Limits
Blackpool Council,1011730,Metric Group Limited,587122,C61405,17/12/2021,16264.3,2710.72,PARADM,Parking Administration,2002,Repairs And Maintenance,Budgets Outside Cash Limits
Blackpool Council,1012096,St Mary'S Catholic Academy,587150,0000000455,09/12/2021,2971.67,0,MNGMT,Central Management,5555,Educational Support,Children'S Services
Blackpool Council,1131198,Permanent Futures Ltd,587151,246080,17/12/2021,1530,255,MNGMT,Central Management,3413,Consultants,Children'S Services
Blackpool Council,1019137,Steer Davies Gleave T/A Steer,587153,5633850,09/12/2021,8700,1450,PLBAAA,Development Control,0981,Professional Fees,Places
Blackpool Council,1010138,C Cabs,587155,07987,10/12/2021,1496,0,TRCHIL,Integrated Transport Children,2201,Contract Hire,Community & Env Services
Blackpool Council,1010138,C Cabs,587156,07971,10/12/2021,1122,0,TRCHIL,Integrated Transport Children,2201,Contract Hire,Community & Env Services
Blackpool Council,1116762,Dt Electrical (Uk) Ltd,587157,IN2446,09/12/2021,12295.3,2049.22,PJNA,New Features / Schemes - C & E,3308,Servicing,Places
Blackpool Council,1010138,C Cabs,587158,07972,10/12/2021,1900,0,TRCHIL,Integrated Transport Children,2201,Contract Hire,Community & Env Services
Blackpool Council,1010138,C Cabs,587159,07970,10/12/2021,1020,0,TRCHIL,Integrated Transport Children,2201,Contract Hire,Community & Env Services
Blackpool Council,1116762,Dt Electrical (Uk) Ltd,587160,IN2394,09/12/2021,14249.64,2374.94,PJNA,New Features / Schemes - C & E,3308,Servicing,Places
Blackpool Council,1010138,C Cabs,587161,07974,10/12/2021,1320,0,TRCHIL,Integrated Transport Children,2201,Contract Hire,Community & Env Services
Blackpool Council,1010138,C Cabs,587162,07976,10/12/2021,1050,0,TRCHIL,Integrated Transport Children,2201,Contract Hire,Community & Env Services
Blackpool Council,1010138,C Cabs,587163,07977,10/12/2021,1075,0,TRCHIL,Integrated Transport Children,2201,Contract Hire,Community & Env Services
Blackpool Council,1010138,C Cabs,587164,07978,10/12/2021,1056,0,TRCHIL,Integrated Transport Children,2201,Contract Hire,Community & Env Services
Blackpool Council,1010138,C Cabs,587165,07975,10/12/2021,616,0,TRCHIL,Integrated Transport Children,2201,Contract Hire,Community & Env Services
Blackpool Council,1010138,C Cabs,587166,07980,10/12/2021,1100,0,TRCHIL,Integrated Transport Children,2201,Contract Hire,Community & Env Services
Blackpool Council,1010138,C Cabs,587167,07982,10/12/2021,880,0,TRCHIL,Integrated Transport Children,2201,Contract Hire,Community & Env Services
Blackpool Council,1010138,C Cabs,587168,07979,10/12/2021,867,0,TRCHIL,Integrated Transport Children,2201,Contract Hire,Community & Env Services
Blackpool Council,1010138,C Cabs,587169,07981,10/12/2021,1012,0,TRCHIL,Integrated Transport Children,2201,Contract Hire,Community & Env Services
Blackpool Council,1010138,C Cabs,587170,07983,10/12/2021,1012,0,TRCHIL,Integrated Transport Children,2201,Contract Hire,Community & Env Services
Blackpool Council,1010138,C Cabs,587171,07984,10/12/2021,1100,0,TRCHIL,Integrated Transport Children,2201,Contract Hire,Community & Env Services
Blackpool Council,1010138,C Cabs,587172,07985,10/12/2021,850,0,TRCHIL,Integrated Transport Children,2201,Contract Hire,Community & Env Services
Blackpool Council,1010138,C Cabs,587173,07986,10/12/2021,1122,0,TRCHIL,Integrated Transport Children,2201,Contract Hire,Community & Env Services
Blackpool Council,1010138,C Cabs,587174,07988,10/12/2021,850,0,TRCHIL,Integrated Transport Children,2201,Contract Hire,Community & Env Services
Blackpool Council,1128555,Ricalex Ltd,587180,18-19ARINV1349,13/12/2021,2668.3,0,PVA,Other External Funding,3401,General Services,Places
Blackpool Council,1038738,Layton Primary School,587239,21-017,09/12/2021,7980,0,EP8011,Covid Winter Grant,3701,Grants,Children'S Services
Blackpool Council,1104384,Blackpool Aspire Academy,587249,7000000167,13/12/2021,14070,0,EP8011,Covid Winter Grant,3701,Grants,Children'S Services
Blackpool Council,1111234,Cbre Ltd,587250,50BCD00081762,17/12/2021,3600,600,CGICAF,G&P Prudential Schemes,6506,Consultants Fees,Capital - Commnctn & Regen
Blackpool Council,1006633,Technology Services Ltd T/A The Lock Shop,587251,33067,13/12/2021,1263.24,210.6,GATE,Alleygates,4501,Private Contractors,Community & Env Services
Blackpool Council,1006633,Technology Services Ltd T/A The Lock Shop,587252,33068,13/12/2021,857.82,143.05,GATE,Alleygates,4501,Private Contractors,Community & Env Services
Blackpool Council,1111234,Cbre Ltd,587253,50BCD00081763,17/12/2021,11910,1985,CGICAF,G&P Prudential Schemes,6506,Consultants Fees,Capital - Commnctn & Regen
Blackpool Council,1007058,Scanlite Visual Communications Ltd,587255,218195,14/12/2021,3840,640,PPA,Head Of Tourism Services,3401,General Services,Places
Blackpool Council,1066729,Equis Associates Limited,587257,12-83-PG-BC,14/12/2021,17400,2900,CTAHHI,Tramway Extention,6506,Consultants Fees,Capital - Commnctn & Regen
Blackpool Council,1044156,Pell Frischmann,587259,64017565,09/12/2021,6000,1000,CTABYA,Ltp Scheme 19/20,6501,Contract Payments,Capital - Commnctn & Regen
Blackpool Council,1005144,Blackpool Airport Operations Limited,587260,0000024320,10/12/2021,900,150,CGWBAA,Cbd Phase 2,6501,Contract Payments,Capital - Commnctn & Regen
Blackpool Council,1073709,Delphi Medical Limited,587261,SINV86/00000969,14/12/2021,2150,0,PUBH18,Stop Smoking Services & Interv,4501,Private Contractors,Public Health
Blackpool Council,1119587,Highway Workforce Ltd,587262,HWF2021-259,14/12/2021,5977.79,996.3,TRB,Maintenance & Works,4501,Private Contractors,Community & Env Services
Blackpool Council,1088121,Candy House,587263,BC002,10/12/2021,2050,0,PRF,Keeping Blackpool Alive,3401,General Services,Places
Blackpool Council,1112921,Kays Medical Ltd,587264,0000350802,17/12/2021,792,132,FK0013,Corporate Health,3065,Drugs & Medical Requisites,Chief Executive
Blackpool Council,1020550,Hays Specialist Recruitment Ltd,587266,1011820722,16/12/2021,1844.7,307.45,HJA,Growth,0791,Temp/Relief (Bureau Staff),Places
Blackpool Council,1116301,Wonde Ltd (Gdpr.Co.Uk),587267,SV-173198,09/12/2021,2490,0,EDDIV,Education Diversity,3606,Incidental Expenses,Children'S Services
Blackpool Council,1120588,G2 Recruitment Solutions,587269,91854,16/12/2021,840,140,HJA,Growth,0791,Temp/Relief (Bureau Staff),Places
Blackpool Council,1132707,Junction 4 Productions,587272,J4/001,10/12/2021,10000,0,PU2068,Mental Health Grant,4501,Private Contractors,Public Health
Blackpool Council,1009803,Corrys Limited,587273,1118,09/12/2021,564,94,PJW,Management - Places - Illumina,3401,General Services,Places
Blackpool Council,1102016,Critiqom Limited,587274,071635,09/12/2021,1682.17,280.36,FBBEA,"Income, Recovery & Debtors",3301,Printing,Resources
Blackpool Council,1057663,Wilde Recruitment Ltd,587275,39269,20/12/2021,552.38,92.06,CTAHHA,Tramway Emergency Works,6501,Contract Payments,Capital - Commnctn & Regen
Blackpool Council,1102016,Critiqom Limited,587276,071636,09/12/2021,7805.6,1300.93,FBBEA,"Income, Recovery & Debtors",3511,Postages,Resources
Blackpool Council,1103450,Blackpool Entertainment Company Limited,587277,INV005746,09/12/2021,877.2,97.47,PJW,Management - Places - Illumina,3401,General Services,Places
Blackpool Council,1106482,Charles Alexander T/A Everything Branded,587278,CAD053297,20/12/2021,636,106,PUBH24,Children'S Public Health,4501,Private Contractors,Public Health
Blackpool Council,1010138,C Cabs,587279,07973,10/12/2021,850,0,TRCHIL,Integrated Transport Children,2201,Contract Hire,Community & Env Services
Blackpool Council,1053261,Ad Systems (Uk) Limited,587280,INV-8874,13/12/2021,4056,676,CCTV,Cctv,1012,Premises Maint-Priv.Contractor,Community & Env Services
Blackpool Council,1040364,Conlon Construction Ltd,587281,11046,09/12/2021,179202.58,29867.1,CS01DH,A P S Capital Works,6501,Contract Payments,Capital - Adult Social Care
Blackpool Council,1040364,Conlon Construction Ltd,587281,11046,09/12/2021,4618.62,0,ZF0001,"Insurance,Dso,Banking",97B6,Retention Monies - Cap Trsfr,Total Reconciliations
Blackpool Council,1063778,Joanne Hirst,587282,1,09/12/2021,7700,0,MNGMT,Central Management,3413,Consultants,Children'S Services
Blackpool Council,1020550,Hays Specialist Recruitment Ltd,587285,1011786130,09/12/2021,1870.5,311.75,HJA,Growth,0791,Temp/Relief (Bureau Staff),Places
Blackpool Council,1063638,Pristine Hygiene,587288,4870,09/12/2021,383.1,63.85,APCBAA,Coopers Way,3408,Services To Clients,Adult & Families
Blackpool Council,1102434,Inform Cpi Limited,587289,AL63667,09/12/2021,5340,890,FC2011,Nndr Collection Costs,3401,General Services,Budgets Outside Cash Limits
Blackpool Council,1088020,Electricty North West (Const & Maint) Ltd,587291,798004334,09/12/2021,11522.27,1920.38,PJRA,Electrical Infra - Places,3308,Servicing,Places
Blackpool Council,1129391,The Jjeffect Cic,587292,INV-0043,09/12/2021,395,0,EDDIV,Education Diversity,3303,Games/Visits,Children'S Services
Blackpool Council,1073709,Delphi Medical Limited,587293,SINV86/00000968,14/12/2021,1720,0,PUBH18,Stop Smoking Services & Interv,4501,Private Contractors,Public Health
Blackpool Council,1073709,Delphi Medical Limited,587294,SINV86/00000967,14/12/2021,3010,0,PUBH04,Substance Misuse,4501,Private Contractors,Public Health
Blackpool Council,1073709,Delphi Medical Limited,587295,SINV86/00000966,14/12/2021,3010,0,PUBH04,Substance Misuse,4501,Private Contractors,Public Health
Blackpool Council,1073709,Delphi Medical Limited,587296,SINV86/00000965,14/12/2021,3010,0,PUBH04,Substance Misuse,4501,Private Contractors,Public Health
Blackpool Council,1073709,Delphi Medical Limited,587297,SINV86/00000970,14/12/2021,3010,0,PUBH18,Stop Smoking Services & Interv,4501,Private Contractors,Public Health
Blackpool Council,1011730,Metric Group Limited,587300,C60531,10/12/2021,16264.3,2710.72,PARADM,Parking Administration,2002,Repairs And Maintenance,Budgets Outside Cash Limits
Blackpool Council,1103692,Calico Enterprise Limited,587301,SINV20/00003798,20/12/2021,1512,252,FC1802,Social Fund - Client,5210,Community Care Support,Resources
Blackpool Council,1103692,Calico Enterprise Limited,587302,SINV20/00003799,20/12/2021,2312,155.67,FC1802,Social Fund - Client,5210,Community Care Support,Resources
Blackpool Council,1103450,Blackpool Entertainment Company Limited,587303,INV005751,09/12/2021,636,106,LNOUCL,Learning Outside The Classroom,1702,Hire Of Meeting Rooms,Children'S Services
Blackpool Council,1063597,Nga (National Governance Association),587308,94185,10/12/2021,896.66,0,ER3499,Governors' Services,3711,Subscriptions,Governance & Partnerships
Blackpool Council,1117174,Ppl Prs Ltd,587310,SIN1525905,10/12/2021,345.98,57.66,PJQ,Brilliance,3532,Comp-Running & License Costs,Places
Blackpool Council,1023270,Creative Education Limited,587312,INV-16214,16/12/2021,1440,240,EDDIV,Education Diversity,3605,Confs & Short Courses,Children'S Services
Blackpool Council,1131360,Alex Williamson Illustration Ltd,587314,AW18408,10/12/2021,6000,1000,CGTACA,Museum,6517,Equipment,Capital - Commnctn & Regen
Blackpool Council,1103692,Calico Enterprise Limited,587317,SINV20/00003780,17/12/2021,2628,438,DOMPFI,Domestic Waste & Waste Pfi,4501,Private Contractors,Community & Env Services
Blackpool Council,1028228,Danfo (Uk) Ltd,587318,0000006072,10/12/2021,48744,8124,PUBCON,Public Conveniences,4501,Private Contractors,Community & Env Services
Blackpool Council,1096902,Greens Environmental Limited,587320,115269,10/12/2021,456,76,PRF,Keeping Blackpool Alive,3401,General Services,Places
Blackpool Council,1096902,Greens Environmental Limited,587321,115323,10/12/2021,456,76,PRF,Keeping Blackpool Alive,3401,General Services,Places
Blackpool Council,1057573,Bwb Consulting Limited,587322,521,17/12/2021,4200,700,CGICAD,Enterprise Zone,6506,Consultants Fees,Capital - Commnctn & Regen
Blackpool Council,1123821,Jr Consulting,587323,BBC21/11,14/12/2021,3150,0,PU0111,Contain Outbreak Mgmnt Covid,4501,Private Contractors,Public Health
Blackpool Council,1015228,Virgin Media Payments Limited,587333,806981-227,14/12/2021,404.17,67.36,FGAA,Ict Corporate Services,3521,Landline - Line Rental,Resources
Blackpool Council,1114704,Morson Human Resources Ltd,587334,HS386597,14/12/2021,2310,385,CTAHHI,Tramway Extention,6506,Consultants Fees,Capital - Commnctn & Regen
Blackpool Council,1008525,Kingswood Office Supplies Limited,587335,419754,17/12/2021,428.04,71.34,AER,Dual Use Properties,3302,Stationery,Resources
Blackpool Council,1012071,Bethell Construction Limited,587337,17590,10/12/2021,1443.86,240.64,ENGINE,Engineering,1012,Premises Maint-Priv.Contractor,Community & Env Services
Blackpool Council,1006292,Vodafone Corporate Ltd,587338,PT86356,10/12/2021,3805.53,634.25,FGAA,Ict Corporate Services,3531,Computer-H'Ware Purchase,Resources
Blackpool Council,1012071,Bethell Construction Limited,587339,17592,10/12/2021,1970.36,328.39,ENGINE,Engineering,1012,Premises Maint-Priv.Contractor,Community & Env Services
Blackpool Council,1012071,Bethell Construction Limited,587340,17594,10/12/2021,1752.56,292.09,ENGINE,Engineering,1012,Premises Maint-Priv.Contractor,Community & Env Services
Blackpool Council,1012071,Bethell Construction Limited,587341,17591,10/12/2021,1594.49,265.75,ENGINE,Engineering,1012,Premises Maint-Priv.Contractor,Community & Env Services
Blackpool Council,1012071,Bethell Construction Limited,587342,17596,10/12/2021,877.21,146.2,ENGINE,Engineering,1012,Premises Maint-Priv.Contractor,Community & Env Services
Blackpool Council,1012071,Bethell Construction Limited,587343,17593,10/12/2021,1457.41,242.9,ENGINE,Engineering,1012,Premises Maint-Priv.Contractor,Community & Env Services
Blackpool Council,1012071,Bethell Construction Limited,587344,17599,10/12/2021,14033.92,2338.99,ENGINE,Engineering,1012,Premises Maint-Priv.Contractor,Community & Env Services
Blackpool Council,1012071,Bethell Construction Limited,587345,17597,10/12/2021,1502.56,250.43,ENGINE,Engineering,1012,Premises Maint-Priv.Contractor,Community & Env Services
Blackpool Council,1012071,Bethell Construction Limited,587347,17598,10/12/2021,1250.08,208.35,ENGINE,Engineering,1012,Premises Maint-Priv.Contractor,Community & Env Services
Blackpool Council,1072848,Peter Rhodes,587348,01/001NOV21,20/12/2021,1975.6,0,TRCHIL,Integrated Transport Children,2201,Contract Hire,Community & Env Services
Blackpool Council,1072848,Peter Rhodes,587349,01/017NOV,20/12/2021,1958,0,TRCHIL,Integrated Transport Children,2201,Contract Hire,Community & Env Services
Blackpool Council,1006944,Siemens Financial Services Ltd,587351,244/22/0042949,22/12/2021,2308,384.66,APFBAB,Vitaline,4501,Private Contractors,Adult & Families
Blackpool Council,1006944,Siemens Financial Services Ltd,587353,244/22/0042950,22/12/2021,1822.5,303.75,APFBAB,Vitaline,4501,Private Contractors,Adult & Families
Blackpool Council,1006944,Siemens Financial Services Ltd,587354,244/22/0042951,17/12/2021,2396.34,399.39,APFBAB,Vitaline,4501,Private Contractors,Adult & Families
Blackpool Council,1006944,Siemens Financial Services Ltd,587355,244/21/0263787,10/12/2021,3868.56,644.75,APFBAB,Vitaline,4501,Private Contractors,Adult & Families
Blackpool Council,1006944,Siemens Financial Services Ltd,587356,244/22/0042277,17/12/2021,1246.49,207.74,APFBAB,Vitaline,4501,Private Contractors,Adult & Families
Blackpool Council,1006944,Siemens Financial Services Ltd,587357,244/22/0042275,17/12/2021,481.72,80.28,APFBAB,Vitaline,4501,Private Contractors,Adult & Families
Blackpool Council,1090902,Anderson & Sons Contracting & Turf Care,587358,253,10/12/2021,13300,0,TRB,Maintenance & Works,4501,Private Contractors,Community & Env Services
Blackpool Council,1026811,Stannah Lift Services Ltd,587360,1085373668,16/12/2021,3157,0,CX4002,Disabled Facilities Grants,6501,Contract Payments,Capital - Adult Social Care
Blackpool Council,1026811,Stannah Lift Services Ltd,587361,1085373699,14/12/2021,2347,0,CX4002,Disabled Facilities Grants,6501,Contract Payments,Capital - Adult Social Care
Blackpool Council,1026811,Stannah Lift Services Ltd,587362,1085375906,17/12/2021,2578,0,CX4002,Disabled Facilities Grants,6501,Contract Payments,Capital - Adult Social Care
Blackpool Council,1011675,Bambers Remedial Contractors Limited,587364,17280,13/12/2021,9362.91,0,CXAAA,Local Authority Dwellings,6501,Contract Payments,Capital - Chief Executive
Blackpool Council,1011675,Bambers Remedial Contractors Limited,587365,17281,13/12/2021,6787,0,CX4002,Disabled Facilities Grants,6501,Contract Payments,Capital - Adult Social Care
Blackpool Council,1011675,Bambers Remedial Contractors Limited,587366,17282,13/12/2021,6177.97,0,CXAAA,Local Authority Dwellings,6501,Contract Payments,Capital - Chief Executive
Blackpool Council,1011675,Bambers Remedial Contractors Limited,587367,17283,13/12/2021,5990.32,0,CXAAA,Local Authority Dwellings,6501,Contract Payments,Capital - Chief Executive
Blackpool Council,1044156,Pell Frischmann,587368,64019357,14/12/2021,5855.04,975.84,CTAHHI,Tramway Extention,6506,Consultants Fees,Capital - Commnctn & Regen
Blackpool Council,1044156,Pell Frischmann,587370,64019358,14/12/2021,2278.27,379.71,CGICAD,Enterprise Zone,6506,Consultants Fees,Capital - Commnctn & Regen
Blackpool Council,1008722,J.A. Jones And Sons (Fac036 Payment),587375,9665714,14/12/2021,3276,546,PRKDEV,Parks Development,3072,Bedding,Community & Env Services
Blackpool Council,1075547,Bauer Radio Ltd,587376,8051957,17/12/2021,2517.43,419.57,PBF,Communications,3315,Marketing,Places
Blackpool Council,1086714,Liveasy Ltd,587377,BP0148ARC,10/12/2021,758.4,126.4,APDBBB,Arc,3066,Personal Needs Of Clients,Adult & Families
Blackpool Council,1026738,Cassidy + Ashton,587444,18912,17/12/2021,15780,2630,CGICAD,Enterprise Zone,6506,Consultants Fees,Capital - Commnctn & Regen
Blackpool Council,1006099,Blackpool Teaching Hospitals Nhs Ft,587449,1110059570,10/12/2021,152160,25360,PUBH18,Stop Smoking Services & Interv,4501,Private Contractors,Public Health
Blackpool Council,1122721,Wrexham Self Storage Ltd T/A Greens,587457,S061292,10/12/2021,554.4,92.4,PRF,Keeping Blackpool Alive,3401,General Services,Places
Blackpool Council,1040364,Conlon Construction Ltd,587460,11055,10/12/2021,367665.83,61277.64,CGTACA,Museum,6501,Contract Payments,Capital - Commnctn & Regen
Blackpool Council,1040364,Conlon Construction Ltd,587460,11055,10/12/2021,9475.92,0,ZF0001,"Insurance,Dso,Banking",97B6,Retention Monies - Cap Trsfr,Total Reconciliations
Blackpool Council,1113243,Mclaughlin & Harvey Ltd,587462,24171,10/12/2021,1542325.13,257054.19,CGTBBB,Conference Centre,6501,Contract Payments,Capital - Commnctn & Regen
Blackpool Council,1113243,Mclaughlin & Harvey Ltd,587462,24171,10/12/2021,39750.65,0,ZF0001,"Insurance,Dso,Banking",97B6,Retention Monies - Cap Trsfr,Total Reconciliations
Blackpool Council,1091532,Westcliff Primary Academy,587466,4000000145,10/12/2021,1080,0,EP8011,Covid Winter Grant,3701,Grants,Children'S Services
Blackpool Council,1125314,S Swallow -New Venture Security Ltd T/A Nvs,587467,4165,10/12/2021,4598.1,766.35,PRB,Events,3401,General Services,Places
Blackpool Council,1116884,Stephen Cheatley Photography,587468,029,10/12/2021,500,0,PRL,Marketing,3822,Photography,Places
Blackpool Council,1131096,Abl Planning And Development Ltd,587470,2000807/144,16/12/2021,340,0,PLBAAA,Development Control,4501,Private Contractors,Places
Blackpool Council,1027465,Ove Arup & Partners Limited,587471,88-2111076,17/12/2021,19896,3316,PLBAAA,Development Control,0981,Professional Fees,Places
Blackpool Council,1006944,Siemens Financial Services Ltd,587472,244/22/0042276,17/12/2021,390.99,65.16,APFBAB,Vitaline,4501,Private Contractors,Adult & Families
Blackpool Council,1026738,Cassidy + Ashton,587473,18799,13/12/2021,9600,1600,CGICAD,Enterprise Zone,6506,Consultants Fees,Capital - Commnctn & Regen
Blackpool Council,1132073,Product Source Group Limited,587476,208225,13/12/2021,1425,237.5,PRC,Visitor Services,3808,Souvenirs & Gifts,Places
Blackpool Council,1103450,Blackpool Entertainment Company Limited,587478,INV005613,17/12/2021,294.6,49.1,AHHBA,Blackpool Museum,3801,Other Expenses,Places
Blackpool Council,1087234,Aitch Tools & Fasteners Ltd,587486,058174,10/12/2021,275,0,ZM0018,Highways & Engineering,9773,Orders Received Not Invoiced,Blackpool Services
Blackpool Council,1087234,Aitch Tools & Fasteners Ltd,587486,058174,10/12/2021,330,55,ZM0018,Highways & Engineering,9511A,Stocks Efin,Blackpool Services
Blackpool Council,1087234,Aitch Tools & Fasteners Ltd,587489,058177,10/12/2021,637.2,0,ZM0018,Highways & Engineering,9773,Orders Received Not Invoiced,Blackpool Services
Blackpool Council,1087234,Aitch Tools & Fasteners Ltd,587489,058177,10/12/2021,1019.52,169.92,ZM0018,Highways & Engineering,9511A,Stocks Efin,Blackpool Services
Blackpool Council,1132259,Forever Manchester Trading Ltd,587490,230,14/12/2021,3768,628,CORDEV,Corporate Delivery Unit,3801,Other Expenses,Chief Executive
Blackpool Council,1013011,Tennant Uk Cleaning Solutions Ltd,587491,963974938,17/12/2021,368.16,61.36,SCLEAN,Street Cleaning,4501,Private Contractors,Community & Env Services
Blackpool Council,1132563,Fenceline Barriers & Trackway Ltd,587493,INV-0218,17/12/2021,1677,279.5,PJNA,New Features / Schemes - C & E,1012,Premises Maint-Priv.Contractor,Places
Blackpool Council,1006099,Blackpool Teaching Hospitals Nhs Ft,587495,BQGWY/00000034,10/12/2021,4110.64,195.75,PUBH18,Stop Smoking Services & Interv,4501,Private Contractors,Public Health
Blackpool Council,1126236,New Concept Security Ltd,587499,16029,14/12/2021,11803.98,1967.34,SECURE,Security Services,3401,General Services,Community & Env Services
Blackpool Council,1103450,Blackpool Entertainment Company Limited,587505,INV005769,13/12/2021,1040,173.33,FMAK,Acquisitions 9/10,1301,Rent & Hire Of Premises,Places
Blackpool Council,1121796,Smart Tech Security,587506,10073,13/12/2021,720,120,CGTAAA,Leisure Assets,6501,Contract Payments,Capital - Commnctn & Regen
Blackpool Council,1112477,Big Wave Media (Fac060),587507,66584,17/12/2021,4182.25,697.04,LEISUR,Leisure Management,3801,Other Expenses,Community & Env Services
Blackpool Council,1094010,Quality Childcare Ltd T/A Little Rainbows,587516,RAIN0222,10/12/2021,450,0,ALEARN,Adult Learning,0917,Other Exps,Places
Blackpool Council,1128443,Andrea Howe,587517,AHBC008,14/12/2021,2880,0,LH2092,Lad 2 Funding,4501,Private Contractors,Public Health
Blackpool Council,1117705,Rhea Projects Ltd,587520,LAD2-0030,10/12/2021,4830,805,LH2092,Lad 2 Funding,4501,Private Contractors,Public Health
Blackpool Council,1117705,Rhea Projects Ltd,587521,LAD2-0029,10/12/2021,52500,8750,LH2092,Lad 2 Funding,4501,Private Contractors,Public Health
Blackpool Council,1117705,Rhea Projects Ltd,587522,LAD2-0028,10/12/2021,47955.47,2283.59,LH2092,Lad 2 Funding,4501,Private Contractors,Public Health
Blackpool Council,1117705,Rhea Projects Ltd,587523,LAD2-0027,10/12/2021,52889.16,2518.53,LH2092,Lad 2 Funding,4501,Private Contractors,Public Health
Blackpool Council,1117705,Rhea Projects Ltd,587524,LAD2-0026,10/12/2021,2898,483,LH2092,Lad 2 Funding,4501,Private Contractors,Public Health
Blackpool Council,1117705,Rhea Projects Ltd,587525,LAD2-0025,10/12/2021,5796,966,LH2092,Lad 2 Funding,4501,Private Contractors,Public Health
Blackpool Council,1117705,Rhea Projects Ltd,587526,LAD2-0024,10/12/2021,57365.44,2731.69,LH2092,Lad 2 Funding,4501,Private Contractors,Public Health
Blackpool Council,1117705,Rhea Projects Ltd,587527,LAD2-0023,10/12/2021,46596.38,2218.88,LH2092,Lad 2 Funding,4501,Private Contractors,Public Health
Blackpool Council,1017722,Terrys Cut Price Carpets Ltd,587534,1543,14/12/2021,1134,189,FC1802,Social Fund - Client,5210,Community Care Support,Resources
Blackpool Council,1017722,Terrys Cut Price Carpets Ltd,587535,1573,14/12/2021,1050,175,FC1802,Social Fund - Client,5507,Personal,Resources
Blackpool Council,1086456,Adelaide Street Family Practice,587538,LYRL/00000138,10/12/2021,330,0,PUBH18,Stop Smoking Services & Interv,4501,Private Contractors,Public Health
Blackpool Council,1086000,Sr Supply Chain Consultants Ltd,587543,INV-3398,17/12/2021,3980,550,FB0001,Business Services Team,0911,Training Expenses,Resources
Blackpool Council,1120847,REDACTED PERSONAL DATA,587544,08,16/12/2021,423.97,0,ALEARN,Adult Learning,0917,Other Exps,Places
Blackpool Council,1128374,Tower Cinema (Blackpool) Ltd,587547,INV-0003,10/12/2021,64026.57,0,CGICAF,G&P Prudential Schemes,6501,Contract Payments,Capital - Commnctn & Regen
Blackpool Council,1006940,Smiths Equipment Hire Ltd - Smiths Training,587554,VI2-994536,13/12/2021,2436,116,PJNB,Lightpool,3006,Hire Of Equipment,Places
Blackpool Council,1006940,Smiths Equipment Hire Ltd - Smiths Training,587555,V03-99I366,13/12/2021,607.2,101.2,PJNA,New Features / Schemes - C & E,3006,Hire Of Equipment,Places
Blackpool Council,1132018,Khites Limited,587556,383,13/12/2021,5395.5,899.25,CGTCCD,Heritage Action Zone,6501,Contract Payments,Capital - Commnctn & Regen
Blackpool Council,1006940,Smiths Equipment Hire Ltd - Smiths Training,587650,V12-991371,13/12/2021,295.68,49.28,PJNB,Lightpool,3006,Hire Of Equipment,Places
Blackpool Council,1006940,Smiths Equipment Hire Ltd - Smiths Training,587651,V12-991370,13/12/2021,3273.6,545.6,PJNB,Lightpool,3308,Servicing,Places
Blackpool Council,1006940,Smiths Equipment Hire Ltd - Smiths Training,587654,V07-991367,13/12/2021,1610.4,268.4,PJNB,Lightpool,3006,Hire Of Equipment,Places
Blackpool Council,1006940,Smiths Equipment Hire Ltd - Smiths Training,587655,V07-991368,13/12/2021,792.6,132.1,PJNA,New Features / Schemes - C & E,3041,Other Materials,Places
Blackpool Council,1103450,Blackpool Entertainment Company Limited,587659,INV005756,14/12/2021,1050,175,PTA,Economic Development,3315,Marketing,Places
Blackpool Council,1011923,Rp Tyson Construction Ltd,587661,IN3397,13/12/2021,349404.04,0,CXC11,Site Development,6501,Contract Payments,Capital - Chief Executive
Blackpool Council,1011923,Rp Tyson Construction Ltd,587661,IN3397,13/12/2021,10806.31,0,ZH0001,Housing Revenue Account,97B6,Retention Monies - Cap Trsfr,Housing Revenue Account
Blackpool Council,1006471,T-Print Ltd,587664,0000442024,15/12/2021,1737.6,289.6,PRC,Visitor Services,3808,Souvenirs & Gifts,Places
Blackpool Council,1011923,Rp Tyson Construction Ltd,587666,IN3395,13/12/2021,178332.79,0,CXC11,Site Development,6501,Contract Payments,Capital - Chief Executive
Blackpool Council,1011923,Rp Tyson Construction Ltd,587666,IN3395,13/12/2021,5515.45,0,ZH0001,Housing Revenue Account,97B6,Retention Monies - Cap Trsfr,Housing Revenue Account
Blackpool Council,1118568,Supply Chain Coordination Ltd (Sccl),587683,1122153265,16/12/2021,273.96,45.66,EP8007,Tic Maternity Pathway,3401,General Services,Tic Maternity Pathway
Blackpool Council,1121122,Angela Latham Psychology Services Ltd,587685,120377,17/12/2021,350,0,BSTPRJ,Better Start Projects,3401,General Services,Better Start Projects
Blackpool Council,1116186,The Grove Media Ltd,587686,726044,17/12/2021,722.4,120.4,BSTPRJ,Better Start Projects,3401,General Services,Better Start Projects
Blackpool Council,1116186,The Grove Media Ltd,587687,726042,17/12/2021,59287.2,9881.2,BSTPRJ,Better Start Projects,3401,General Services,Better Start Projects
Blackpool Council,1131037,Technology One,587692,U004315,13/12/2021,15346.91,2557.82,CGRESO,Resources Schemes,6526,I.T. Software Purchase,Capital - Resources
Blackpool Council,1061221,Tradition (Uk) Ltd,587693,TLB/LN/BKPL-L/DEPOT/11/2021,17/12/2021,2479.45,0,FH0001,Treasury Management,3401,General Services,Budgets Outside Cash Limits
Blackpool Council,1129391,The Jjeffect Cic,587694,INV-0039,13/12/2021,395,0,PYSA,Community Safety,3313,General Expenses,Community & Env Services
Blackpool Council,1011269,Fylde Council,587696,73279154,16/12/2021,49754,0,CPAABK,Sand Dunes Env Wrk Ph105,6506,Consultants Fees,Capital - Comm & Environ
Blackpool Council,1011269,Fylde Council,587697,73279168,16/12/2021,47825,0,CPAABK,Sand Dunes Env Wrk Ph105,6506,Consultants Fees,Capital - Comm & Environ
Blackpool Council,1132871,Trapeze Media,587701,INV-0447,16/12/2021,4050,675,PPA,Head Of Tourism Services,3401,General Services,Places
Blackpool Council,1119383,Lcrig,587702,1197,13/12/2021,2639.33,439.89,TRB,Maintenance & Works,4501,Private Contractors,Community & Env Services
Blackpool Council,1132745,Thistlethwaite Fencing Contractors Ltd,587703,1172,15/12/2021,28068,4678,CGTBBB,Conference Centre,6501,Contract Payments,Capital - Commnctn & Regen
Blackpool Council,1123252,Outdoor Lighting Solutions,587704,OLS046,17/12/2021,280,0,FL1259,Pfi Management Costs,3413,Consultants,Community & Env Services
Blackpool Council,1112477,Big Wave Media (Fac060),587708,66477,14/12/2021,4697.22,782.87,LEISUR,Leisure Management,3801,Other Expenses,Community & Env Services
Blackpool Council,1115480,Seating Matters Ltd,587748,46668,20/12/2021,2400,400,MTE,Undefined Age Group,5401,Aids To Daily Living,Adult & Families
Blackpool Council,1019678,Smirthwaite Ltd,587749,192950,20/12/2021,742.8,123.8,CWAN,Children With Additional Needs,5401,Aids To Daily Living,Children'S Services
Blackpool Council,1099262,Nhs Blackpool Ccg,587752,7011219467,14/12/2021,684888,0,LM9027,Bcf Control,5101,Transfer Payments - General,Bcf General And Control
Blackpool Council,1119533,Schuchmann Llp,587753,5216,20/12/2021,849.6,141.6,MTE,Undefined Age Group,5401,Aids To Daily Living,Adult & Families
Blackpool Council,1109913,Tough Furniture Ltd,587754,23004,20/12/2021,698.4,116.4,MTE,Undefined Age Group,5401,Aids To Daily Living,Adult & Families
Blackpool Council,1101124,South Shore Academy,587756,SSSI 50,14/12/2021,13500,0,EP8011,Covid Winter Grant,3701,Grants,Children'S Services
Blackpool Council,1099469,Blackpool Gateway Academy,587757,5000000078,14/12/2021,7080,0,EP8011,Covid Winter Grant,3701,Grants,Children'S Services
Blackpool Council,1116850,Armfield Academy,587759,9500000073,14/12/2021,8760,0,EP8011,Covid Winter Grant,3701,Grants,Children'S Services
Blackpool Council,1098193,Westminster Primary Academy,587761,6000000098,14/12/2021,8700,0,EP8011,Covid Winter Grant,3701,Grants,Children'S Services
Blackpool Council,1107790,Taylek Ltd,587765,INV-20432,14/12/2021,830.2,138.36,PJRA,Electrical Infra - Places,3041,Other Materials,Places
Blackpool Council,1107790,Taylek Ltd,587770,INV-20520,17/12/2021,334.56,55.76,PJRA,Electrical Infra - Places,3041,Other Materials,Places
Blackpool Council,1114797,Licence Check Limited,587771,18787,14/12/2021,2100,350,PYLA,Licencing,3424,Registration & Inspection,Community & Env Services
Blackpool Council,1107790,Taylek Ltd,587773,INV-20470,16/12/2021,287.28,47.88,PJRA,Electrical Infra - Places,3041,Other Materials,Places
Blackpool Council,1099703,Anchorsholme Academy,587774,APASI17,14/12/2021,3270,0,EP8011,Covid Winter Grant,3701,Grants,Children'S Services
Blackpool Council,1010386,Montgomery Academy,587775,3000000195,14/12/2021,12210,0,EP8011,Covid Winter Grant,3701,Grants,Children'S Services
Blackpool Council,1120062,Nexus Planning Limited,587777,NP00009342,17/12/2021,1788,298,PKAAA,Head Of Planning & Trans,3413,Consultants,Places
Blackpool Council,1071432,Cpi - Crisis Preventions Insititute,587778,CUK0029523,14/12/2021,5136,856,EDDIV,Education Diversity,3605,Confs & Short Courses,Children'S Services
Blackpool Council,1118699,Enveco Blackpool Waste Services Ltd,587782,30163980,14/12/2021,1204.82,200.8,EDDIV,Education Diversity,3606,Incidental Expenses,Children'S Services
Blackpool Council,1088636,Tarmac Building Products Ltd,587783,SC00110875,16/12/2021,1074,0,ZM0018,Highways & Engineering,9511A,Stocks Efin,Blackpool Services
Blackpool Council,1000009,Blackpool & The Fylde College,587784,S0022748,16/12/2021,261.6,43.6,CGICAD,Enterprise Zone,6527,Marketing,Capital - Commnctn & Regen
Blackpool Council,1132018,Khites Limited,587785,384,14/12/2021,7195.5,1199.25,CGTCCD,Heritage Action Zone,6501,Contract Payments,Capital - Commnctn & Regen
Blackpool Council,1102328,Revoe Learning Academy,587791,RVLSI4,14/12/2021,6330,0,EP8011,Covid Winter Grant,3701,Grants,Children'S Services
Blackpool Council,1119587,Highway Workforce Ltd,587792,HWF 2021-265,17/12/2021,5437.68,906.28,TRB,Maintenance & Works,4501,Private Contractors,Community & Env Services
Blackpool Council,1006099,Blackpool Teaching Hospitals Nhs Ft,587803,1110059674,16/12/2021,55255.2,9209.2,PUBH18,Stop Smoking Services & Interv,4501,Private Contractors,Public Health
Blackpool Council,1006099,Blackpool Teaching Hospitals Nhs Ft,587804,1110059673,16/12/2021,55255.2,9209.2,PUBH18,Stop Smoking Services & Interv,4501,Private Contractors,Public Health
Blackpool Council,1006099,Blackpool Teaching Hospitals Nhs Ft,587805,1110059571,16/12/2021,110510.4,18418.4,PUBH18,Stop Smoking Services & Interv,4501,Private Contractors,Public Health
Blackpool Council,1010138,C Cabs,587809,07969,20/12/2021,630,0,TRCHIL,Integrated Transport Children,2201,Contract Hire,Community & Env Services
Blackpool Council,1040364,Conlon Construction Ltd,587810,11034,14/12/2021,254659.02,42443.17,CGICAD,Enterprise Zone,6501,Contract Payments,Capital - Commnctn & Regen
Blackpool Council,1040364,Conlon Construction Ltd,587810,11034,14/12/2021,11169.25,0,ZF0001,"Insurance,Dso,Banking",97B6,Retention Monies - Cap Trsfr,Total Reconciliations
Blackpool Council,1096150,Norbreck Primary Academy,587814,NPA.FSM021,15/12/2021,3510,0,EP8011,Covid Winter Grant,3701,Grants,Children'S Services
Blackpool Council,1121144,J Alderson Ltd T/A Leeming Associates,587818,INV-3207,15/12/2021,3300,550,CGTCCD,Heritage Action Zone,6501,Contract Payments,Capital - Commnctn & Regen
Blackpool Council,1121144,J Alderson Ltd T/A Leeming Associates,587821,INV-3222,15/12/2021,3900,650,CGTCCD,Heritage Action Zone,6501,Contract Payments,Capital - Commnctn & Regen
Blackpool Council,1121144,J Alderson Ltd T/A Leeming Associates,587822,INV-3220,15/12/2021,6188.86,1031.48,CGTCCD,Heritage Action Zone,6501,Contract Payments,Capital - Commnctn & Regen
Blackpool Council,1121144,J Alderson Ltd T/A Leeming Associates,587823,INV-3221,15/12/2021,2940,490,CGTCCD,Heritage Action Zone,6501,Contract Payments,Capital - Commnctn & Regen
Blackpool Council,1121144,J Alderson Ltd T/A Leeming Associates,587824,INV-3219,15/12/2021,4010.4,668.4,CGTCCD,Heritage Action Zone,6501,Contract Payments,Capital - Commnctn & Regen
Blackpool Council,1011675,Bambers Remedial Contractors Limited,587825,17242,15/12/2021,43578.48,7263.08,CGTCCD,Heritage Action Zone,6501,Contract Payments,Capital - Commnctn & Regen
Blackpool Council,1011675,Bambers Remedial Contractors Limited,587826,17224,15/12/2021,50904.48,8484.08,CGTCCD,Heritage Action Zone,6501,Contract Payments,Capital - Commnctn & Regen
Blackpool Council,1011675,Bambers Remedial Contractors Limited,587827,17012,15/12/2021,4962,827,CGTCCD,Heritage Action Zone,6501,Contract Payments,Capital - Commnctn & Regen
Blackpool Council,1090795,Aunty Social,587828,2021-1BCM,15/12/2021,3223.23,0,CGTCCD,Heritage Action Zone,6501,Contract Payments,Capital - Commnctn & Regen
Blackpool Council,1119864,Lorraine Petersen Educational Consultancy,587831,779,15/12/2021,1100,0,MNGMT,Central Management,3413,Consultants,Children'S Services
Blackpool Council,1131198,Permanent Futures Ltd,587832,246278,20/12/2021,1530,255,MNGMT,Central Management,3413,Consultants,Children'S Services
Blackpool Council,1008235,Lucy Faithfull Foundation,587833,27669,17/12/2021,4520.75,0,JEA,Senior Management,5507,Personal,Children'S Services
Blackpool Council,1009524,E K Motor Factors Ltd,587836,BLM1830587,15/12/2021,360,0,ZM0018,Highways & Engineering,9773,Orders Received Not Invoiced,Blackpool Services
Blackpool Council,1009524,E K Motor Factors Ltd,587836,BLM1830587,15/12/2021,432,72,ZM0018,Highways & Engineering,9511A,Stocks Efin,Blackpool Services
Blackpool Council,1013064,Tarmac Lafarge Trading Limited,587837,9044518033,17/12/2021,503.31,83.88,ENGINE,Engineering,3041,Other Materials,Community & Env Services
Blackpool Council,1013064,Tarmac Lafarge Trading Limited,587838,9044518034,17/12/2021,1281.84,213.64,ENGINE,Engineering,3041,Other Materials,Community & Env Services
Blackpool Council,1013064,Tarmac Lafarge Trading Limited,587839,9044529894,17/12/2021,872.41,145.4,ENGINE,Engineering,3041,Other Materials,Community & Env Services
Blackpool Council,1013064,Tarmac Lafarge Trading Limited,587840,9044556793,20/12/2021,660.28,110.04,ENGINE,Engineering,3041,Other Materials,Community & Env Services
Blackpool Council,1013064,Tarmac Lafarge Trading Limited,587841,9044529893,17/12/2021,846.18,141.03,ENGINE,Engineering,3041,Other Materials,Community & Env Services
Blackpool Council,1074052,Brent Stevenson Memorials Ltd,587842,23470,16/12/2021,417.6,69.6,CEMCRE,Cems Crems Etc,3454,Remove And Refix Memorials,Governance & Partnerships
Blackpool Council,1027109,Poulton Van And Car Sales Ltd,587844,2493,15/12/2021,22997,3787,CVMU,Cvmu,2001,Purchases,Community & Env Services
Blackpool Council,1027109,Poulton Van And Car Sales Ltd,587846,2501,15/12/2021,22157,3647,CVMU,Cvmu,2001,Purchases,Community & Env Services
Blackpool Council,1094424,The Networking People,587847,SI110334,17/12/2021,3635.36,605.89,FGAA,Ict Corporate Services,3527,Communication Lines,Resources
Blackpool Council,1018184,Blackpool Skip Hire Ltd,587848,035802,15/12/2021,360,60,SCHEME,Highways Schemes,1012,Premises Maint-Priv.Contractor,Community & Env Services
Blackpool Council,1013064,Tarmac Lafarge Trading Limited,587850,9044529891,17/12/2021,1119.19,186.53,ENGINE,Engineering,3041,Other Materials,Community & Env Services
Blackpool Council,1096902,Greens Environmental Limited,587940,115464,16/12/2021,684,114,PRF,Keeping Blackpool Alive,3401,General Services,Places
Blackpool Council,1116244,Linda Clegg Consulting Ltd,587941,032,17/12/2021,2700,450,JEA,Senior Management,3401,General Services,Children'S Services
Blackpool Council,1090774,Richardson Traction Limited,587943,22231,15/12/2021,3150,525,PJNA,New Features / Schemes - C & E,3006,Hire Of Equipment,Places
Blackpool Council,1090774,Richardson Traction Limited,587944,22271,15/12/2021,4800,800,PJNB,Lightpool,2211,Casual Hire,Places
Blackpool Council,1090774,Richardson Traction Limited,587945,22141,15/12/2021,1560,260,PJNA,New Features / Schemes - C & E,3041,Other Materials,Places
Blackpool Council,1128565,Calder Training + Consultancy Ltd,587947,816,16/12/2021,1020,170,JA0505,Children'S Training,3426,Course Fees,Children'S Services
Blackpool Council,1071702,Links Signs & Graphics Ltd,587948,LSGI30879,17/12/2021,16123.2,2687.2,BEACHP,Beach Patrol,3010,Safety Equipment,Places
Blackpool Council,1128398,Tg Building Services,587950,09/188,17/12/2021,357.6,59.6,HJA,Growth,2002,Repairs And Maintenance,Places
Blackpool Council,1123432,Thames Primary Academy,587954,THASI33,15/12/2021,6900,0,EP8011,Covid Winter Grant,3701,Grants,Children'S Services
Blackpool Council,1128565,Calder Training + Consultancy Ltd,587963,835,15/12/2021,1020,170,JA0505,Children'S Training,3426,Course Fees,Children'S Services
Blackpool Council,1006940,Smiths Equipment Hire Ltd - Smiths Training,587965,V07-991369,15/12/2021,630.33,105.05,PJNA,New Features / Schemes - C & E,6273,Miscellaneous,Places
Blackpool Council,1114981,John Sisk & Son (Holdings) Ltd,587973,21120026,15/12/2021,138401.81,23066.97,CTAHHI,Tramway Extention,6501,Contract Payments,Capital - Commnctn & Regen
Blackpool Council,1114981,John Sisk & Son (Holdings) Ltd,587973,21120026,15/12/2021,6070.25,0,ZF0001,"Insurance,Dso,Banking",97B6,Retention Monies - Cap Trsfr,Total Reconciliations
Blackpool Council,1040364,Conlon Construction Ltd,587974,11050,15/12/2021,233975.24,38995.87,CGICAD,Enterprise Zone,6501,Contract Payments,Capital - Commnctn & Regen
Blackpool Council,1040364,Conlon Construction Ltd,587974,11050,15/12/2021,10262.08,0,ZF0001,"Insurance,Dso,Banking",97B6,Retention Monies - Cap Trsfr,Total Reconciliations
Blackpool Council,1011714,Michael Hope Haulage Limited,587977,001556,15/12/2021,2160,360,SCHEME,Highways Schemes,1012,Premises Maint-Priv.Contractor,Community & Env Services
Blackpool Council,1091773,Highfield Awarding Body For Comp. Ltd,587983,0008145828,16/12/2021,2478,413,CATERG,Catering Services,3605,Confs & Short Courses,Community & Env Services
Blackpool Council,1093145,On A Roll Sandwich Company,587984,220642,16/12/2021,606.6,0,CATERG,Catering Services,3101,Provisions,Community & Env Services
Blackpool Council,1076636,Chicken Joes Ltd,587988,697963,16/12/2021,265.52,0,CATERG,Catering Services,3101,Provisions,Community & Env Services
Blackpool Council,1076636,Chicken Joes Ltd,587989,706459,16/12/2021,317.05,0,CATERG,Catering Services,3101,Provisions,Community & Env Services
Blackpool Council,1103521,Dahlias Kitchen,588002,804,16/12/2021,260,0,LBF,Library Management,3819,Events Support,Places
Blackpool Council,1118699,Enveco Blackpool Waste Services Ltd,588003,30164345,15/12/2021,323458.8,53909.8,DOMPFI,Domestic Waste & Waste Pfi,4501,Private Contractors,Community & Env Services
Blackpool Council,1118699,Enveco Blackpool Waste Services Ltd,588004,30164321,15/12/2021,660000,110000,SCLEAN,Street Cleaning,4501,Private Contractors,Community & Env Services
Blackpool Council,1091329,Pentagull Limited,588005,15698,15/12/2021,20965.5,3494.25,FGAA,Ict Corporate Services,3532,Comp-Running & License Costs,Resources
Blackpool Council,1106798,Cd Chauffeur Hire,588011,387,15/12/2021,1200,0,BCA,Corp And Member Services,2211,Casual Hire,Governance & Partnerships
Blackpool Council,1130117,Smart City Media (T/A City Dressing),588019,1919,15/12/2021,1968,328,PRF,Keeping Blackpool Alive,3401,General Services,Places
Blackpool Council,1102016,Critiqom Limited,588022,071638,15/12/2021,2148.78,358.13,FBBEA,"Income, Recovery & Debtors",3511,Postages,Resources
Blackpool Council,1102016,Critiqom Limited,588023,071637,15/12/2021,1602.43,267.07,FBBEA,"Income, Recovery & Debtors",3301,Printing,Resources
Blackpool Council,1064484,Colette Halstead Glass,588028,57,17/12/2021,400,0,PRC,Visitor Services,3808,Souvenirs & Gifts,Places
Blackpool Council,1102943,Titanium Fireworks Ltd,588029,2404,16/12/2021,13200,2200,PJW,Management - Places - Illumina,3401,General Services,Places
Blackpool Council,1095986,Hawes Side Academy,588034,HSAI0073,15/12/2021,5460,0,EP8011,Covid Winter Grant,3701,Grants,Children'S Services
Blackpool Council,1117763,Street Angels - Angels Rest,588038,20,16/12/2021,330,0,HOPB,Housing Options,4004,Management Fees,Chief Executive
Blackpool Council,1117763,Street Angels - Angels Rest,588039,0009,16/12/2021,9000,0,HOPB,Housing Options,4004,Management Fees,Chief Executive
Blackpool Council,1112477,Big Wave Media (Fac060),588040,66670,17/12/2021,750.68,125.11,LEISUR,Leisure Management,3801,Other Expenses,Community & Env Services
Blackpool Council,1016414,The Copyright Licensing Agency Ltd,588041,1013466,17/12/2021,290.53,48.42,ALEARN,Adult Learning,3711,Subscriptions,Places
Blackpool Council,1090774,Richardson Traction Limited,588078,22291,16/12/2021,4860,810,PJNA,New Features / Schemes - C & E,3041,Other Materials,Places
Blackpool Council,1090774,Richardson Traction Limited,588079,22301,16/12/2021,4500,750,PJAA,"Erection, Operation & Dismantl",3006,Hire Of Equipment,Places
Blackpool Council,1090774,Richardson Traction Limited,588080,22272,16/12/2021,4500,750,PJNA,New Features / Schemes - C & E,3006,Hire Of Equipment,Places
Blackpool Council,1117551,Sj Services,588081,154,17/12/2021,3520,0,PJNA,New Features / Schemes - C & E,3308,Servicing,Places
Blackpool Council,1017867,British Telecommunications Plc,588084,VP 21330270 Q08201,16/12/2021,20203.39,3367.23,FGAA,Ict Corporate Services,3521,Landline - Line Rental,Resources
Blackpool Council,1006940,Smiths Equipment Hire Ltd - Smiths Training,588096,V07-98I777,16/12/2021,1017.6,169.6,PJNB,Lightpool,3006,Hire Of Equipment,Places
Blackpool Council,1041733,Dhl International (Uk) Ltd,588099,AVI9002682,16/12/2021,484.8,0,PJHA,"Depot, Management & Admin",3511,Postages,Places
Blackpool Council,1025240,Key Engineering Supplies Ltd,588100,44870,17/12/2021,281.2,0,ZM0018,Highways & Engineering,9773,Orders Received Not Invoiced,Blackpool Services
Blackpool Council,1025240,Key Engineering Supplies Ltd,588100,44870,17/12/2021,337.44,56.24,ZM0018,Highways & Engineering,9511A,Stocks Efin,Blackpool Services
Blackpool Council,1041733,Dhl International (Uk) Ltd,588101,MANR004872311,16/12/2021,318.68,0,PJHA,"Depot, Management & Admin",3511,Postages,Places
Blackpool Council,1011675,Bambers Remedial Contractors Limited,588102,17271,20/12/2021,6549.66,0,CX4002,Disabled Facilities Grants,6501,Contract Payments,Capital - Adult Social Care
Blackpool Council,1011675,Bambers Remedial Contractors Limited,588103,17288,20/12/2021,3319,0,CXAAA,Local Authority Dwellings,6501,Contract Payments,Capital - Chief Executive
Blackpool Council,1011675,Bambers Remedial Contractors Limited,588104,17289,20/12/2021,6378.71,0,CX4002,Disabled Facilities Grants,6501,Contract Payments,Capital - Adult Social Care
Blackpool Council,1011675,Bambers Remedial Contractors Limited,588105,17290,20/12/2021,9119.93,0,CX4002,Disabled Facilities Grants,6501,Contract Payments,Capital - Adult Social Care
Blackpool Council,1011675,Bambers Remedial Contractors Limited,588106,17292,20/12/2021,6267.73,0,CX4002,Disabled Facilities Grants,6501,Contract Payments,Capital - Adult Social Care
Blackpool Council,1011675,Bambers Remedial Contractors Limited,588108,17298,20/12/2021,5847.65,0,CX4002,Disabled Facilities Grants,6501,Contract Payments,Capital - Adult Social Care
Blackpool Council,1011675,Bambers Remedial Contractors Limited,588109,17299,20/12/2021,6750.27,0,CX4002,Disabled Facilities Grants,6501,Contract Payments,Capital - Adult Social Care
Blackpool Council,1011675,Bambers Remedial Contractors Limited,588110,17301,20/12/2021,6991.65,0,CX4002,Disabled Facilities Grants,6501,Contract Payments,Capital - Adult Social Care
Blackpool Council,1011675,Bambers Remedial Contractors Limited,588111,17302,20/12/2021,11100.04,0,CX4002,Disabled Facilities Grants,6501,Contract Payments,Capital - Adult Social Care
Blackpool Council,1011675,Bambers Remedial Contractors Limited,588112,17305,20/12/2021,6027.16,0,CXAAA,Local Authority Dwellings,6501,Contract Payments,Capital - Chief Executive
Blackpool Council,1011675,Bambers Remedial Contractors Limited,588113,17306,20/12/2021,6486.05,0,CXAAA,Local Authority Dwellings,6501,Contract Payments,Capital - Chief Executive
Blackpool Council,1112303,Access-Able (Uk) Limited (Fac001),588115,4651,20/12/2021,10207.02,0,CX4002,Disabled Facilities Grants,6501,Contract Payments,Capital - Adult Social Care
Blackpool Council,1006644,Telewest/Virgin Media Payments Ltd,588117,067437901/506/1221,16/12/2021,3239.92,539.99,FGAA,Ict Corporate Services,3521,Landline - Line Rental,Resources
Blackpool Council,1006644,Telewest/Virgin Media Payments Ltd,588118,078850001/547/1221,16/12/2021,314.4,52.4,FGAA,Ict Corporate Services,3521,Landline - Line Rental,Resources
Blackpool Council,1006644,Telewest/Virgin Media Payments Ltd,588120,081127901/504/1221,16/12/2021,612,102,FGAA,Ict Corporate Services,3521,Landline - Line Rental,Resources
Blackpool Council,1082399,REDACTED PERSONAL DATA,588124,212205,16/12/2021,320,0,MUSIC,Music & Cultural Education,3008,Educational Equipment,Children'S Services
Blackpool Council,1125633,REDACTED PERSONAL DATA,588125,003,21/12/2021,1320,0,AHHBA,Blackpool Museum,3801,Other Expenses,Places
Blackpool Council,1114704,Morson Human Resources Ltd,588135,HS388134,16/12/2021,2310,385,CTAHHI,Tramway Extention,6506,Consultants Fees,Capital - Commnctn & Regen
Blackpool Council,1027733,William Smith & Sons (Barnard Castle) Ltd,588155,633099,20/12/2021,1108.18,184.7,SCHEME,Highways Schemes,3043,Admin Mats/Other Mats,Community & Env Services
Blackpool Council,1092592,Colliers International Common Client Account,588156,122302,17/12/2021,7200,0,HJA,Growth,1301,Rent & Hire Of Premises,Places
Blackpool Council,1119761,Janet Carroll,588157,08/NOV21/TAS027,17/12/2021,4000,0,OPAREA,Opportunity Areas,4515,Contract Services,Places
Blackpool Council,1121485,Philredom Ltd,588158,PL011221-55,17/12/2021,2925,0,EM1001,Departmental Management,3406,Local Plan,Children'S Services
Blackpool Council,1039525,East Lancashire Hospitals Nhs Trust,588162,E0106876,23/12/2021,4177.05,0,PU0111,Contain Outbreak Mgmnt Covid,4501,Private Contractors,Public Health
Blackpool Council,1093421,Effective Pedagogy Solutions Cic,588163,TAB 002,17/12/2021,10000,0,VA0010,Vah Management & Admin,4501,Private Contractors,Children'S Services
Blackpool Council,1039525,East Lancashire Hospitals Nhs Trust,588165,E0106680,23/12/2021,4177.05,0,PU0111,Contain Outbreak Mgmnt Covid,4501,Private Contractors,Public Health
Blackpool Council,1073709,Delphi Medical Limited,588265,SINV86/00000964,17/12/2021,3010,0,PUBH04,Substance Misuse,4501,Private Contractors,Public Health
Blackpool Council,1071925,Groundwork Cheshire Lancs And Merseyside,588266,0000003307,17/12/2021,4015.84,0,CGRESO,Resources Schemes,6501,Contract Payments,Capital - Resources
Blackpool Council,1071925,Groundwork Cheshire Lancs And Merseyside,588267,0000003308,17/12/2021,9578.37,0,CGRESO,Resources Schemes,6501,Contract Payments,Capital - Resources
Blackpool Council,1126236,New Concept Security Ltd,588269,16025,17/12/2021,12500.12,2083.36,SECURE,Security Services,3401,General Services,Community & Env Services
Blackpool Council,1116288,Amas Ltd - Common Receipts Account,588273,202100000731,17/12/2021,23315.79,0,HJI,Growth Investments,1801,Premises Insurance,Places
Blackpool Council,1126236,New Concept Security Ltd,588276,16033,17/12/2021,12783.16,2130.53,SECURE,Security Services,3401,General Services,Community & Env Services
Blackpool Council,1009751,Bt Business Direct Limited,588283,IN05720666,22/12/2021,530.83,88.47,CCTV,Cctv,3012,Other Equipment,Community & Env Services
Blackpool Council,1103450,Blackpool Entertainment Company Limited,588284,INV005760,17/12/2021,345.3,57.55,PTC,"A.C.E. Regen, Tourism & Cultur",1301,Rent & Hire Of Premises,Places
Blackpool Council,1097930,Bcs Learning & Developement Limited,588285,INV203037,20/12/2021,600,100,ALEARN,Adult Learning,2008,Running Costs-Licences,Places
Blackpool Council,1089205,REDACTED PERSONAL DATA,588286,00000033,17/12/2021,360,0,AHG,Art Gallery Summary,3456,Payment To Artists,Places
Blackpool Council,1082067,Squire Patton Boggs (Uk) Llp,588287,EHAR4954,22/12/2021,15903.95,2650.66,CP0511,Anchorsholme Seawall Scheme,6506,Consultants Fees,Capital - Comm & Environ
Blackpool Council,1128579,Trueline Consultancy,588294,03-2021,21/12/2021,20000,0,TRB,Maintenance & Works,4501,Private Contractors,Community & Env Services
Blackpool Council,1010138,C Cabs,588301,07993,17/12/2021,3713,0,EDDIV,Education Diversity,2201,Contract Hire,Children'S Services
Blackpool Council,1010138,C Cabs,588302,07994,17/12/2021,1003.2,0,EDDIV,Education Diversity,2201,Contract Hire,Children'S Services
Blackpool Council,1051299,Leisure Travel,588306,INV00695,20/12/2021,1300,0,TRCHIL,Integrated Transport Children,2201,Contract Hire,Community & Env Services
Blackpool Council,1051299,Leisure Travel,588307,INV00696,20/12/2021,884,0,TRCHIL,Integrated Transport Children,2201,Contract Hire,Community & Env Services
Blackpool Council,1051299,Leisure Travel,588318,INV00697,20/12/2021,1300,0,TRCHIL,Integrated Transport Children,2201,Contract Hire,Community & Env Services
Blackpool Council,1051299,Leisure Travel,588319,INV00698,20/12/2021,1300,0,TRCHIL,Integrated Transport Children,2201,Contract Hire,Community & Env Services
Blackpool Council,1051299,Leisure Travel,588320,INV00699,20/12/2021,1040,0,TRCHIL,Integrated Transport Children,2201,Contract Hire,Community & Env Services
Blackpool Council,1017722,Terrys Cut Price Carpets Ltd,588321,1657,20/12/2021,348,58,FC1802,Social Fund - Client,5210,Community Care Support,Resources
Blackpool Council,1017722,Terrys Cut Price Carpets Ltd,588322,1658,20/12/2021,444,74,FC1802,Social Fund - Client,5210,Community Care Support,Resources
Blackpool Council,1111571,Trojan Consultants Limited,588324,INV-17069,23/12/2021,1152,192,EM1032,Client Finances,3532,Comp-Running & License Costs,Resources
Blackpool Council,1020550,Hays Specialist Recruitment Ltd,588329,1011839169,20/12/2021,1883.4,313.9,HJA,Growth,0791,Temp/Relief (Bureau Staff),Places
Blackpool Council,1073088,Muse Developments Limited,588335,51008014,17/12/2021,981443.1,163573.85,CGWBAA,Cbd Phase 2,6501,Contract Payments,Capital - Commnctn & Regen
Blackpool Council,1073088,Muse Developments Limited,588335,51008014,17/12/2021,39132.5,0,ZF0001,"Insurance,Dso,Banking",97B6,Retention Monies - Cap Trsfr,Total Reconciliations
Blackpool Council,1087953,Blackpool Local Education Partnership Ltd,588336,PBSIP000010,17/12/2021,178388.12,29731.35,CGWBAA,Cbd Phase 2,6501,Contract Payments,Capital - Commnctn & Regen
Blackpool Council,1087953,Blackpool Local Education Partnership Ltd,588336,PBSIP000010,17/12/2021,4597.63,0,ZF0001,"Insurance,Dso,Banking",97B6,Retention Monies - Cap Trsfr,Total Reconciliations
Blackpool Council,1027764,Colins Travel,588342,104,20/12/2021,1053,0,TRCHIL,Integrated Transport Children,2201,Contract Hire,Community & Env Services
Blackpool Council,1027764,Colins Travel,588343,105,20/12/2021,276,0,TRCHIL,Integrated Transport Children,2201,Contract Hire,Community & Env Services
Blackpool Council,1004963,F Parkinson Ltd,588344,10273,17/12/2021,24524.96,4087.49,CGICAF,G&P Prudential Schemes,6501,Contract Payments,Capital - Commnctn & Regen
Blackpool Council,1004963,F Parkinson Ltd,588344,10273,17/12/2021,2487.34,0,ZF0001,"Insurance,Dso,Banking",97B6,Retention Monies - Cap Trsfr,Total Reconciliations
Blackpool Council,1076636,Chicken Joes Ltd,588351,704467,20/12/2021,610.39,0,CATERG,Catering Services,3101,Provisions,Community & Env Services
Blackpool Council,1076636,Chicken Joes Ltd,588352,704468,20/12/2021,610.39,0,CATERG,Catering Services,3101,Provisions,Community & Env Services
Blackpool Council,1076636,Chicken Joes Ltd,588353,707005,20/12/2021,273.17,0,CATERG,Catering Services,3101,Provisions,Community & Env Services
Blackpool Council,1071928,Civica Uk Limited,588355,M/SS094796,20/12/2021,1800,300,CATERG,Catering Services,3533,Computer S/W Purchases,Community & Env Services
Blackpool Council,1071928,Civica Uk Limited,588356,M/SS094799,20/12/2021,1800,300,CATERG,Catering Services,3533,Computer S/W Purchases,Community & Env Services
Blackpool Council,1071928,Civica Uk Limited,588357,M/SS094808,20/12/2021,1800,300,CATERG,Catering Services,3533,Computer S/W Purchases,Community & Env Services
Blackpool Council,1071928,Civica Uk Limited,588358,M/SS094816,20/12/2021,1800,300,CATERG,Catering Services,3533,Computer S/W Purchases,Community & Env Services
Blackpool Council,1042797,Lux Occ Medical Ltd,588365,BBC/299,20/12/2021,1800,0,FK0013,Corporate Health,0992,Medical Fees (Employee),Chief Executive
Blackpool Council,1119267,National Education Group Ltd,588370,TNC-INV-58944,20/12/2021,3137.4,522.9,EDDIV,Education Diversity,3711,Subscriptions,Children'S Services
Blackpool Council,1026811,Stannah Lift Services Ltd,588496,1085377867,21/12/2021,4102,0,CXAAA,Local Authority Dwellings,6501,Contract Payments,Capital - Chief Executive
Blackpool Council,1026811,Stannah Lift Services Ltd,588497,1085377884,21/12/2021,2586,0,CX4002,Disabled Facilities Grants,6501,Contract Payments,Capital - Adult Social Care
Blackpool Council,1011675,Bambers Remedial Contractors Limited,588498,17313,21/12/2021,5754.49,0,CXAAA,Local Authority Dwellings,6501,Contract Payments,Capital - Chief Executive
Blackpool Council,1011675,Bambers Remedial Contractors Limited,588499,17315,21/12/2021,6425.12,0,CX4002,Disabled Facilities Grants,6501,Contract Payments,Capital - Adult Social Care
Blackpool Council,1011675,Bambers Remedial Contractors Limited,588500,17316,21/12/2021,7322.48,0,CX4002,Disabled Facilities Grants,6501,Contract Payments,Capital - Adult Social Care
Blackpool Council,1011675,Bambers Remedial Contractors Limited,588501,17317,21/12/2021,4965.78,0,CX4002,Disabled Facilities Grants,6501,Contract Payments,Capital - Adult Social Care
Blackpool Council,1011675,Bambers Remedial Contractors Limited,588502,17318,21/12/2021,7012,0,CXAAA,Local Authority Dwellings,6501,Contract Payments,Capital - Chief Executive
Blackpool Council,1011675,Bambers Remedial Contractors Limited,588503,17319,21/12/2021,6865.27,0,CX4002,Disabled Facilities Grants,6501,Contract Payments,Capital - Adult Social Care
Blackpool Council,1011675,Bambers Remedial Contractors Limited,588504,17320,21/12/2021,4195.34,0,CX4002,Disabled Facilities Grants,6501,Contract Payments,Capital - Adult Social Care
Blackpool Council,1011675,Bambers Remedial Contractors Limited,588505,17312,21/12/2021,4271.73,0,CX4002,Disabled Facilities Grants,6501,Contract Payments,Capital - Adult Social Care
Blackpool Council,1070438,Wyre Borough Council,588506,6378624 2020/2021,21/12/2021,1297.4,0,FP4801,Bus Shelters,1303,Nndr,Places
Blackpool Council,1070438,Wyre Borough Council,588507,6378544 2020/2021,21/12/2021,324.35,0,FP4801,Bus Shelters,1303,Nndr,Places
Blackpool Council,1070438,Wyre Borough Council,588508,6378553 2020/2021,21/12/2021,973.05,0,FP4801,Bus Shelters,1303,Nndr,Places
Blackpool Council,1070438,Wyre Borough Council,588509,6378562 2020/2021,21/12/2021,648.7,0,FP4801,Bus Shelters,1303,Nndr,Places
Blackpool Council,1070438,Wyre Borough Council,588510,6378571 2020/2021,21/12/2021,648.7,0,FP4801,Bus Shelters,1303,Nndr,Places
Blackpool Council,1070438,Wyre Borough Council,588511,6378580 2020/2021,21/12/2021,973.05,0,FP4801,Bus Shelters,1303,Nndr,Places
Blackpool Council,1070438,Wyre Borough Council,588512,637859X 2020/2021,21/12/2021,648.7,0,FP4801,Bus Shelters,1303,Nndr,Places
Blackpool Council,1070438,Wyre Borough Council,588513,6378615 2020/2021,21/12/2021,648.7,0,FP4801,Bus Shelters,1303,Nndr,Places
Blackpool Council,1070438,Wyre Borough Council,588514,6378633 2020/2021,21/12/2021,1297.4,0,FP4801,Bus Shelters,1303,Nndr,Places
Blackpool Council,1070438,Wyre Borough Council,588515,6378642 2020/2021,21/12/2021,973.05,0,FP4801,Bus Shelters,1303,Nndr,Places
Blackpool Council,1070438,Wyre Borough Council,588516,6378651 2020/21,21/12/2021,648.7,0,FP4801,Bus Shelters,1303,Nndr,Places
Blackpool Council,1049385,Fylde Coast Ymca,588520,80001090,20/12/2021,825,0,EDDIV,Education Diversity,3303,Games/Visits,Children'S Services
Blackpool Council,1106132,Bridge Education And Training Ltd,588528,9010,22/12/2021,810,135,AEF,Facilities,0791,Temp/Relief (Bureau Staff),Resources
Blackpool Council,1106132,Bridge Education And Training Ltd,588529,8964,22/12/2021,810,135,AEF,Facilities,0791,Temp/Relief (Bureau Staff),Resources
Blackpool Council,1057261,Experian Ltd,588530,HEX54000730707,21/12/2021,8787.38,1464.56,CORDEV,Corporate Delivery Unit,3801,Other Expenses,Chief Executive
Blackpool Council,1083256,Community Lighting Partnership (Bpool) Ltd,588547,144,20/12/2021,525742.39,87623.73,FL1259,Pfi Management Costs,4501,Private Contractors,Community & Env Services
Blackpool Council,1024298,Dickson Road Self Storage Ltd,588550,8192,21/12/2021,300,50,CGIBAA,Land Release Fund,6518,Miscellaneous - Capital,Capital - Commnctn & Regen
Blackpool Council,1013064,Tarmac Lafarge Trading Limited,588552,9044529892,21/12/2021,1965.98,327.66,ENGINE,Engineering,3041,Other Materials,Community & Env Services
Blackpool Council,1013064,Tarmac Lafarge Trading Limited,588555,9044563118,21/12/2021,335.54,55.92,ENGINE,Engineering,3041,Other Materials,Community & Env Services
Blackpool Council,1011837,Cemex Uk Materials Ltd,588557,3013234531,20/12/2021,348.6,58.1,ENGINE,Engineering,3041,Other Materials,Community & Env Services
Blackpool Council,1119767,Harris Hill Limited,588560,95228,21/12/2021,3600,600,AHHBA,Blackpool Museum,3413,Consultants,Places
Blackpool Council,1127962,John Graham Construction Limited,588561,915726,20/12/2021,565384.27,94230.71,CGICAF,G&P Prudential Schemes,6501,Contract Payments,Capital - Commnctn & Regen
Blackpool Council,1127962,John Graham Construction Limited,588561,915726,20/12/2021,73304.96,0,ZF0001,"Insurance,Dso,Banking",97B6,Retention Monies - Cap Trsfr,Total Reconciliations
Blackpool Council,1023161,Suez Recycling And Recovery Uk Ltd,588562,80260801,20/12/2021,60929.38,10154.9,DOMPFI,Domestic Waste & Waste Pfi,4501,Private Contractors,Community & Env Services
Blackpool Council,1005071,Blackpool Transport Services Limited,588565,I0003425,23/12/2021,786,0,OTHL,Other Learning,2201,Contract Hire,Children'S Services
Blackpool Council,1005071,Blackpool Transport Services Limited,588566,I0003426,23/12/2021,1643.83,0,FRAEA,Public Transport Contracts,2201,Contract Hire,Community & Env Services
Blackpool Council,1075026,Henco International Ltd,588567,11557,20/12/2021,565.46,94.24,AEB,Buildings,1301,Rent & Hire Of Premises,Resources
Blackpool Council,1007987,Millercare Limited,588629,0000088959,22/12/2021,35918.64,5986.44,CS01DH,A P S Capital Works,6516,Furniture,Capital - Adult Social Care
Blackpool Council,1011806,A D J Doors Ltd T/A Keman Roller Shutters,588630,9060,23/12/2021,474,79,AHG,Art Gallery Summary,4501,Private Contractors,Places
Blackpool Council,1127795,House Of Wingz (Skool Of Street),588634,HOW98058,21/12/2021,1700,0,AHHBA,Blackpool Museum,3413,Consultants,Places
Blackpool Council,1086714,Liveasy Ltd,588635,BP0151ARC,22/12/2021,460.8,76.8,APDBBB,Arc,3066,Personal Needs Of Clients,Adult & Families
Blackpool Council,1116850,Armfield Academy,588642,9500000072,21/12/2021,8939,0,OPAREA,Opportunity Areas,4515,Contract Services,Places
Blackpool Council,1010386,Montgomery Academy,588643,3000000191,21/12/2021,8939,0,OPAREA,Opportunity Areas,4515,Contract Services,Places
Blackpool Council,1104384,Blackpool Aspire Academy,588652,7000000170,22/12/2021,8939,0,OPAREA,Opportunity Areas,4515,Contract Services,Places
Blackpool Council,1106616,Boingboing Resilience Cic,588669,691,22/12/2021,5280,880,HS0003,Headstart Commissioning,3401,General Services,Children'S Services
Blackpool Council,1106616,Boingboing Resilience Cic,588670,692,22/12/2021,11152.28,1858.71,HS0003,Headstart Commissioning,3401,General Services,Children'S Services
Blackpool Council,1106616,Boingboing Resilience Cic,588671,694,22/12/2021,12756.91,2126.15,HS0003,Headstart Commissioning,3401,General Services,Children'S Services
Blackpool Council,1008540,Konica Minolta Business (Uk) Ltd,588672,1158275381,22/12/2021,1419.26,236.54,FGBA,Specific (Directorate)-Service,3305,Photocopying Charges,Resources
Blackpool Council,1008540,Konica Minolta Business (Uk) Ltd,588673,1158360240,22/12/2021,335.88,55.98,FGBA,Specific (Directorate)-Service,3305,Photocopying Charges,Resources
Blackpool Council,1013064,Tarmac Lafarge Trading Limited,588674,9044563119,22/12/2021,737.73,122.95,ENGINE,Engineering,3041,Other Materials,Community & Env Services
Blackpool Council,1114664,REDACTED PERSONAL DATA,588675,048,22/12/2021,2690,0,HS0005,Whole School Approach,0911,Training Expenses,Children'S Services
Blackpool Council,1064484,Colette Halstead Glass,588676,61,23/12/2021,320,0,PRC,Visitor Services,3808,Souvenirs & Gifts,Places
Blackpool Council,1121194,REDACTED PERSONAL DATA,588678,HS23,22/12/2021,2386.09,0,HS0003,Headstart Commissioning,3401,General Services,Children'S Services
Blackpool Council,1122956,Vivid Resourcing,588679,66027,22/12/2021,7538.58,1256.43,AEV,Vacant & Under Used,0981,Professional Fees,Resources
Blackpool Council,1106616,Boingboing Resilience Cic,588713,693,23/12/2021,50702.4,8450.4,HS0003,Headstart Commissioning,3401,General Services,Children'S Services
Blackpool Council,1006099,Blackpool Teaching Hospitals Nhs Ft,588716,1110059795,22/12/2021,273.16,45.53,OPAREA,Opportunity Areas,4515,Contract Services,Places
Blackpool Council,1117821,U-Explore Limited,588720,102962,22/12/2021,15199.99,2533.33,OPAREA,Opportunity Areas,4515,Contract Services,Places
Blackpool Council,1119761,Janet Carroll,588722,09/DEC21/TAS028,22/12/2021,2200,0,OPAREA,Opportunity Areas,4515,Contract Services,Places
Blackpool Council,1010353,Blackpool Football Club Ltd,588724,INV-0752,22/12/2021,55281.55,9213.59,AEB,Buildings,1301,Rent & Hire Of Premises,Resources
Blackpool Council,1101124,South Shore Academy,588727,SSSI 46,22/12/2021,30000,0,OPAREA,Opportunity Areas,4515,Contract Services,Places
Blackpool Council,1047310,Teletrac Navman (Uk) Ltd,588730,92354002,23/12/2021,3864.89,644.15,CVMU,Cvmu,4501,Private Contractors,Community & Env Services
Blackpool Council,1012071,Bethell Construction Limited,588731,17628,23/12/2021,1229.52,204.92,ENGINE,Engineering,1012,Premises Maint-Priv.Contractor,Community & Env Services
Blackpool Council,1012071,Bethell Construction Limited,588732,17639,23/12/2021,1583.54,263.92,ENGINE,Engineering,1012,Premises Maint-Priv.Contractor,Community & Env Services
Blackpool Council,1012071,Bethell Construction Limited,588733,17640,23/12/2021,278.75,46.46,ENGINE,Engineering,1012,Premises Maint-Priv.Contractor,Community & Env Services
Blackpool Council,1012071,Bethell Construction Limited,588734,17638,23/12/2021,1218.97,203.16,ENGINE,Engineering,1012,Premises Maint-Priv.Contractor,Community & Env Services
Blackpool Council,1012071,Bethell Construction Limited,588735,17637,23/12/2021,1101.01,183.5,ENGINE,Engineering,1012,Premises Maint-Priv.Contractor,Community & Env Services
Blackpool Council,1012071,Bethell Construction Limited,588736,17636,23/12/2021,873.37,145.56,ENGINE,Engineering,1012,Premises Maint-Priv.Contractor,Community & Env Services
Blackpool Council,1012071,Bethell Construction Limited,588737,17635,23/12/2021,1563.42,260.57,ENGINE,Engineering,1012,Premises Maint-Priv.Contractor,Community & Env Services
Blackpool Council,1012071,Bethell Construction Limited,588738,17634,23/12/2021,1344.26,224.04,ENGINE,Engineering,1012,Premises Maint-Priv.Contractor,Community & Env Services
Blackpool Council,1012071,Bethell Construction Limited,588739,17633,23/12/2021,2406.2,401.03,ENGINE,Engineering,1012,Premises Maint-Priv.Contractor,Community & Env Services
Blackpool Council,1012071,Bethell Construction Limited,588741,17630,23/12/2021,2704.15,450.69,ENGINE,Engineering,1012,Premises Maint-Priv.Contractor,Community & Env Services
Blackpool Council,1012071,Bethell Construction Limited,588742,17629,23/12/2021,335.7,55.95,ENGINE,Engineering,1012,Premises Maint-Priv.Contractor,Community & Env Services
Blackpool Council,1012071,Bethell Construction Limited,588743,17632,23/12/2021,1599.05,266.51,ENGINE,Engineering,1012,Premises Maint-Priv.Contractor,Community & Env Services
Blackpool Council,1028228,Danfo (Uk) Ltd,588746,0000006121,22/12/2021,48744,8124,PUBCON,Public Conveniences,4501,Private Contractors,Community & Env Services
Blackpool Council,1011868,W H Tarmacadam Limited,588751,3955,23/12/2021,42602.4,7100.4,SCHEME,Highways Schemes,1012,Premises Maint-Priv.Contractor,Community & Env Services
Blackpool Council,1012071,Bethell Construction Limited,588752,17641,23/12/2021,14253.65,2375.61,ENGINE,Engineering,1012,Premises Maint-Priv.Contractor,Community & Env Services
Blackpool Council,1083373,Association Of British Climbing Walls Ltd,588753,ABC2019708,23/12/2021,432,72,LEISUR,Leisure Management,3801,Other Expenses,Community & Env Services
Blackpool Council,1011952,Empowerment,588756,1740,23/12/2021,1051.79,0,HS0003,Headstart Commissioning,3401,General Services,Children'S Services
Blackpool Council,1116665,Abc Fencing Limited,588757,INV 4261,23/12/2021,11817.6,1969.6,CGICAD,Enterprise Zone,6518,Miscellaneous - Capital,Capital - Commnctn & Regen
Blackpool Council,1087549,Merlin Entertainments (Blackpool) Ltd,588758,INV13026-00005899,22/12/2021,720000,120000,AD0335,Tier 3 - Discretionary Grants,5012,Statutory Bus Grants Covid,Contingencies
Blackpool Council,1006385,University Of Central Lancashire,588765,TUI236200025,23/12/2021,400,0,LM0421,Adults Asye Training,3426,Course Fees,Adult & Families
Blackpool Council,1020550,Hays Specialist Recruitment Ltd,588766,1011855562,23/12/2021,1909.2,318.2,HJA,Growth,0791,Temp/Relief (Bureau Staff),Places
Blackpool Council,1075026,Henco International Ltd,588768,11594,23/12/2021,12925.39,2154.23,AEB,Buildings,1301,Rent & Hire Of Premises,Resources
Blackpool Council,1007487,Post Office Ltd,588801,200BPOOL171221,23/12/2021,5000,0,AD0302,Household Support Scheme C19,3401,General Services,Contingencies
Blackpool Council,1073709,Delphi Medical Limited,588804,SINV86/00000974,23/12/2021,3010,0,PUBH04,Substance Misuse,4501,Private Contractors,Public Health
Blackpool Council,1073709,Delphi Medical Limited,588805,SINV86/00000975,23/12/2021,3010,0,PUBH04,Substance Misuse,4501,Private Contractors,Public Health
Blackpool Council,1073709,Delphi Medical Limited,588806,SINV86/00000976,23/12/2021,1290,0,PUBH04,Substance Misuse,4501,Private Contractors,Public Health
Blackpool Council,1114704,Morson Human Resources Ltd,588814,HS389435,23/12/2021,2310,385,CTAHHI,Tramway Extention,6506,Consultants Fees,Capital - Commnctn & Regen
Blackpool Council,1087683,A & C Weber Uk Ltd,588816,113438,23/12/2021,5573.94,928.99,CWASTE,Commercial Waste,3041,Other Materials,Community & Env Services
Blackpool Council,1087683,A & C Weber Uk Ltd,588817,113439,23/12/2021,7325.58,1220.93,CWASTE,Commercial Waste,3041,Other Materials,Community & Env Services
Blackpool Council,1011369,Lancashire County Council,588818,5200242193,23/12/2021,114634,0,DOMPFI,Domestic Waste & Waste Pfi,4501,Private Contractors,Community & Env Services
Blackpool Council,1117705,Rhea Projects Ltd,588820,LAD1-0036,23/12/2021,51556.19,2455.06,LH2090,Green Homes Grant,4501,Private Contractors,Public Health
Blackpool Council,1117705,Rhea Projects Ltd,588821,LAD1-0037,23/12/2021,53082.76,2527.75,LH2090,Green Homes Grant,4501,Private Contractors,Public Health
Blackpool Council,1117705,Rhea Projects Ltd,588822,LAD2-0032,23/12/2021,55215.56,2629.31,LH2092,Lad 2 Funding,4501,Private Contractors,Public Health
Blackpool Council,1117705,Rhea Projects Ltd,588823,LAD2-0033,23/12/2021,73164,3484,LH2092,Lad 2 Funding,4501,Private Contractors,Public Health
Blackpool Council,1117705,Rhea Projects Ltd,588824,LAD2-0034,23/12/2021,8694,1449,LH2092,Lad 2 Funding,4501,Private Contractors,Public Health
Blackpool Council,1117705,Rhea Projects Ltd,588825,LAD2-0036,23/12/2021,2415,402.5,LH2092,Lad 2 Funding,4501,Private Contractors,Public Health
Blackpool Council,1079028,Institute Of Swimming Ltd,588826,IOSINV025821,24/12/2021,1275,0,LEISUR,Leisure Management,0911,Training Expenses,Community & Env Services
Blackpool Council,1079028,Institute Of Swimming Ltd,588827,IOSINV026043,24/12/2021,1527.45,0,LEISUR,Leisure Management,0911,Training Expenses,Community & Env Services
Blackpool Council,1117705,Rhea Projects Ltd,588863,LAD2-0035,24/12/2021,44329.04,2110.91,LH2092,Lad 2 Funding,4501,Private Contractors,Public Health
Blackpool Council,1117705,Rhea Projects Ltd,588864,LAD2-0031,24/12/2021,56346.29,2683.16,LH2092,Lad 2 Funding,4501,Private Contractors,Public Health
Blackpool Council,1007008,Screwfix Direct Ltd,588870,1205516980,24/12/2021,274.97,45.83,ZM0018,Highways & Engineering,9511A,Stocks Efin,Blackpool Services
Blackpool Council,1010300,Blacktax Radio Taxis T/A Blackpool Courier,588883,14549,24/12/2021,3987.5,0,APDBBB,Arc,2241,Scheduled Taxi Use,Adult & Families
Blackpool Council,1109682,Entertainment Concepts Ltd,588887,280,24/12/2021,799.99,133.33,FMAK,Acquisitions 9/10,1131,Electrical Equipment - Repairs,Places
Blackpool Council,1109682,Entertainment Concepts Ltd,588888,303,24/12/2021,799.99,133.33,FMAK,Acquisitions 9/10,1131,Electrical Equipment - Repairs,Places
Blackpool Council,1123264,Bell Decorating Group Limited,4531745,CSI05996,20/12/2021,772.42,128.74,CXXXX,Hra Non Specific Contingency,6501,Contract Payments,Capital - Chief Executive
Blackpool Council,1123264,Bell Decorating Group Limited,4532260,CSI05997,17/12/2021,514.45,85.74,CXXXX,Hra Non Specific Contingency,6501,Contract Payments,Capital - Chief Executive
Blackpool Council,1123264,Bell Decorating Group Limited,4535595,CSI06374,03/12/2021,319.68,53.28,CXXXX,Hra Non Specific Contingency,6501,Contract Payments,Capital - Chief Executive
Blackpool Council,1123264,Bell Decorating Group Limited,4535602,CSI06363,03/12/2021,1050.88,175.15,CXXXX,Hra Non Specific Contingency,6501,Contract Payments,Capital - Chief Executive
Blackpool Council,1118984,REDACTED PERSONAL DATA,4536630,2ND HE BURSARY PAYMENT,20/12/2021,333,0,JEA,Senior Management,5555,Educational Support,Children'S Services
Blackpool Council,1123264,Bell Decorating Group Limited,4548395,CSI06369,03/12/2021,633.07,105.51,CXXXX,Hra Non Specific Contingency,6501,Contract Payments,Capital - Chief Executive
Blackpool Council,1123264,Bell Decorating Group Limited,4548396,CSI06372,03/12/2021,385.25,64.21,CXXXX,Hra Non Specific Contingency,6501,Contract Payments,Capital - Chief Executive
Blackpool Council,1123264,Bell Decorating Group Limited,4548397,CSI06385,03/12/2021,453.53,75.59,CXXXX,Hra Non Specific Contingency,6501,Contract Payments,Capital - Chief Executive
Blackpool Council,1057897,City Of Braford Mdc,4571678,72800774489,16/12/2021,2814,0,CWAN,Children With Additional Needs,2211,Casual Hire,Children'S Services
Blackpool Council,1006202,I Care Gb Limited,4574841,BPLEX/1010T,17/12/2021,12244.05,0,MVB,65-74,4512,Other Care Block Payments,Adult & Families
Blackpool Council,1123845,Inclusion Housing Cic Ltd,4576345,12218,17/12/2021,1941.9,0,MHA,Older People ( U65) With Ld,1301,Rent & Hire Of Premises,Adult & Families
Blackpool Council,1011859,Devonshire Blinds Ltd,4579480,210607PAT1,01/12/2021,585,97.5,CXC11,Site Development,6501,Contract Payments,Capital - Chief Executive
Blackpool Council,1011859,Devonshire Blinds Ltd,4579482,210607PAT2,01/12/2021,514,85.67,CXC11,Site Development,6501,Contract Payments,Capital - Chief Executive
Blackpool Council,1011859,Devonshire Blinds Ltd,4579483,211015PAT14,01/12/2021,682,113.67,CXC11,Site Development,6501,Contract Payments,Capital - Chief Executive
Blackpool Council,1011859,Devonshire Blinds Ltd,4579484,211006PAT3,01/12/2021,505.75,84.29,CXC11,Site Development,6501,Contract Payments,Capital - Chief Executive
Blackpool Council,1011859,Devonshire Blinds Ltd,4579485,211006PAT4,01/12/2021,505.75,84.29,CXC11,Site Development,6501,Contract Payments,Capital - Chief Executive
Blackpool Council,1011995,Technical & Electrical Services Ltd,4579497,VR 21323,03/12/2021,343.07,57.18,CXC21,Hra Capital Programme 2021/22,6501,Contract Payments,Capital - Chief Executive
Blackpool Council,1011995,Technical & Electrical Services Ltd,4579498,VR 21322,03/12/2021,343.07,57.18,CXC21,Hra Capital Programme 2021/22,6501,Contract Payments,Capital - Chief Executive
Blackpool Council,1011995,Technical & Electrical Services Ltd,4579499,VR 21321,03/12/2021,343.07,57.18,CXC21,Hra Capital Programme 2021/22,6501,Contract Payments,Capital - Chief Executive
Blackpool Council,1066073,Blackpool Coastal Housing,4581115,30002016,01/12/2021,10926,1821,CXC21,Hra Capital Programme 2021/22,6501,Contract Payments,Capital - Chief Executive
Blackpool Council,1052228,Mickey'S Discount Carpets Ltd,4581118,MCI-10052,01/12/2021,700,116.67,CXC11,Site Development,6501,Contract Payments,Capital - Chief Executive
Blackpool Council,1044395,Sellick Partnership Limited,4582144,INV381438,01/12/2021,1974,329,BAAA,Legal Services,0793,Supply Cost Of Other Agency,Governance & Partnerships
Blackpool Council,1057897,City Of Braford Mdc,4582821,72800768454,16/12/2021,6427.2,0,CWAN,Children With Additional Needs,2211,Casual Hire,Children'S Services
Blackpool Council,1131762,Just Childcare Ltd - Best Friends Day Nursery,4583031,0000487452,01/12/2021,473.45,0,JEA,Senior Management,5510,Nursery,Children'S Services
Blackpool Council,1116647,Care In Mind Limited,4583051,3635,01/12/2021,18818.7,0,MFA,Adults Under 65 With Mh,4201,Joint Authorities,Adult & Families
Blackpool Council,1111078,Dr Y P Shukla,4584752,50/2021,01/12/2021,1575,0,JDEAAA,Safeguarding Adults,4501,Private Contractors,Adult & Families
Blackpool Council,1107100,Nonstop Consulting Ltd,4584787,190913,02/12/2021,2114.33,352.39,JBT,Looked After Children,0791,Temp/Relief (Bureau Staff),Children'S Services
Blackpool Council,1103360,Complete Background Screening Ltd,4584794,INV-21862,08/12/2021,396,66,FK1005,Dbs Recharging,6207,Personnel Services,Chief Executive
Blackpool Council,1118127,REDACTED PERSONAL DATA,4584798,268991,01/12/2021,822,137,BAAA,Legal Services,4707,Counsels Fees,Governance & Partnerships
Blackpool Council,1100913,Hopscotch Care Limited,4584884,1131,01/12/2021,13714.2,0,JEA,Senior Management,4501,Private Contractors,Children'S Services
Blackpool Council,1105889,3d Environmental Limited,4584905,BPCH-0017,03/12/2021,807,134.5,CXC11,Site Development,6501,Contract Payments,Capital - Chief Executive
Blackpool Council,1115668,Greenfield Removals Ltd,4585273,INV-16268,03/12/2021,476.28,79.38,CXC21,Hra Capital Programme 2021/22,6501,Contract Payments,Capital - Chief Executive
Blackpool Council,1115668,Greenfield Removals Ltd,4585274,INV-16269,03/12/2021,623.34,103.89,CXC21,Hra Capital Programme 2021/22,6501,Contract Payments,Capital - Chief Executive
Blackpool Council,1115668,Greenfield Removals Ltd,4585277,INV-16272,03/12/2021,584.4,97.4,CXC21,Hra Capital Programme 2021/22,6501,Contract Payments,Capital - Chief Executive
Blackpool Council,1115668,Greenfield Removals Ltd,4585278,INV-16273,03/12/2021,474,79,CXC21,Hra Capital Programme 2021/22,6501,Contract Payments,Capital - Chief Executive
Blackpool Council,1115668,Greenfield Removals Ltd,4585280,INV-16275,03/12/2021,2220,370,CXC21,Hra Capital Programme 2021/22,6501,Contract Payments,Capital - Chief Executive
Blackpool Council,1115668,Greenfield Removals Ltd,4585281,INV-16276,03/12/2021,356.4,59.4,CXC21,Hra Capital Programme 2021/22,6501,Contract Payments,Capital - Chief Executive
Blackpool Council,1115668,Greenfield Removals Ltd,4585282,INV-16277,03/12/2021,750.9,125.15,CXC21,Hra Capital Programme 2021/22,6501,Contract Payments,Capital - Chief Executive
Blackpool Council,1115668,Greenfield Removals Ltd,4585283,INV-16278,03/12/2021,898.68,149.78,CXC21,Hra Capital Programme 2021/22,6501,Contract Payments,Capital - Chief Executive
Blackpool Council,1115668,Greenfield Removals Ltd,4585284,INV-16279,03/12/2021,366,61,CXC21,Hra Capital Programme 2021/22,6501,Contract Payments,Capital - Chief Executive
Blackpool Council,1115668,Greenfield Removals Ltd,4585285,INV-16280,03/12/2021,1056.42,176.07,CXC21,Hra Capital Programme 2021/22,6501,Contract Payments,Capital - Chief Executive
Blackpool Council,1115668,Greenfield Removals Ltd,4585286,INV-16281,03/12/2021,647.1,107.85,CXC21,Hra Capital Programme 2021/22,6501,Contract Payments,Capital - Chief Executive
Blackpool Council,1115668,Greenfield Removals Ltd,4585287,INV-16282,03/12/2021,564,94,CXC21,Hra Capital Programme 2021/22,6501,Contract Payments,Capital - Chief Executive
Blackpool Council,1075175,Waterman Environmental Services Limited,4585460,16289,01/12/2021,400.94,66.82,AEB,Buildings,1012,Premises Maint-Priv.Contractor,Resources
Blackpool Council,1112231,North West Fire Protection Limited,4585475,0084BCH,03/12/2021,1644,274,CXC21,Hra Capital Programme 2021/22,6501,Contract Payments,Capital - Chief Executive
Blackpool Council,1131315,Minibugs Nurseries Limited,4585642,0000021839,01/12/2021,794.68,0,JEA,Senior Management,5510,Nursery,Children'S Services
Blackpool Council,1077392,Reed Specialist Recruitment Ltd,4585939,E020964448M,09/12/2021,1376.2,229.38,EM1002,Education Finance,0791,Temp/Relief (Bureau Staff),Children'S Services
Blackpool Council,1077392,Reed Specialist Recruitment Ltd,4585939,E020964448M,09/12/2021,4996.08,832.68,JAB,Locality,0791,Temp/Relief (Bureau Staff),Children'S Services
Blackpool Council,1077392,Reed Specialist Recruitment Ltd,4585939,E020964448M,09/12/2021,3330.72,555.12,JAH,Duty And Assessment,0791,Temp/Relief (Bureau Staff),Children'S Services
Blackpool Council,1077392,Reed Specialist Recruitment Ltd,4585939,E020964448M,09/12/2021,3330.72,555.12,JBR,Lac - Placements,0791,Temp/Relief (Bureau Staff),Children'S Services
Blackpool Council,1077392,Reed Specialist Recruitment Ltd,4585939,E020964448M,09/12/2021,6923.57,1153.93,JBT,Looked After Children,0791,Temp/Relief (Bureau Staff),Children'S Services
Blackpool Council,1077392,Reed Specialist Recruitment Ltd,4585939,E020964448M,09/12/2021,4336.08,722.69,JEA,Senior Management,0791,Temp/Relief (Bureau Staff),Children'S Services
Blackpool Council,1077392,Reed Specialist Recruitment Ltd,4585939,E020964448M,09/12/2021,5620.72,936.81,PU0000,Covid Test And Trace,0791,Temp/Relief (Bureau Staff),Public Health
Blackpool Council,1009824,Acorn Care & Education Ltd,4585940,58146,08/12/2021,23685.67,0,CWAN,Children With Additional Needs,4501,Private Contractors,Children'S Services
Blackpool Council,1009824,Acorn Care & Education Ltd,4585941,58145,08/12/2021,16245,0,CWAN,Children With Additional Needs,4501,Private Contractors,Children'S Services
Blackpool Council,1114522,The Oyster Partnership Ltd,4585954,10913398,01/12/2021,1299.6,216.6,BAAA,Legal Services,0793,Supply Cost Of Other Agency,Governance & Partnerships
Blackpool Council,1130425,Sure Maintenance,4586018,315686,03/12/2021,364.8,60.8,PTA,Economic Development,1121,Heating & Ventilation,Places
Blackpool Council,1123190,Cder Group Limted,4586118,186611,03/12/2021,479.56,79.93,FBBEA,"Income, Recovery & Debtors",3807,Legal & Court Costs,Resources
Blackpool Council,1113165,Target Psychology Ltd,4587203,11/21/5383,02/12/2021,739.37,123.23,JEA,Senior Management,4712,Experts Fees,Children'S Services
Blackpool Council,1116675,Pickering Psychology Services Ltd,4587204,PPS3836,03/12/2021,330.78,55.13,JEA,Senior Management,4712,Experts Fees,Children'S Services
Blackpool Council,1116675,Pickering Psychology Services Ltd,4587206,PPS3838,03/12/2021,2906.02,484.34,JEA,Senior Management,4712,Experts Fees,Children'S Services
Blackpool Council,1117457,Wrps Ltd,4587342,9638,09/12/2021,24724.63,4120.77,CXC21,Hra Capital Programme 2021/22,6501,Contract Payments,Capital - Chief Executive
Blackpool Council,1117457,Wrps Ltd,4587343,9637,09/12/2021,2106.82,351.14,CXC21,Hra Capital Programme 2021/22,6501,Contract Payments,Capital - Chief Executive
Blackpool Council,1117457,Wrps Ltd,4587344,9642,09/12/2021,551.22,91.87,CXC21,Hra Capital Programme 2021/22,6501,Contract Payments,Capital - Chief Executive
Blackpool Council,1117457,Wrps Ltd,4587345,9643,09/12/2021,648.94,108.16,CXC21,Hra Capital Programme 2021/22,6501,Contract Payments,Capital - Chief Executive
Blackpool Council,1117457,Wrps Ltd,4587346,9639,09/12/2021,1736.88,289.48,CXC21,Hra Capital Programme 2021/22,6501,Contract Payments,Capital - Chief Executive
Blackpool Council,1117457,Wrps Ltd,4587347,9640,09/12/2021,1252.22,208.7,CXC21,Hra Capital Programme 2021/22,6501,Contract Payments,Capital - Chief Executive
Blackpool Council,1117457,Wrps Ltd,4587348,9641,09/12/2021,1569.35,261.56,CXC21,Hra Capital Programme 2021/22,6501,Contract Payments,Capital - Chief Executive
Blackpool Council,1088102,Whistl Uk Limited,4587349,IN18US21005725,03/12/2021,4072.2,678.7,FCADA,Customer Services,3511,Postages,Resources
Blackpool Council,1117457,Wrps Ltd,4587350,9644,09/12/2021,450.89,75.15,CXC21,Hra Capital Programme 2021/22,6501,Contract Payments,Capital - Chief Executive
Blackpool Council,1011995,Technical & Electrical Services Ltd,4587351,VR 21415,03/12/2021,343.07,57.18,CXC21,Hra Capital Programme 2021/22,6501,Contract Payments,Capital - Chief Executive
Blackpool Council,1011995,Technical & Electrical Services Ltd,4587352,VR 21416,03/12/2021,343.07,57.18,CXC21,Hra Capital Programme 2021/22,6501,Contract Payments,Capital - Chief Executive
Blackpool Council,1102179,Bedspace Resource Ltd,4587430,BLACKPOO 229349,03/12/2021,3696,616,JEA,Senior Management,5551,Rent & Rent Bonds,Children'S Services
Blackpool Council,1112657,Care Afloat Ltd,4587431,7530,02/12/2021,15627.9,0,JEA,Senior Management,4501,Private Contractors,Children'S Services
Blackpool Council,1128694,Imap Centre Limited,4587432,R0007,03/12/2021,52920,0,JEA,Senior Management,4501,Private Contractors,Children'S Services
Blackpool Council,1075968,Care Today Childrens Services,4587433,31297,01/12/2021,20699.2,3449.87,JEA,Senior Management,4501,Private Contractors,Children'S Services
Blackpool Council,1114367,Northwest Leaving Care Services Ltd,4587436,3615ATPS,03/12/2021,4114.29,0,JEA,Senior Management,5551,Rent & Rent Bonds,Children'S Services
Blackpool Council,1087549,Merlin Entertainments (Blackpool) Ltd,4587590,INV13026-00005705,09/12/2021,19687.84,0,PVA,Other External Funding,3401,General Services,Places
Blackpool Council,1131982,Alpha Language Services Ltd,4587637,ALS 112469,02/12/2021,337.86,56.31,JEA,Senior Management,4712,Experts Fees,Children'S Services
Blackpool Council,1044395,Sellick Partnership Limited,4587805,INV382570,08/12/2021,1861.2,310.2,BAAA,Legal Services,0793,Supply Cost Of Other Agency,Governance & Partnerships
Blackpool Council,1085291,REDACTED PERSONAL DATA,4587811,267008,01/12/2021,840,140,BAAA,Legal Services,4707,Counsels Fees,Governance & Partnerships
Blackpool Council,1121818,REDACTED PERSONAL DATA,4587812,268749,03/12/2021,768,128,BAAA,Legal Services,4707,Counsels Fees,Governance & Partnerships
Blackpool Council,1093061,REDACTED PERSONAL DATA,4587813,INV/MDJ/369535/22,03/12/2021,300,50,BAAA,Legal Services,4707,Counsels Fees,Governance & Partnerships
Blackpool Council,1007612,REDACTED PERSONAL DATA,4587815,266832,03/12/2021,810,135,BAAA,Legal Services,4707,Counsels Fees,Governance & Partnerships
Blackpool Council,1050674,REDACTED PERSONAL DATA,4587884,460018,08/12/2021,1836,306,BAAA,Legal Services,4707,Counsels Fees,Governance & Partnerships
Blackpool Council,1085291,REDACTED PERSONAL DATA,4587886,264565,09/12/2021,5520,920,BAAA,Legal Services,4707,Counsels Fees,Governance & Partnerships
Blackpool Council,1108346,Lancashire Interpretation & Translation Serv,4587894,LITS/081121/RD,06/12/2021,2892.84,482.14,JEA,Senior Management,4712,Experts Fees,Children'S Services
Blackpool Council,1117457,Wrps Ltd,4587955,9660,09/12/2021,2538,423,CXC21,Hra Capital Programme 2021/22,6501,Contract Payments,Capital - Chief Executive
Blackpool Council,1117457,Wrps Ltd,4587956,9661,09/12/2021,3088.8,514.8,CXXXX,Hra Non Specific Contingency,6501,Contract Payments,Capital - Chief Executive
Blackpool Council,1117457,Wrps Ltd,4587957,9662,09/12/2021,3088.8,514.8,CXXXX,Hra Non Specific Contingency,6501,Contract Payments,Capital - Chief Executive
Blackpool Council,1104767,North Star Environmental Ltd,4587958,INV-24209,10/12/2021,282,47,CXC21,Hra Capital Programme 2021/22,6501,Contract Payments,Capital - Chief Executive
Blackpool Council,1026811,Stannah Lift Services Ltd,4587959,1085336512,08/12/2021,331.52,55.25,MVB,65-74,5401,Aids To Daily Living,Adult & Families
Blackpool Council,1006196,Prism Medical Uk Ltd,4587971,5473615,08/12/2021,1990.28,331.71,MTE,Undefined Age Group,5401,Aids To Daily Living,Adult & Families
Blackpool Council,1006196,Prism Medical Uk Ltd,4587973,5473616,08/12/2021,766.68,127.78,MTE,Undefined Age Group,5401,Aids To Daily Living,Adult & Families
Blackpool Council,1006196,Prism Medical Uk Ltd,4587976,5474564,08/12/2021,300.48,50.08,MTE,Undefined Age Group,5401,Aids To Daily Living,Adult & Families
Blackpool Council,1105003,Socal Healthcare Ltd,4587978,1121-037-038,03/12/2021,351.89,0,JDEAAA,Safeguarding Adults,4501,Private Contractors,Adult & Families
Blackpool Council,1006196,Prism Medical Uk Ltd,4587979,5478024,08/12/2021,420.67,70.11,MTE,Undefined Age Group,5401,Aids To Daily Living,Adult & Families
Blackpool Council,1006196,Prism Medical Uk Ltd,4587981,5476689,08/12/2021,321.62,53.6,MTE,Undefined Age Group,5401,Aids To Daily Living,Adult & Families
Blackpool Council,1006196,Prism Medical Uk Ltd,4587983,5473094,08/12/2021,553.91,92.32,MTE,Undefined Age Group,5401,Aids To Daily Living,Adult & Families
Blackpool Council,1006196,Prism Medical Uk Ltd,4587984,5472014,08/12/2021,528.44,88.07,MTE,Undefined Age Group,5401,Aids To Daily Living,Adult & Families
Blackpool Council,1006196,Prism Medical Uk Ltd,4587985,5471514,08/12/2021,257.98,43,MTE,Undefined Age Group,5401,Aids To Daily Living,Adult & Families
Blackpool Council,1006196,Prism Medical Uk Ltd,4587986,5470548,08/12/2021,307.17,51.2,MTE,Undefined Age Group,5401,Aids To Daily Living,Adult & Families
Blackpool Council,1006196,Prism Medical Uk Ltd,4587988,5472186,08/12/2021,318.26,53.04,MTE,Undefined Age Group,5401,Aids To Daily Living,Adult & Families
Blackpool Council,1006196,Prism Medical Uk Ltd,4587989,5472602,08/12/2021,373.94,62.32,MTE,Undefined Age Group,5401,Aids To Daily Living,Adult & Families
Blackpool Council,1006196,Prism Medical Uk Ltd,4587990,5470425,08/12/2021,587.56,97.93,MTE,Undefined Age Group,5401,Aids To Daily Living,Adult & Families
Blackpool Council,1128427,Igpp Limited,4587993,6457,10/12/2021,312,52,ALD,Learning Disability,0911,Training Expenses,Adult & Families
Blackpool Council,1120588,G2 Recruitment Solutions,4588233,90833,03/12/2021,3150,525,AEF,Facilities,1012,Premises Maint-Priv.Contractor,Resources
Blackpool Council,1120588,G2 Recruitment Solutions,4588234,90832,03/12/2021,2798.1,466.35,AEF,Facilities,0791,Temp/Relief (Bureau Staff),Resources
Blackpool Council,1130425,Sure Maintenance,4588236,315697,03/12/2021,273.6,45.6,AEB,Buildings,1121,Heating & Ventilation,Resources
Blackpool Council,1110793,REDACTED PERSONAL DATA,4588255,TCPGNH121ABH,08/12/2021,562.5,0,JBR,Lac - Placements,3801,Other Expenses,Children'S Services
Blackpool Council,1110793,REDACTED PERSONAL DATA,4588256,TCPGNH121KC,08/12/2021,500,0,JBR,Lac - Placements,3801,Other Expenses,Children'S Services
Blackpool Council,1110793,REDACTED PERSONAL DATA,4588263,TCPGNH1121CB,08/12/2021,518.75,0,JBR,Lac - Placements,3801,Other Expenses,Children'S Services
Blackpool Council,1110793,REDACTED PERSONAL DATA,4588264,TCPGNH1121TJ,08/12/2021,500,0,JBR,Lac - Placements,3801,Other Expenses,Children'S Services
Blackpool Council,1110793,REDACTED PERSONAL DATA,4588265,TCPGNH1121OC,08/12/2021,375,0,JBR,Lac - Placements,3801,Other Expenses,Children'S Services
Blackpool Council,1124113,Innovate Therapeutic Care Ltd,4588278,TCI00000105,07/12/2021,21116.46,3519.41,JEA,Senior Management,4701,Other Contracted Services,Children'S Services
Blackpool Council,1097714,J S Educational Limited,4588279,210010,09/12/2021,3360,0,CWAN,Children With Additional Needs,3408,Services To Clients,Children'S Services
Blackpool Council,1011995,Technical & Electrical Services Ltd,4588338,C 9587,03/12/2021,1029.2,171.53,CXC21,Hra Capital Programme 2021/22,6501,Contract Payments,Capital - Chief Executive
Blackpool Council,1011995,Technical & Electrical Services Ltd,4588340,C 9586,03/12/2021,2504.26,417.38,CXC21,Hra Capital Programme 2021/22,6501,Contract Payments,Capital - Chief Executive
Blackpool Council,1121077,Simon Lang T/A J & J Decorating Services,4588497,302,09/12/2021,420,70,CEBCAB,Devolved Capital,6501,Contract Payments,Capital - Childrens
Blackpool Council,1130425,Sure Maintenance,4588498,315710,03/12/2021,1691.11,281.85,PTA,Economic Development,1012,Premises Maint-Priv.Contractor,Places
Blackpool Council,1130425,Sure Maintenance,4588501,315696,03/12/2021,1471.25,245.21,AEB,Buildings,1012,Premises Maint-Priv.Contractor,Resources
Blackpool Council,1123190,Cder Group Limted,4588538,187510,10/12/2021,735.47,122.58,FBBEA,"Income, Recovery & Debtors",3807,Legal & Court Costs,Resources
Blackpool Council,1115668,Greenfield Removals Ltd,4588582,INV-16300,10/12/2021,446.64,74.44,CXC21,Hra Capital Programme 2021/22,6501,Contract Payments,Capital - Chief Executive
Blackpool Council,1039034,Contract Floors Ltd,4588585,INV-1727,02/12/2021,774,129,CXXXX,Hra Non Specific Contingency,6501,Contract Payments,Capital - Chief Executive
Blackpool Council,1114522,The Oyster Partnership Ltd,4589081,10913928,08/12/2021,1596,266,BAAA,Legal Services,0793,Supply Cost Of Other Agency,Governance & Partnerships
Blackpool Council,1088102,Whistl Uk Limited,4589084,IN18US21005857,10/12/2021,3885.76,647.63,FCADA,Customer Services,3511,Postages,Resources
Blackpool Council,1107100,Nonstop Consulting Ltd,4589090,191405,09/12/2021,2114.33,352.39,JBT,Looked After Children,0791,Temp/Relief (Bureau Staff),Children'S Services
Blackpool Council,1093061,REDACTED PERSONAL DATA,4589093,443417,01/12/2021,5592,932,BAAA,Legal Services,4707,Counsels Fees,Governance & Partnerships
Blackpool Council,1106471,Mayne Special Needs,4589443,MSN-BES825,08/12/2021,760,0,MTE,Undefined Age Group,5401,Aids To Daily Living,Adult & Families
Blackpool Council,1044395,Sellick Partnership Limited,4589444,INV383628,14/12/2021,1917.6,319.6,BAAA,Legal Services,0793,Supply Cost Of Other Agency,Governance & Partnerships
Blackpool Council,1006196,Prism Medical Uk Ltd,4589445,5492615,15/12/2021,960,160,MTE,Undefined Age Group,3006,Hire Of Equipment,Adult & Families
Blackpool Council,1120588,G2 Recruitment Solutions,4589495,91233,10/12/2021,1419.3,236.55,AEF,Facilities,0791,Temp/Relief (Bureau Staff),Resources
Blackpool Council,1120588,G2 Recruitment Solutions,4589496,91234,10/12/2021,1575,262.5,AEF,Facilities,1012,Premises Maint-Priv.Contractor,Resources
Blackpool Council,1011675,Bambers Remedial Contractors Limited,4589514,17262,03/12/2021,32206.44,5367.74,CXC21,Hra Capital Programme 2021/22,6501,Contract Payments,Capital - Chief Executive
Blackpool Council,1077392,Reed Specialist Recruitment Ltd,4589533,E020965567M,09/12/2021,792.35,132.06,EM1002,Education Finance,0791,Temp/Relief (Bureau Staff),Children'S Services
Blackpool Council,1077392,Reed Specialist Recruitment Ltd,4589533,E020965567M,09/12/2021,1665.36,277.56,JAB,Locality,0791,Temp/Relief (Bureau Staff),Children'S Services
Blackpool Council,1077392,Reed Specialist Recruitment Ltd,4589533,E020965567M,09/12/2021,4996.08,832.68,JAH,Duty And Assessment,0791,Temp/Relief (Bureau Staff),Children'S Services
Blackpool Council,1077392,Reed Specialist Recruitment Ltd,4589533,E020965567M,09/12/2021,1350.29,225.05,JBR,Lac - Placements,0791,Temp/Relief (Bureau Staff),Children'S Services
Blackpool Council,1077392,Reed Specialist Recruitment Ltd,4589533,E020965567M,09/12/2021,5351.28,891.88,JBT,Looked After Children,0791,Temp/Relief (Bureau Staff),Children'S Services
Blackpool Council,1077392,Reed Specialist Recruitment Ltd,4589533,E020965567M,09/12/2021,4996.22,832.71,JEA,Senior Management,0791,Temp/Relief (Bureau Staff),Children'S Services
Blackpool Council,1077392,Reed Specialist Recruitment Ltd,4589533,E020965567M,09/12/2021,1439.7,239.95,PJBA,Wages Overhead Account,0791,Temp/Relief (Bureau Staff),Places
Blackpool Council,1077392,Reed Specialist Recruitment Ltd,4589533,E020965567M,09/12/2021,6330.88,1055.19,PU0000,Covid Test And Trace,0791,Temp/Relief (Bureau Staff),Public Health
Blackpool Council,1111078,Dr Y P Shukla,4589535,52/2021,14/12/2021,1400,0,JDEAAA,Safeguarding Adults,4501,Private Contractors,Adult & Families
Blackpool Council,1121463,Calder Lodge Limited,4590178,1126,10/12/2021,12600,0,CWAN,Children With Additional Needs,4501,Private Contractors,Children'S Services
Blackpool Council,1121463,Calder Lodge Limited,4590186,1125,10/12/2021,12600,0,CWAN,Children With Additional Needs,4501,Private Contractors,Children'S Services
Blackpool Council,1006385,University Of Central Lancashire,4590193,TUI256800043,07/12/2021,785,0,LM0420,Adults Training,0911,Training Expenses,Adult & Families
Blackpool Council,1121463,Calder Lodge Limited,4590194,1124,10/12/2021,12600,0,CWAN,Children With Additional Needs,4501,Private Contractors,Children'S Services
Blackpool Council,1121463,Calder Lodge Limited,4590197,1123,10/12/2021,12600,0,CWAN,Children With Additional Needs,4501,Private Contractors,Children'S Services
Blackpool Council,1121463,Calder Lodge Limited,4590198,1121,10/12/2021,12600,0,CWAN,Children With Additional Needs,4501,Private Contractors,Children'S Services
Blackpool Council,1121463,Calder Lodge Limited,4590199,1122,10/12/2021,12600,0,CWAN,Children With Additional Needs,4501,Private Contractors,Children'S Services
Blackpool Council,1041219,Abelglass Trade Supplies Ltd,4590201,INV-6843,13/12/2021,4712.4,785.4,CXC21,Hra Capital Programme 2021/22,6501,Contract Payments,Capital - Chief Executive
Blackpool Council,1104767,North Star Environmental Ltd,4590204,INV-24138,10/12/2021,1344,224,CXC21,Hra Capital Programme 2021/22,6501,Contract Payments,Capital - Chief Executive
Blackpool Council,1112231,North West Fire Protection Limited,4590205,0077BCH,02/12/2021,525,87.5,CXC21,Hra Capital Programme 2021/22,6501,Contract Payments,Capital - Chief Executive
Blackpool Council,1112231,North West Fire Protection Limited,4590207,0080BCH,02/12/2021,1248,208,CXC21,Hra Capital Programme 2021/22,6501,Contract Payments,Capital - Chief Executive
Blackpool Council,1115716,North Liverpool Construction Ltd (Fac067),4590210,129230,15/12/2021,718.15,119.7,CXXXX,Hra Non Specific Contingency,6501,Contract Payments,Capital - Chief Executive
Blackpool Council,1115716,North Liverpool Construction Ltd (Fac067),4590212,129190,15/12/2021,890.16,148.36,CXC21,Hra Capital Programme 2021/22,6501,Contract Payments,Capital - Chief Executive
Blackpool Council,1115716,North Liverpool Construction Ltd (Fac067),4590213,129197,15/12/2021,669,111.5,CXXXX,Hra Non Specific Contingency,6501,Contract Payments,Capital - Chief Executive
Blackpool Council,1115716,North Liverpool Construction Ltd (Fac067),4590214,129191,15/12/2021,712.13,118.69,CXC21,Hra Capital Programme 2021/22,6501,Contract Payments,Capital - Chief Executive
Blackpool Council,1115716,North Liverpool Construction Ltd (Fac067),4590215,129201,15/12/2021,922.72,153.79,CXXXX,Hra Non Specific Contingency,6501,Contract Payments,Capital - Chief Executive
Blackpool Council,1115716,North Liverpool Construction Ltd (Fac067),4590216,129192,15/12/2021,712.13,118.69,CXC21,Hra Capital Programme 2021/22,6501,Contract Payments,Capital - Chief Executive
Blackpool Council,1115716,North Liverpool Construction Ltd (Fac067),4590218,129194,15/12/2021,810,135,CXC21,Hra Capital Programme 2021/22,6501,Contract Payments,Capital - Chief Executive
Blackpool Council,1115716,North Liverpool Construction Ltd (Fac067),4590219,129220,15/12/2021,390,65,MVB,65-74,5401,Aids To Daily Living,Adult & Families
Blackpool Council,1115716,North Liverpool Construction Ltd (Fac067),4590221,129222,15/12/2021,273,45.5,MVB,65-74,5401,Aids To Daily Living,Adult & Families
Blackpool Council,1115716,North Liverpool Construction Ltd (Fac067),4590222,129223,15/12/2021,273,45.5,MVB,65-74,5401,Aids To Daily Living,Adult & Families
Blackpool Council,1115716,North Liverpool Construction Ltd (Fac067),4590223,129224,15/12/2021,312,52,MVB,65-74,5401,Aids To Daily Living,Adult & Families
Blackpool Council,1115716,North Liverpool Construction Ltd (Fac067),4590224,129225,15/12/2021,312,52,MVB,65-74,5401,Aids To Daily Living,Adult & Families
Blackpool Council,1115716,North Liverpool Construction Ltd (Fac067),4590225,129226,15/12/2021,585,97.5,MVB,65-74,5401,Aids To Daily Living,Adult & Families
Blackpool Council,1115716,North Liverpool Construction Ltd (Fac067),4590228,129229,15/12/2021,312,52,MVB,65-74,5401,Aids To Daily Living,Adult & Families
Blackpool Council,1115716,North Liverpool Construction Ltd (Fac067),4590229,129195,15/12/2021,2004.32,334.07,CXC21,Hra Capital Programme 2021/22,6501,Contract Payments,Capital - Chief Executive
Blackpool Council,1115716,North Liverpool Construction Ltd (Fac067),4590230,129196,15/12/2021,3765.73,627.63,CXXXX,Hra Non Specific Contingency,6501,Contract Payments,Capital - Chief Executive
Blackpool Council,1115716,North Liverpool Construction Ltd (Fac067),4590231,129198,15/12/2021,1501.11,250.18,CXC21,Hra Capital Programme 2021/22,6501,Contract Payments,Capital - Chief Executive
Blackpool Council,1115716,North Liverpool Construction Ltd (Fac067),4590232,129199,15/12/2021,1675.68,279.3,CXC21,Hra Capital Programme 2021/22,6501,Contract Payments,Capital - Chief Executive
Blackpool Council,1115716,North Liverpool Construction Ltd (Fac067),4590233,129200,15/12/2021,1884.91,314.16,CXXXX,Hra Non Specific Contingency,6501,Contract Payments,Capital - Chief Executive
Blackpool Council,1115716,North Liverpool Construction Ltd (Fac067),4590234,129202,15/12/2021,12014.18,2002.36,CXC21,Hra Capital Programme 2021/22,6501,Contract Payments,Capital - Chief Executive
Blackpool Council,1006196,Prism Medical Uk Ltd,4590296,5486666,08/12/2021,848.92,141.49,MTE,Undefined Age Group,5401,Aids To Daily Living,Adult & Families
Blackpool Council,1006196,Prism Medical Uk Ltd,4590297,5486667,08/12/2021,706.01,117.67,MTE,Undefined Age Group,5401,Aids To Daily Living,Adult & Families
Blackpool Council,1006196,Prism Medical Uk Ltd,4590299,5486665,08/12/2021,1420.28,236.71,MTE,Undefined Age Group,5401,Aids To Daily Living,Adult & Families
Blackpool Council,1107100,Nonstop Consulting Ltd,4590305,191634,14/12/2021,2114.33,352.39,JBT,Looked After Children,0791,Temp/Relief (Bureau Staff),Children'S Services
Blackpool Council,1123472,Lancashire Care Ltd T/A Lastminute Care,4590307,14559,07/12/2021,369.6,0,MTE,Undefined Age Group,4507,Domiciliary Care,Adult & Families
Blackpool Council,1123472,Lancashire Care Ltd T/A Lastminute Care,4590308,14581,07/12/2021,1108.8,0,MTE,Undefined Age Group,4507,Domiciliary Care,Adult & Families
Blackpool Council,1123472,Lancashire Care Ltd T/A Lastminute Care,4590309,14601,07/12/2021,924,0,MTE,Undefined Age Group,4507,Domiciliary Care,Adult & Families
Blackpool Council,1112757,Corona Contracts Ltd,4590343,4028,14/12/2021,288,48,AEB,Buildings,1012,Premises Maint-Priv.Contractor,Resources
Blackpool Council,1132206,Sport And Play Limited,4590349,185505,14/12/2021,474,79,LEISUR,Leisure Management,1012,Premises Maint-Priv.Contractor,Community & Env Services
Blackpool Council,1010450,New Thursby Nursing Home,4591077,430513I,01/12/2021,1164.14,0,MVD,85+,4506,Nursing Homes,Adult & Families
Blackpool Council,1010450,New Thursby Nursing Home,4591078,431378,01/12/2021,347.89,0,MVD,85+,7583,Indep Sect Nursing Homes,Adult & Families
Blackpool Council,1010450,New Thursby Nursing Home,4591079,430822I,01/12/2021,382.76,0,MVD,85+,7583,Indep Sect Nursing Homes,Adult & Families
Blackpool Council,1089769,Federation Of Jewish Services,4591397,431148,01/12/2021,1532,0,MVC,75-84,4506,Nursing Homes,Adult & Families
Blackpool Council,1086620,REDACTED PERSONAL DATA,4591688,459556,14/12/2021,568,94.67,BAAA,Legal Services,4707,Counsels Fees,Governance & Partnerships
Blackpool Council,1086620,REDACTED PERSONAL DATA,4591689,459554,14/12/2021,568,94.67,BAAA,Legal Services,4707,Counsels Fees,Governance & Partnerships
Blackpool Council,1132172,REDACTED PERSONAL DATA,4591690,485463,10/12/2021,4590,765,PKAAA,Head Of Planning & Trans,3807,Legal & Court Costs,Places
Blackpool Council,1091377,REDACTED PERSONAL DATA,4591691,266368,10/12/2021,2292,382,BAAA,Legal Services,4707,Counsels Fees,Governance & Partnerships
Blackpool Council,1086620,REDACTED PERSONAL DATA,4591692,459557,14/12/2021,568,94.67,BAAA,Legal Services,4707,Counsels Fees,Governance & Partnerships
Blackpool Council,1121260,REDACTED PERSONAL DATA,4591695,267140,10/12/2021,5178,863,BAAA,Legal Services,4707,Counsels Fees,Governance & Partnerships
Blackpool Council,1085658,REDACTED PERSONAL DATA,4591696,269299,10/12/2021,1062,177,BAAA,Legal Services,4707,Counsels Fees,Governance & Partnerships
Blackpool Council,1024640,REDACTED PERSONAL DATA,4591697,458698,10/12/2021,1488,248,BAAA,Legal Services,4707,Counsels Fees,Governance & Partnerships
Blackpool Council,1122515,REDACTED PERSONAL DATA,4591698,455900,14/12/2021,1500,250,BAAA,Legal Services,4707,Counsels Fees,Governance & Partnerships
Blackpool Council,1113165,Target Psychology Ltd,4591699,11/21/5447,14/12/2021,1989,331.5,JEA,Senior Management,4712,Experts Fees,Children'S Services
Blackpool Council,1100221,Forensic Testing Service Ltd,4591700,79516,10/12/2021,448.12,74.69,JEA,Senior Management,4712,Experts Fees,Children'S Services
Blackpool Council,1115108,Lindsay Cunningham Limited,4591965,824D,10/12/2021,842.28,140.37,JEA,Senior Management,4712,Experts Fees,Children'S Services
Blackpool Council,1120433,Lextox,4591966,234578,10/12/2021,448.5,74.75,JEA,Senior Management,4712,Experts Fees,Children'S Services
Blackpool Council,1117457,Wrps Ltd,4591980,9678,16/12/2021,997.08,166.18,CXXXX,Hra Non Specific Contingency,6501,Contract Payments,Capital - Chief Executive
Blackpool Council,1117457,Wrps Ltd,4591981,9674,16/12/2021,659.29,109.88,CXC21,Hra Capital Programme 2021/22,6501,Contract Payments,Capital - Chief Executive
Blackpool Council,1117457,Wrps Ltd,4591982,9675,16/12/2021,462,77,CXXXX,Hra Non Specific Contingency,6501,Contract Payments,Capital - Chief Executive
Blackpool Council,1117457,Wrps Ltd,4591983,9676,16/12/2021,462,77,CXXXX,Hra Non Specific Contingency,6501,Contract Payments,Capital - Chief Executive
Blackpool Council,1117457,Wrps Ltd,4591984,9677,16/12/2021,719.64,119.94,CXC21,Hra Capital Programme 2021/22,6501,Contract Payments,Capital - Chief Executive
Blackpool Council,1117457,Wrps Ltd,4591985,9683,16/12/2021,1051.34,175.22,CXC21,Hra Capital Programme 2021/22,6501,Contract Payments,Capital - Chief Executive
Blackpool Council,1117457,Wrps Ltd,4591986,9684,16/12/2021,1051.34,175.22,CXC21,Hra Capital Programme 2021/22,6501,Contract Payments,Capital - Chief Executive
Blackpool Council,1117457,Wrps Ltd,4591987,9685,16/12/2021,563.28,93.88,CXC21,Hra Capital Programme 2021/22,6501,Contract Payments,Capital - Chief Executive
Blackpool Council,1117457,Wrps Ltd,4591988,9686,16/12/2021,982.9,163.82,CXC21,Hra Capital Programme 2021/22,6501,Contract Payments,Capital - Chief Executive
Blackpool Council,1129716,REDACTED PERSONAL DATA,4592369,432053,16/12/2021,455.52,0,MVA,18-64,5604,Direct Payments,Adult & Families
Blackpool Council,1102179,Bedspace Resource Ltd,4592719,BLACKPOO 230135,10/12/2021,305,0,JEA,Senior Management,5554,Personal Needs (Lca Only),Children'S Services
Blackpool Council,1118652,Paradigm Professional Consultancy Ltd,4592720,V66V118052,03/12/2021,2115,352.5,JAH,Duty And Assessment,0791,Temp/Relief (Bureau Staff),Children'S Services
Blackpool Council,1117457,Wrps Ltd,4593557,9687,16/12/2021,1132.82,188.8,CXC21,Hra Capital Programme 2021/22,6501,Contract Payments,Capital - Chief Executive
Blackpool Council,1117457,Wrps Ltd,4593558,9695,16/12/2021,438,73,CXXXX,Hra Non Specific Contingency,6501,Contract Payments,Capital - Chief Executive
Blackpool Council,1117457,Wrps Ltd,4593560,9690,16/12/2021,952.9,158.82,CXC21,Hra Capital Programme 2021/22,6501,Contract Payments,Capital - Chief Executive
Blackpool Council,1117457,Wrps Ltd,4593561,9691,16/12/2021,469.43,78.24,CXC21,Hra Capital Programme 2021/22,6501,Contract Payments,Capital - Chief Executive
Blackpool Council,1117457,Wrps Ltd,4593562,9692,16/12/2021,1300.94,216.82,CXC21,Hra Capital Programme 2021/22,6501,Contract Payments,Capital - Chief Executive
Blackpool Council,1117457,Wrps Ltd,4593563,9693,16/12/2021,715.3,119.22,CXC21,Hra Capital Programme 2021/22,6501,Contract Payments,Capital - Chief Executive
Blackpool Council,1117457,Wrps Ltd,4593564,9694,16/12/2021,2772,462,CXXXX,Hra Non Specific Contingency,6501,Contract Payments,Capital - Chief Executive
Blackpool Council,1117457,Wrps Ltd,4593565,9688,16/12/2021,993.49,165.58,CXC21,Hra Capital Programme 2021/22,6501,Contract Payments,Capital - Chief Executive
Blackpool Council,1017722,Terrys Cut Price Carpets Ltd,4593566,1639,02/12/2021,285.6,47.6,CXC11,Site Development,6501,Contract Payments,Capital - Chief Executive
Blackpool Council,1017722,Terrys Cut Price Carpets Ltd,4593567,1640,02/12/2021,370.8,61.8,CXC11,Site Development,6501,Contract Payments,Capital - Chief Executive
Blackpool Council,1039034,Contract Floors Ltd,4593568,INV-1724,02/12/2021,8726.28,1454.38,CXC11,Site Development,6501,Contract Payments,Capital - Chief Executive
Blackpool Council,1039034,Contract Floors Ltd,4593569,INV-1736,03/12/2021,1353.6,225.6,CXXXX,Hra Non Specific Contingency,6501,Contract Payments,Capital - Chief Executive
Blackpool Council,1123190,Cder Group Limted,4593583,188287,16/12/2021,455.75,75.96,FBBEA,"Income, Recovery & Debtors",3807,Legal & Court Costs,Resources
Blackpool Council,1096256,REDACTED PERSONAL DATA,4593584,18527,14/12/2021,600,0,BSTPRJ,Better Start Projects,3401,General Services,Better Start Projects
Blackpool Council,1039034,Contract Floors Ltd,4593597,INV-1737,02/12/2021,1074,179,CXXXX,Hra Non Specific Contingency,6501,Contract Payments,Capital - Chief Executive
Blackpool Council,1118028,Portalplanquest Ltd,4593639,PP-09250586,07/12/2021,12846,0,PLBAAA,Development Control,3401,General Services,Places
Blackpool Council,1112757,Corona Contracts Ltd,4593682,4020,08/12/2021,991.2,165.2,AEB,Buildings,1012,Premises Maint-Priv.Contractor,Resources
Blackpool Council,1098363,Carter Brown - The Expert Service Limited,4593948,TI027613,14/12/2021,299.52,49.92,JEA,Senior Management,4712,Experts Fees,Children'S Services
Blackpool Council,1073538,Dac Beachcroft Llp,4593972,01-10039189,14/12/2021,5640,940,HJI,Growth Investments,3807,Legal & Court Costs,Places
Blackpool Council,1117759,REDACTED PERSONAL DATA,4593975,556419,10/12/2021,840,140,MHA,Older People ( U65) With Ld,3807,Legal & Court Costs,Adult & Families
Blackpool Council,1002210,Read & Errington,4593998,BCH 101840/8,02/12/2021,1026.67,171.11,CXC21,Hra Capital Programme 2021/22,6501,Contract Payments,Capital - Chief Executive
Blackpool Council,1122908,Cavity Extraction Specialists Nw Ltd,4594024,113029,02/12/2021,936,156,CXC21,Hra Capital Programme 2021/22,6501,Contract Payments,Capital - Chief Executive
Blackpool Council,1122908,Cavity Extraction Specialists Nw Ltd,4594025,113030,02/12/2021,864,144,CXC21,Hra Capital Programme 2021/22,6501,Contract Payments,Capital - Chief Executive
Blackpool Council,1114522,The Oyster Partnership Ltd,4594189,10914492,14/12/2021,1664.4,277.4,BAAA,Legal Services,0793,Supply Cost Of Other Agency,Governance & Partnerships
Blackpool Council,1086714,Liveasy Ltd,4594195,BK0472F,08/12/2021,9557.06,1592.84,MTE,Undefined Age Group,5401,Aids To Daily Living,Adult & Families
Blackpool Council,1009824,Acorn Care & Education Ltd,4594222,59746,16/12/2021,12484.17,0,CWAN,Children With Additional Needs,4501,Private Contractors,Children'S Services
Blackpool Council,1009824,Acorn Care & Education Ltd,4594230,59748,16/12/2021,12771,0,CWAN,Children With Additional Needs,4501,Private Contractors,Children'S Services
Blackpool Council,1009824,Acorn Care & Education Ltd,4594233,59760,16/12/2021,10804.5,0,CWAN,Children With Additional Needs,4501,Private Contractors,Children'S Services
Blackpool Council,1009824,Acorn Care & Education Ltd,4594235,59759,16/12/2021,17596.67,0,CWAN,Children With Additional Needs,4501,Private Contractors,Children'S Services
Blackpool Council,1009824,Acorn Care & Education Ltd,4594237,59761,16/12/2021,10804.5,0,CWAN,Children With Additional Needs,4501,Private Contractors,Children'S Services
Blackpool Council,1009824,Acorn Care & Education Ltd,4594238,59749,16/12/2021,11946.14,0,CWAN,Children With Additional Needs,4501,Private Contractors,Children'S Services
Blackpool Council,1009824,Acorn Care & Education Ltd,4594242,59750,16/12/2021,11613.98,0,CWAN,Children With Additional Needs,4501,Private Contractors,Children'S Services
Blackpool Council,1107100,Nonstop Consulting Ltd,4594243,191233,09/12/2021,2171.52,361.92,JAH,Duty And Assessment,0791,Temp/Relief (Bureau Staff),Children'S Services
Blackpool Council,1107100,Nonstop Consulting Ltd,4594245,191610,14/12/2021,2144.38,357.4,JAH,Duty And Assessment,0791,Temp/Relief (Bureau Staff),Children'S Services
Blackpool Council,1009824,Acorn Care & Education Ltd,4594248,59751,16/12/2021,11613.98,0,CWAN,Children With Additional Needs,4501,Private Contractors,Children'S Services
Blackpool Council,1114367,Northwest Leaving Care Services Ltd,4594250,3616KHS,16/12/2021,4800,0,JEA,Senior Management,5551,Rent & Rent Bonds,Children'S Services
Blackpool Council,1114367,Northwest Leaving Care Services Ltd,4594251,3657JWS,17/12/2021,3400,0,JEA,Senior Management,5551,Rent & Rent Bonds,Children'S Services
Blackpool Council,1117081,Amberleigh Care Ltd,4594252,3397,01/12/2021,20875.71,0,JEA,Senior Management,4501,Private Contractors,Children'S Services
Blackpool Council,1118744,Lonsdale Care Ltd,4594253,LC00296,16/12/2021,15278.57,0,JEA,Senior Management,4501,Private Contractors,Children'S Services
Blackpool Council,1118744,Lonsdale Care Ltd,4594254,LC00297,16/12/2021,14968.57,0,JEA,Senior Management,4501,Private Contractors,Children'S Services
Blackpool Council,1009824,Acorn Care & Education Ltd,4594260,59758,16/12/2021,13140,0,CWAN,Children With Additional Needs,4501,Private Contractors,Children'S Services
Blackpool Council,1009824,Acorn Care & Education Ltd,4594262,59762,16/12/2021,11613.98,0,CWAN,Children With Additional Needs,4501,Private Contractors,Children'S Services
Blackpool Council,1009824,Acorn Care & Education Ltd,4594263,59763,16/12/2021,11946.14,0,CWAN,Children With Additional Needs,4501,Private Contractors,Children'S Services
Blackpool Council,1009824,Acorn Care & Education Ltd,4594264,59765,16/12/2021,11113.51,0,CWAN,Children With Additional Needs,4501,Private Contractors,Children'S Services
Blackpool Council,1009824,Acorn Care & Education Ltd,4594265,59766,16/12/2021,11113.51,0,CWAN,Children With Additional Needs,4501,Private Contractors,Children'S Services
Blackpool Council,1009824,Acorn Care & Education Ltd,4594270,59752,16/12/2021,11613.98,0,CWAN,Children With Additional Needs,4501,Private Contractors,Children'S Services
Blackpool Council,1009824,Acorn Care & Education Ltd,4594275,59775,16/12/2021,13140,0,CWAN,Children With Additional Needs,4501,Private Contractors,Children'S Services
Blackpool Council,1009824,Acorn Care & Education Ltd,4594277,59767,16/12/2021,12132.33,0,CWAN,Children With Additional Needs,4501,Private Contractors,Children'S Services
Blackpool Council,1044395,Sellick Partnership Limited,4594294,INV384745,17/12/2021,1861.2,310.2,BAAA,Legal Services,0793,Supply Cost Of Other Agency,Governance & Partnerships
Blackpool Council,1102179,Bedspace Resource Ltd,4594310,BLACKPOO 230141,10/12/2021,3696,616,JEA,Senior Management,5551,Rent & Rent Bonds,Children'S Services
Blackpool Council,1132640,Learning Disability England,4594311,679605,14/12/2021,995,0,MHA,Older People ( U65) With Ld,3801,Other Expenses,Adult & Families
Blackpool Council,1112992,Key To Independence Ltd,4594319,SG081121,02/12/2021,375,0,CX4002,Disabled Facilities Grants,6506,Consultants Fees,Capital - Adult Social Care
Blackpool Council,1117457,Wrps Ltd,4594406,9705,20/12/2021,1119.79,186.63,CXC21,Hra Capital Programme 2021/22,6501,Contract Payments,Capital - Chief Executive
Blackpool Council,1117457,Wrps Ltd,4594407,9707,20/12/2021,777.79,129.63,CXC21,Hra Capital Programme 2021/22,6501,Contract Payments,Capital - Chief Executive
Blackpool Council,1011859,Devonshire Blinds Ltd,4594440,211029PAT7,02/12/2021,716,119.33,CXC11,Site Development,6501,Contract Payments,Capital - Chief Executive
Blackpool Council,1011973,Automatic Alarms Ltd,4594444,344903,14/12/2021,375.64,62.61,AEB,Buildings,1171,Alarms,Resources
Blackpool Council,1011973,Automatic Alarms Ltd,4594446,344897,14/12/2021,714.26,119.04,AEB,Buildings,1171,Alarms,Resources
Blackpool Council,1054796,Bolton Gate Services Ltd,4594448,SI0062321,14/12/2021,543.36,90.56,FMAE,Civic Centre,1012,Premises Maint-Priv.Contractor,Resources
Blackpool Council,1070009,Nigel Stirrup T/A Mw Access Hire,4594449,086,16/12/2021,475,0,AEB,Buildings,1012,Premises Maint-Priv.Contractor,Resources
Blackpool Council,1094411,Fox Fire Security Limited,4594453,3509,17/12/2021,1418.4,236.4,AEB,Buildings,1012,Premises Maint-Priv.Contractor,Resources
Blackpool Council,1066073,Blackpool Coastal Housing,4594489,30002024,09/12/2021,261.69,0,PVA,Other External Funding,3401,General Services,Places
Blackpool Council,1102297,Rockingham Trophies - In Liquidation,4595124,004457,13/12/2021,2390.33,398.39,JA1531,Independent Reviewing Officers,3417,Entertainment,Children'S Services
Blackpool Council,1111328,Hadley Fraser Ltd,4595133,BLA127,17/12/2021,7171.2,1195.2,JDEAAA,Safeguarding Adults,4501,Private Contractors,Adult & Families
Blackpool Council,1129607,REDACTED PERSONAL DATA,4595137,456480,14/12/2021,1740,290,BAAA,Legal Services,4707,Counsels Fees,Governance & Partnerships
Blackpool Council,1092657,Carter Towler Llp,4595138,E14/0352/MRF,16/12/2021,1270.15,211.69,PAROPE,Parking Operational,1301,Rent & Hire Of Premises,Budgets Outside Cash Limits
Blackpool Council,1106421,The Mailing Room Ltd,4595139,SI-158813,14/12/2021,1932,322,FCADA,Customer Services,3001,Office Equipment Purchase,Resources
Blackpool Council,1122515,REDACTED PERSONAL DATA,4595171,455900,14/12/2021,1260,210,BAAA,Legal Services,4707,Counsels Fees,Governance & Partnerships
Blackpool Council,1113779,Tg Gas & Heating Services Ltd,4595193,514,03/12/2021,819.6,136.6,PTA,Economic Development,1012,Premises Maint-Priv.Contractor,Places
Blackpool Council,1113779,Tg Gas & Heating Services Ltd,4595194,515,03/12/2021,2598,433,AEB,Buildings,1012,Premises Maint-Priv.Contractor,Resources
Blackpool Council,1113779,Tg Gas & Heating Services Ltd,4595195,512,03/12/2021,1102.15,183.69,LBC,Branch Libraries,1012,Premises Maint-Priv.Contractor,Places
Blackpool Council,1113165,Target Psychology Ltd,4595352,11/21/5483,14/12/2021,1676.82,279.47,JEA,Senior Management,4712,Experts Fees,Children'S Services
Blackpool Council,1120433,Lextox,4595372,235168,14/12/2021,412.5,68.75,JEA,Senior Management,4712,Experts Fees,Children'S Services
Blackpool Council,1123224,Safety Matters (Legal) Ltd,4595373,SML/1442,16/12/2021,455.65,0,JEA,Senior Management,4712,Experts Fees,Children'S Services
Blackpool Council,1114000,Dac Beachcroft Claims Limited,4595395,450036408A,02/12/2021,292.53,0,RK6008,Gallagher Bassett Sensitive,4705,Solicitors Fees,Internal Insurance
Blackpool Council,1045649,Independent Living (North West) Ltd,4595698,WM082C-19,07/12/2021,13106.96,2184.49,MTE,Undefined Age Group,4508,Day Care,Adult & Families
Blackpool Council,1045649,Independent Living (North West) Ltd,4595699,HDC 082C-19,07/12/2021,4872.8,812.13,MTE,Undefined Age Group,4508,Day Care,Adult & Families
Blackpool Council,1011995,Technical & Electrical Services Ltd,4595772,VR 21481,15/12/2021,343.07,57.18,CXC21,Hra Capital Programme 2021/22,6501,Contract Payments,Capital - Chief Executive
Blackpool Council,1011995,Technical & Electrical Services Ltd,4595776,M 21493,13/12/2021,287.52,47.92,CXC21,Hra Capital Programme 2021/22,6501,Contract Payments,Capital - Chief Executive
Blackpool Council,1011995,Technical & Electrical Services Ltd,4595778,CAP21499,03/12/2021,403.34,67.22,CXC21,Hra Capital Programme 2021/22,6501,Contract Payments,Capital - Chief Executive
Blackpool Council,1011995,Technical & Electrical Services Ltd,4595779,CAP21497,03/12/2021,256.84,42.81,CXC21,Hra Capital Programme 2021/22,6501,Contract Payments,Capital - Chief Executive
Blackpool Council,1011995,Technical & Electrical Services Ltd,4595780,CAP21504,03/12/2021,2449.64,408.27,CXC21,Hra Capital Programme 2021/22,6501,Contract Payments,Capital - Chief Executive
Blackpool Council,1011995,Technical & Electrical Services Ltd,4595781,CAP21505,03/12/2021,460.02,76.67,CXC21,Hra Capital Programme 2021/22,6501,Contract Payments,Capital - Chief Executive
Blackpool Council,1011995,Technical & Electrical Services Ltd,4595782,CAP21506,03/12/2021,439.97,73.33,CXC21,Hra Capital Programme 2021/22,6501,Contract Payments,Capital - Chief Executive
Blackpool Council,1011995,Technical & Electrical Services Ltd,4595783,CAP21507,03/12/2021,336.56,56.09,CXC21,Hra Capital Programme 2021/22,6501,Contract Payments,Capital - Chief Executive
Blackpool Council,1011995,Technical & Electrical Services Ltd,4595784,CAP21501,03/12/2021,478.24,79.71,CXC21,Hra Capital Programme 2021/22,6501,Contract Payments,Capital - Chief Executive
Blackpool Council,1011995,Technical & Electrical Services Ltd,4595785,CAP21502,03/12/2021,1752.12,292.02,CXC21,Hra Capital Programme 2021/22,6501,Contract Payments,Capital - Chief Executive
Blackpool Council,1011995,Technical & Electrical Services Ltd,4595791,CAP21503,03/12/2021,1836.4,306.07,CXC21,Hra Capital Programme 2021/22,6501,Contract Payments,Capital - Chief Executive
Blackpool Council,1107100,Nonstop Consulting Ltd,4595798,192185,17/12/2021,1691.46,281.91,JBT,Looked After Children,0791,Temp/Relief (Bureau Staff),Children'S Services
Blackpool Council,1113779,Tg Gas & Heating Services Ltd,4595979,513,03/12/2021,3414,569,AEB,Buildings,1012,Premises Maint-Priv.Contractor,Resources
Blackpool Council,1011995,Technical & Electrical Services Ltd,4595986,C 9603,17/12/2021,258.42,43.07,CXAAA,Local Authority Dwellings,6501,Contract Payments,Capital - Chief Executive
Blackpool Council,1088102,Whistl Uk Limited,4595988,IN18US21005954,16/12/2021,3065.1,510.85,FCADA,Customer Services,3511,Postages,Resources
Blackpool Council,1104767,North Star Environmental Ltd,4596001,INV-24325,20/12/2021,324,54,CXC21,Hra Capital Programme 2021/22,6501,Contract Payments,Capital - Chief Executive
Blackpool Council,1048456,R T C,4596002,9988,03/12/2021,528,88,CXC21,Hra Capital Programme 2021/22,6501,Contract Payments,Capital - Chief Executive
Blackpool Council,1122908,Cavity Extraction Specialists Nw Ltd,4596016,113031,03/12/2021,2647.2,441.2,CXC21,Hra Capital Programme 2021/22,6501,Contract Payments,Capital - Chief Executive
Blackpool Council,1066073,Blackpool Coastal Housing,4596017,DONATIONS FOR RESETTLEMENT,01/12/2021,1759.63,0,HAAAB,Strategy & Projects,7189,Other Misc Income - No Orders,Net Cost Of Services
Blackpool Council,1089774,Fcms (Nw) Ltd,4596025,04905,02/12/2021,6536.4,1089.4,PU0111,Contain Outbreak Mgmnt Covid,4501,Private Contractors,Public Health
Blackpool Council,1102319,Langdale Free School,4596026,HNF2/SUMMER21,02/12/2021,4732,0,CWAN,Children With Additional Needs,4403,Special Needs - Children,Children'S Services
Blackpool Council,1066073,Blackpool Coastal Housing,4596042,30002032,01/12/2021,4304.4,717.4,CXC21,Hra Capital Programme 2021/22,6501,Contract Payments,Capital - Chief Executive
Blackpool Council,1108484,REDACTED PERSONAL DATA,4596044,432920,16/12/2021,583.04,0,MVA,18-64,5604,Direct Payments,Adult & Families
Blackpool Council,1131762,Just Childcare Ltd - Best Friends Day Nursery,4596083,0000488577,01/12/2021,473.45,0,JEA,Senior Management,5510,Nursery,Children'S Services
Blackpool Council,1107100,Nonstop Consulting Ltd,4596084,191886,14/12/2021,2114.33,352.39,JAH,Duty And Assessment,0791,Temp/Relief (Bureau Staff),Children'S Services
Blackpool Council,1112992,Key To Independence Ltd,4596085,SR221121/DH/SANDICROFT,14/12/2021,375,0,CX4002,Disabled Facilities Grants,6506,Consultants Fees,Capital - Adult Social Care
Blackpool Council,1132493,Portman Recruitment Limited,4596088,INVBPCC0009,14/12/2021,2397.6,399.6,JAB,Locality,0791,Temp/Relief (Bureau Staff),Children'S Services
Blackpool Council,1132493,Portman Recruitment Limited,4596089,INVBPCC0008,08/12/2021,2397.6,399.6,JAB,Locality,0791,Temp/Relief (Bureau Staff),Children'S Services
Blackpool Council,1114367,Northwest Leaving Care Services Ltd,4596409,3656DSS,16/12/2021,7250,0,JEA,Senior Management,5551,Rent & Rent Bonds,Children'S Services
Blackpool Council,1130794,Thornbury Nursing Services (Ir35 Compliant),4596414,5617585,01/12/2021,300,0,JEA,Senior Management,4501,Private Contractors,Children'S Services
Blackpool Council,1130438,James Andrews Recruitment Solutions Ltd,4596417,00240364,01/12/2021,1332,222,CX4002,Disabled Facilities Grants,6506,Consultants Fees,Capital - Adult Social Care
Blackpool Council,1040687,REDACTED PERSONAL DATA,4596420,416194,16/12/2021,10335,1722.5,BAAA,Legal Services,4707,Counsels Fees,Governance & Partnerships
Blackpool Council,1043719,REDACTED PERSONAL DATA,4596421,266108,16/12/2021,900,150,BAAA,Legal Services,4707,Counsels Fees,Governance & Partnerships
Blackpool Council,1040687,REDACTED PERSONAL DATA,4596423,INVJC369535/2,16/12/2021,2430,405,BAAA,Legal Services,4707,Counsels Fees,Governance & Partnerships
Blackpool Council,1093061,REDACTED PERSONAL DATA,4596424,MDJ/369535 23,14/12/2021,702,117,BAAA,Legal Services,4707,Counsels Fees,Governance & Partnerships
Blackpool Council,1114522,The Oyster Partnership Ltd,4596871,10915010,17/12/2021,1641.6,273.6,BAAA,Legal Services,0793,Supply Cost Of Other Agency,Governance & Partnerships
Blackpool Council,1111078,Dr Y P Shukla,4596875,53/2021,17/12/2021,1400,0,JDEAAA,Safeguarding Adults,4501,Private Contractors,Adult & Families
Blackpool Council,1132514,Personnel Leasing Limited,4596885,INV0BP014,01/12/2021,1998,333,JBT,Looked After Children,0791,Temp/Relief (Bureau Staff),Children'S Services
Blackpool Council,1048456,R T C,4596896,9994,03/12/2021,8328,1388,CXC21,Hra Capital Programme 2021/22,6501,Contract Payments,Capital - Chief Executive
Blackpool Council,1017722,Terrys Cut Price Carpets Ltd,4596897,1486,08/12/2021,600,0,CX4002,Disabled Facilities Grants,6501,Contract Payments,Capital - Adult Social Care
Blackpool Council,1048456,R T C,4596898,9996,03/12/2021,1704,284,CXC21,Hra Capital Programme 2021/22,6501,Contract Payments,Capital - Chief Executive
Blackpool Council,1127787,Ndds Ltd (Fac087),4596899,INV-3870,13/12/2021,813.96,135.66,CXXXX,Hra Non Specific Contingency,6501,Contract Payments,Capital - Chief Executive
Blackpool Council,1017722,Terrys Cut Price Carpets Ltd,4596900,1396,22/12/2021,672,112,CXXXX,Hra Non Specific Contingency,6501,Contract Payments,Capital - Chief Executive
Blackpool Council,1026811,Stannah Lift Services Ltd,4596901,1085370111,14/12/2021,2236,0,CX4002,Disabled Facilities Grants,6501,Contract Payments,Capital - Adult Social Care
Blackpool Council,1117457,Wrps Ltd,4597060,9667,13/12/2021,4740,790,CXXXX,Hra Non Specific Contingency,6501,Contract Payments,Capital - Chief Executive
Blackpool Council,1011973,Automatic Alarms Ltd,4597072,344784,14/12/2021,594.97,99.16,AEB,Buildings,1012,Premises Maint-Priv.Contractor,Resources
Blackpool Council,1011973,Automatic Alarms Ltd,4597073,345061,16/12/2021,282.01,47,AEB,Buildings,1171,Alarms,Resources
Blackpool Council,1105314,Fvs Limited,4597080,23146,16/12/2021,318,53,AER,Dual Use Properties,1012,Premises Maint-Priv.Contractor,Resources
Blackpool Council,1130425,Sure Maintenance,4597085,316925,17/12/2021,296.4,49.4,PTA,Economic Development,1012,Premises Maint-Priv.Contractor,Places
Blackpool Council,1124113,Innovate Therapeutic Care Ltd,4597103,TCI00000108,17/12/2021,21116.46,3519.41,JEA,Senior Management,4701,Other Contracted Services,Children'S Services
Blackpool Council,1009824,Acorn Care & Education Ltd,4597108,60161,17/12/2021,2730,0,CWAN,Children With Additional Needs,2211,Casual Hire,Children'S Services
Blackpool Council,1009824,Acorn Care & Education Ltd,4597109,60162,17/12/2021,1050,0,CWAN,Children With Additional Needs,2211,Casual Hire,Children'S Services
Blackpool Council,1005067,Blackpool Pleasure Beach Ltd,4597110,21839,09/12/2021,1010.75,0,PVA,Other External Funding,3401,General Services,Places
Blackpool Council,1005067,Blackpool Pleasure Beach Ltd,4597112,21840,09/12/2021,1010.75,0,PVA,Other External Funding,3401,General Services,Places
Blackpool Council,1032536,Partner Ship Media Group Ltd,4597114,0000177078,14/12/2021,318.6,53.1,JA0505,Children'S Training,0915,Conferences,Children'S Services
Blackpool Council,1005067,Blackpool Pleasure Beach Ltd,4597115,21841,09/12/2021,1010.75,0,PVA,Other External Funding,3401,General Services,Places
